BIOGUIDE_ID,OFFICE,QUARTER,PROGRAM,CATEGORY,SORT SEQUENCE,DATE,TRANSCODE,RECORDID,PAYEE,START DATE,END DATE,PURPOSE,AMOUNT,YEAR
,2022 OFFICE OF THE SPEAKER,1,GENERAL EXPENDITURES,FRANKED MAIL,DETAIL,2022-03-30,AP,1543094,UNITED STATES POSTAL SERVICE,2022-02-01,2022-02-28,FRANKED MAIL,432.72,2022
,2022 OFFICE OF THE SPEAKER,1,GENERAL EXPENDITURES,FRANKED MAIL,SUBTOTAL,   ,   ,   ,   ,   ,   ,FRANKED MAIL TOTALS:,432.72,2022
,2022 OFFICE OF THE SPEAKER,1,GENERAL EXPENDITURES,PERSONNEL COMPENSATION,DETAIL,   ,   ,   ,BENNETT AARON M.,2022-01-01,2022-01-31,DIRECTOR OF SPEECHWRITING,-472.22,2022
,2022 OFFICE OF THE SPEAKER,1,GENERAL EXPENDITURES,PERSONNEL COMPENSATION,DETAIL,   ,   ,   ,BENNETT AARON M.,2022-01-01,2022-03-31,DIRECTOR OF SPEECHWRITING,21249.99,2022
,2022 OFFICE OF THE SPEAKER,1,GENERAL EXPENDITURES,PERSONNEL COMPENSATION,DETAIL,   ,   ,   ,BERRET EMILY C,2022-01-01,2022-01-31,DEPUTY CHIEF OF STAFF,-1107.22,2022
,2022 OFFICE OF THE SPEAKER,1,GENERAL EXPENDITURES,PERSONNEL COMPENSATION,DETAIL,   ,   ,   ,BERRET EMILY C,2022-01-01,2022-03-31,DEPUTY CHIEF OF STAFF,49824.99,2022
,2022 OFFICE OF THE SPEAKER,1,GENERAL EXPENDITURES,PERSONNEL COMPENSATION,DETAIL,   ,   ,   ,BLANKENSHIP ALLISON W,2022-01-01,2022-01-31,FLOOR ASSISTANT,-388.89,2022
,2022 OFFICE OF THE SPEAKER,1,GENERAL EXPENDITURES,PERSONNEL COMPENSATION,DETAIL,   ,   ,   ,BLANKENSHIP ALLISON W,2022-01-01,2022-03-31,FLOOR ASSISTANT,17499.99,2022
,2022 OFFICE OF THE SPEAKER,1,GENERAL EXPENDITURES,PERSONNEL COMPENSATION,DETAIL,   ,   ,   ,BUSH JACQUELINE D,2022-01-01,2022-01-31,DEPUTY PRESS SECRETARY,-280.56,2022
,2022 OFFICE OF THE SPEAKER,1,GENERAL EXPENDITURES,PERSONNEL COMPENSATION,DETAIL,   ,   ,   ,BUSH JACQUELINE D,2022-01-01,2022-03-31,DEPUTY PRESS SECRETARY,12874.99,2022
,2022 OFFICE OF THE SPEAKER,1,GENERAL EXPENDITURES,PERSONNEL COMPENSATION,DETAIL,   ,   ,   ,CAPRON MARGARET W.,2022-01-01,2022-01-31,SENIOR ADV FOR POLICY & COMM,-820.54,2022
,2022 OFFICE OF THE SPEAKER,1,GENERAL EXPENDITURES,PERSONNEL COMPENSATION,DETAIL,   ,   ,   ,CAPRON MARGARET W.,2022-01-01,2022-03-31,SENIOR ADV FOR POLICY & COMM,36924.24,2022
,2022 OFFICE OF THE SPEAKER,1,GENERAL EXPENDITURES,PERSONNEL COMPENSATION,DETAIL,   ,   ,   ,CHERRY STEPHANIE,2022-01-01,2022-01-31,DIRECTOR OF MEDIA AFFAIRS,-527.78,2022
,2022 OFFICE OF THE SPEAKER,1,GENERAL EXPENDITURES,PERSONNEL COMPENSATION,DETAIL,   ,   ,   ,CHERRY STEPHANIE,2022-01-01,2022-03-31,DIRECTOR OF MEDIA AFFAIRS,23750.01,2022
,2022 OFFICE OF THE SPEAKER,1,GENERAL EXPENDITURES,PERSONNEL COMPENSATION,DETAIL,   ,   ,   ,COCHRAN COURTNEY E.,2022-01-01,2022-01-31,DIRECTOR OF STRATEGIC PLANNING,-666.67,2022
,2022 OFFICE OF THE SPEAKER,1,GENERAL EXPENDITURES,PERSONNEL COMPENSATION,DETAIL,   ,   ,   ,COCHRAN COURTNEY E.,2022-01-01,2022-03-31,DIRECTOR OF STRATEGIC PLANNING,30000,2022
,2022 OFFICE OF THE SPEAKER,1,GENERAL EXPENDITURES,PERSONNEL COMPENSATION,DETAIL,   ,   ,   ,CONNELLY HENRY V,2022-01-01,2022-01-31,COMMUNICATIONS DIRECTOR,-1038.89,2022
,2022 OFFICE OF THE SPEAKER,1,GENERAL EXPENDITURES,PERSONNEL COMPENSATION,DETAIL,   ,   ,   ,CONNELLY HENRY V,2022-01-01,2022-03-31,COMMUNICATIONS DIRECTOR,46749.99,2022
,2022 OFFICE OF THE SPEAKER,1,GENERAL EXPENDITURES,PERSONNEL COMPENSATION,DETAIL,   ,   ,   ,COSTELLO JOSEPH M.,2022-01-01,2022-01-11,DEPUTY PRESS SECRETARY,-127.31,2022
,2022 OFFICE OF THE SPEAKER,1,GENERAL EXPENDITURES,PERSONNEL COMPENSATION,DETAIL,   ,   ,   ,COSTELLO JOSEPH M.,2022-01-01,2022-01-11,DEPUTY PRESS SECRETARY,1909.72,2022
,2022 OFFICE OF THE SPEAKER,1,GENERAL EXPENDITURES,PERSONNEL COMPENSATION,DETAIL,   ,   ,   ,COSTELLO JOSEPH M.,2022-01-01,2022-01-11,DEPUTY PRESS SECRETARY (OTHER COMPENSATION),5208.33,2022
,2022 OFFICE OF THE SPEAKER,1,GENERAL EXPENDITURES,PERSONNEL COMPENSATION,DETAIL,   ,   ,   ,DEGRAFF KENNETH B.,2022-01-01,2022-01-31,SENIOR POLICY ADVISOR,-694.44,2022
,2022 OFFICE OF THE SPEAKER,1,GENERAL EXPENDITURES,PERSONNEL COMPENSATION,DETAIL,   ,   ,   ,DEGRAFF KENNETH B.,2022-01-01,2022-03-31,SENIOR POLICY ADVISOR,31250.01,2022
,2022 OFFICE OF THE SPEAKER,1,GENERAL EXPENDITURES,PERSONNEL COMPENSATION,DETAIL,   ,   ,   ,DONOHUE JENNIFER A,2022-01-01,2022-01-31,EXECUTIVE DIRECTOR,-935,2022
,2022 OFFICE OF THE SPEAKER,1,GENERAL EXPENDITURES,PERSONNEL COMPENSATION,DETAIL,   ,   ,   ,DONOHUE JENNIFER A,2022-01-01,2022-02-12,EXECUTIVE DIRECTOR,19635,2022
,2022 OFFICE OF THE SPEAKER,1,GENERAL EXPENDITURES,PERSONNEL COMPENSATION,DETAIL,   ,   ,   ,DONOHUE JENNIFER A,2022-02-01,2022-02-12,EXECUTIVE DIRECTOR (OTHER COMPENSATION),5843.75,2022
,2022 OFFICE OF THE SPEAKER,1,GENERAL EXPENDITURES,PERSONNEL COMPENSATION,DETAIL,   ,   ,   ,EDMONSON ROBERT D,2022-01-01,2022-01-31,POLICY ADVISOR,-888.89,2022
,2022 OFFICE OF THE SPEAKER,1,GENERAL EXPENDITURES,PERSONNEL COMPENSATION,DETAIL,   ,   ,   ,EDMONSON ROBERT D,2022-01-01,2022-03-31,POLICY ADVISOR,39999.99,2022
,2022 OFFICE OF THE SPEAKER,1,GENERAL EXPENDITURES,PERSONNEL COMPENSATION,DETAIL,   ,   ,   ,FIELDS MCKENZIE R,2022-01-01,2022-01-31,POLICY ADVISOR,-177.78,2022
,2022 OFFICE OF THE SPEAKER,1,GENERAL EXPENDITURES,PERSONNEL COMPENSATION,DETAIL,   ,   ,   ,FIELDS MCKENZIE R,2022-01-01,2022-03-31,POLICY ADVISOR,8000.01,2022
,2022 OFFICE OF THE SPEAKER,1,GENERAL EXPENDITURES,PERSONNEL COMPENSATION,DETAIL,   ,   ,   ,FISCHER JR ROBERT V.,2022-01-01,2022-01-31,ASST FLOOR CHIEF,-1027.78,2022
,2022 OFFICE OF THE SPEAKER,1,GENERAL EXPENDITURES,PERSONNEL COMPENSATION,DETAIL,   ,   ,   ,FISCHER JR ROBERT V.,2022-01-01,2022-03-31,ASST FLOOR CHIEF,46250.01,2022
,2022 OFFICE OF THE SPEAKER,1,GENERAL EXPENDITURES,PERSONNEL COMPENSATION,DETAIL,   ,   ,   ,FLEET II JAMES P,2022-01-01,2022-01-31,SENIOR ADVISOR,-6.67,2022
,2022 OFFICE OF THE SPEAKER,1,GENERAL EXPENDITURES,PERSONNEL COMPENSATION,DETAIL,   ,   ,   ,FLEET II JAMES P,2022-01-01,2022-03-31,SENIOR ADVISOR,300,2022
,2022 OFFICE OF THE SPEAKER,1,GENERAL EXPENDITURES,PERSONNEL COMPENSATION,DETAIL,   ,   ,   ,GREENER APRIL L.,2022-01-01,2022-01-31,RESEARCH DIRECTOR,-655.56,2022
,2022 OFFICE OF THE SPEAKER,1,GENERAL EXPENDITURES,PERSONNEL COMPENSATION,DETAIL,   ,   ,   ,GREENER APRIL L.,2022-01-01,2022-03-31,RESEARCH DIRECTOR,29499.99,2022
,2022 OFFICE OF THE SPEAKER,1,GENERAL EXPENDITURES,PERSONNEL COMPENSATION,DETAIL,   ,   ,   ,HAMILTON WENDY D,2022-01-01,2022-01-31,OUTREACH & MEMBER SERVICES ADV,-500,2022
,2022 OFFICE OF THE SPEAKER,1,GENERAL EXPENDITURES,PERSONNEL COMPENSATION,DETAIL,   ,   ,   ,HAMILTON WENDY D,2022-01-01,2022-03-31,OUTREACH & MEMBER SERVICES ADV,22500,2022
,2022 OFFICE OF THE SPEAKER,1,GENERAL EXPENDITURES,PERSONNEL COMPENSATION,DETAIL,   ,   ,   ,HAMMILL ANDREW T.,2022-01-01,2022-01-31,DEPUTY CHIEF OF STAFF,-1107.22,2022
,2022 OFFICE OF THE SPEAKER,1,GENERAL EXPENDITURES,PERSONNEL COMPENSATION,DETAIL,   ,   ,   ,HAMMILL ANDREW T.,2022-01-01,2022-03-31,DEPUTY CHIEF OF STAFF,49824.99,2022
,2022 OFFICE OF THE SPEAKER,1,GENERAL EXPENDITURES,PERSONNEL COMPENSATION,DETAIL,   ,   ,   ,HAN LEAH J.,2022-01-01,2022-01-31,SENIOR STAFF ASSISTANT,-347.22,2022
,2022 OFFICE OF THE SPEAKER,1,GENERAL EXPENDITURES,PERSONNEL COMPENSATION,DETAIL,   ,   ,   ,HAN LEAH J.,2022-01-01,2022-01-31,SENIOR STAFF ASSISTANT,5208.33,2022
,2022 OFFICE OF THE SPEAKER,1,GENERAL EXPENDITURES,PERSONNEL COMPENSATION,DETAIL,   ,   ,   ,HAN LEAH J.,2022-02-01,2022-03-31,SPECIAL ASST TO THE EXECUTIVE,10416.66,2022
,2022 OFFICE OF THE SPEAKER,1,GENERAL EXPENDITURES,PERSONNEL COMPENSATION,DETAIL,   ,   ,   ,HIDALGO ADRIANA N.,2022-01-01,2022-01-31,DISTRICT SCHED/SPECIAL ASSIST,-444.44,2022
,2022 OFFICE OF THE SPEAKER,1,GENERAL EXPENDITURES,PERSONNEL COMPENSATION,DETAIL,   ,   ,   ,HIDALGO ADRIANA N.,2022-01-01,2022-03-31,DISTRICT SCHED/SPECIAL ASSIST,20000.01,2022
,2022 OFFICE OF THE SPEAKER,1,GENERAL EXPENDITURES,PERSONNEL COMPENSATION,DETAIL,   ,   ,   ,HOLLANDER EVAN D.,2022-03-14,2022-03-31,EXECUTIVE DIRECTOR,7947.5,2022
,2022 OFFICE OF THE SPEAKER,1,GENERAL EXPENDITURES,PERSONNEL COMPENSATION,DETAIL,   ,   ,   ,HOLMES NATHANIEL J,2022-01-01,2022-01-31,DEP DIR/SCHEDULING & ADVANCE,-433.33,2022
,2022 OFFICE OF THE SPEAKER,1,GENERAL EXPENDITURES,PERSONNEL COMPENSATION,DETAIL,   ,   ,   ,HOLMES NATHANIEL J,2022-01-01,2022-03-31,DEP DIR/SCHEDULING & ADVANCE,19500,2022
,2022 OFFICE OF THE SPEAKER,1,GENERAL EXPENDITURES,PERSONNEL COMPENSATION,DETAIL,   ,   ,   ,IACOBELLIS SAMUEL C,2022-01-01,2022-01-31,DPTY DIR INTERGOV AFFAIRS ADV,-444.44,2022
,2022 OFFICE OF THE SPEAKER,1,GENERAL EXPENDITURES,PERSONNEL COMPENSATION,DETAIL,   ,   ,   ,IACOBELLIS SAMUEL C,2022-01-01,2022-03-31,DPTY DIR INTERGOV AFFAIRS ADV,20000.01,2022
,2022 OFFICE OF THE SPEAKER,1,GENERAL EXPENDITURES,PERSONNEL COMPENSATION,DETAIL,   ,   ,   ,JACKSON AUDRA L,2022-01-01,2022-01-31,ASST MGR FOR THE DEM CLOAKROOM,-444.44,2022
,2022 OFFICE OF THE SPEAKER,1,GENERAL EXPENDITURES,PERSONNEL COMPENSATION,DETAIL,   ,   ,   ,JACKSON AUDRA L,2022-01-01,2022-03-31,ASST MGR FOR THE DEM CLOAKROOM,20000.01,2022
,2022 OFFICE OF THE SPEAKER,1,GENERAL EXPENDITURES,PERSONNEL COMPENSATION,DETAIL,   ,   ,   ,JALDIN PAZ HUGO,2022-01-01,2022-01-31,DEPUTY IT DIRECTOR,-560.53,2022
,2022 OFFICE OF THE SPEAKER,1,GENERAL EXPENDITURES,PERSONNEL COMPENSATION,DETAIL,   ,   ,   ,JALDIN PAZ HUGO,2022-01-01,2022-03-31,DEPUTY IT DIRECTOR,25223.76,2022
,2022 OFFICE OF THE SPEAKER,1,GENERAL EXPENDITURES,PERSONNEL COMPENSATION,DETAIL,   ,   ,   ,KAPLAN EMMA L,2022-01-01,2022-01-31,DEPUTY FLOOR DIRECTOR,-666.67,2022
,2022 OFFICE OF THE SPEAKER,1,GENERAL EXPENDITURES,PERSONNEL COMPENSATION,DETAIL,   ,   ,   ,KAPLAN EMMA L,2022-01-01,2022-03-31,DEPUTY FLOOR DIRECTOR,30000,2022
,2022 OFFICE OF THE SPEAKER,1,GENERAL EXPENDITURES,PERSONNEL COMPENSATION,DETAIL,   ,   ,   ,KEATING ROSE M,2022-01-01,2022-01-31,ASST FLOOR MANAGER,-777.78,2022
,2022 OFFICE OF THE SPEAKER,1,GENERAL EXPENDITURES,PERSONNEL COMPENSATION,DETAIL,   ,   ,   ,KEATING ROSE M,2022-01-01,2022-03-31,ASST FLOOR MANAGER,35000.01,2022
,2022 OFFICE OF THE SPEAKER,1,GENERAL EXPENDITURES,PERSONNEL COMPENSATION,DETAIL,   ,   ,   ,KEITA KAMILAH Z,2022-01-01,2022-01-31,IT DIRECTOR,-582.11,2022
,2022 OFFICE OF THE SPEAKER,1,GENERAL EXPENDITURES,PERSONNEL COMPENSATION,DETAIL,   ,   ,   ,KEITA KAMILAH Z,2022-01-01,2022-03-31,IT DIRECTOR,26194.89,2022
,2022 OFFICE OF THE SPEAKER,1,GENERAL EXPENDITURES,PERSONNEL COMPENSATION,DETAIL,   ,   ,   ,KISKER GRAYSON S.,2022-01-01,2022-01-31,DIGITAL ASSISTANT,-236.11,2022
,2022 OFFICE OF THE SPEAKER,1,GENERAL EXPENDITURES,PERSONNEL COMPENSATION,DETAIL,   ,   ,   ,KISKER GRAYSON S.,2022-01-01,2022-03-31,DIGITAL ASSISTANT,11041.67,2022
,2022 OFFICE OF THE SPEAKER,1,GENERAL EXPENDITURES,PERSONNEL COMPENSATION,DETAIL,   ,   ,   ,KISKER GRAYSON S.,2022-01-01,2022-02-28,DIGITAL ASSISTANT (OVERTIME),2651.11,2022
,2022 OFFICE OF THE SPEAKER,1,GENERAL EXPENDITURES,PERSONNEL COMPENSATION,DETAIL,   ,   ,   ,KONFORTY NADAV G.,2022-01-01,2022-01-31,STAFF ASSISTANT,-222.22,2022
,2022 OFFICE OF THE SPEAKER,1,GENERAL EXPENDITURES,PERSONNEL COMPENSATION,DETAIL,   ,   ,   ,KONFORTY NADAV G.,2022-01-01,2022-03-31,STAFF ASSISTANT,10624.99,2022
,2022 OFFICE OF THE SPEAKER,1,GENERAL EXPENDITURES,PERSONNEL COMPENSATION,DETAIL,   ,   ,   ,KONFORTY NADAV G.,2022-01-01,2022-02-28,STAFF ASSISTANT (OVERTIME),2761.99,2022
,2022 OFFICE OF THE SPEAKER,1,GENERAL EXPENDITURES,PERSONNEL COMPENSATION,DETAIL,   ,   ,   ,KUNDANIS GEORGE,2022-01-01,2022-01-31,DEPUTY CHIEF OF STAFF,-1107.22,2022
,2022 OFFICE OF THE SPEAKER,1,GENERAL EXPENDITURES,PERSONNEL COMPENSATION,DETAIL,   ,   ,   ,KUNDANIS GEORGE,2022-01-01,2022-03-31,DEPUTY CHIEF OF STAFF,49824.99,2022
,2022 OFFICE OF THE SPEAKER,1,GENERAL EXPENDITURES,PERSONNEL COMPENSATION,DETAIL,   ,   ,   ,LEE SERYEUNG,2022-01-01,2022-01-31,PRESS SECRETARY,-611.11,2022
,2022 OFFICE OF THE SPEAKER,1,GENERAL EXPENDITURES,PERSONNEL COMPENSATION,DETAIL,   ,   ,   ,LEE SERYEUNG,2022-01-01,2022-03-31,PRESS SECRETARY,27500.01,2022
,2022 OFFICE OF THE SPEAKER,1,GENERAL EXPENDITURES,PERSONNEL COMPENSATION,DETAIL,   ,   ,   ,LIZARRAGA JAIME E.,2022-01-01,2022-01-31,SENIOR ADVISOR,-1055.56,2022
,2022 OFFICE OF THE SPEAKER,1,GENERAL EXPENDITURES,PERSONNEL COMPENSATION,DETAIL,   ,   ,   ,LIZARRAGA JAIME E.,2022-01-01,2022-03-31,SENIOR ADVISOR,47499.99,2022
,2022 OFFICE OF THE SPEAKER,1,GENERAL EXPENDITURES,PERSONNEL COMPENSATION,DETAIL,   ,   ,   ,MANGRUM PEARL J.,2022-01-01,2022-01-31,FINANCIAL ADMINISTRATOR,-805.56,2022
,2022 OFFICE OF THE SPEAKER,1,GENERAL EXPENDITURES,PERSONNEL COMPENSATION,DETAIL,   ,   ,   ,MANGRUM PEARL J.,2022-01-01,2022-03-31,FINANCIAL ADMINISTRATOR,36249.99,2022
,2022 OFFICE OF THE SPEAKER,1,GENERAL EXPENDITURES,PERSONNEL COMPENSATION,DETAIL,   ,   ,   ,MANSBACH SHANA G,2022-01-01,2022-01-31,DEPUTY COMMUNICATIONS DIR,-750,2022
,2022 OFFICE OF THE SPEAKER,1,GENERAL EXPENDITURES,PERSONNEL COMPENSATION,DETAIL,   ,   ,   ,MANSBACH SHANA G,2022-01-01,2022-03-31,DEPUTY COMMUNICATIONS DIR,33750,2022
,2022 OFFICE OF THE SPEAKER,1,GENERAL EXPENDITURES,PERSONNEL COMPENSATION,DETAIL,   ,   ,   ,MARRON BRENNA K.,2022-01-01,2022-01-31,DEPUTY EXEC DIRECTOR,-651.67,2022
,2022 OFFICE OF THE SPEAKER,1,GENERAL EXPENDITURES,PERSONNEL COMPENSATION,DETAIL,   ,   ,   ,MARRON BRENNA K.,2022-01-01,2022-03-31,DEPUTY EXEC DIRECTOR,31466.67,2022
,2022 OFFICE OF THE SPEAKER,1,GENERAL EXPENDITURES,PERSONNEL COMPENSATION,DETAIL,   ,   ,   ,MARROW JAMES A,2022-01-01,2022-01-31,CREATIVE DIRECTOR,-347.22,2022
,2022 OFFICE OF THE SPEAKER,1,GENERAL EXPENDITURES,PERSONNEL COMPENSATION,DETAIL,   ,   ,   ,MARROW JAMES A,2022-01-01,2022-03-31,CREATIVE DIRECTOR,15624.99,2022
,2022 OFFICE OF THE SPEAKER,1,GENERAL EXPENDITURES,PERSONNEL COMPENSATION,DETAIL,   ,   ,   ,MCCULLOUGH MARY T,2022-01-01,2022-01-31,CHIEF OF STAFF,-1107.22,2022
,2022 OFFICE OF THE SPEAKER,1,GENERAL EXPENDITURES,PERSONNEL COMPENSATION,DETAIL,   ,   ,   ,MCCULLOUGH MARY T,2022-01-01,2022-03-31,CHIEF OF STAFF,49824.99,2022
,2022 OFFICE OF THE SPEAKER,1,GENERAL EXPENDITURES,PERSONNEL COMPENSATION,DETAIL,   ,   ,   ,MCCULLOUGH WILLIAM J,2022-01-01,2022-01-31,DEPUTY PRESS SECRETARY,-347.22,2022
,2022 OFFICE OF THE SPEAKER,1,GENERAL EXPENDITURES,PERSONNEL COMPENSATION,DETAIL,   ,   ,   ,MCCULLOUGH WILLIAM J,2022-01-01,2022-03-31,DEPUTY PRESS SECRETARY,15624.99,2022
,2022 OFFICE OF THE SPEAKER,1,GENERAL EXPENDITURES,PERSONNEL COMPENSATION,DETAIL,   ,   ,   ,MELTZER RICHARD,2022-01-01,2022-01-31,POLICY DIRECTOR,-1107.22,2022
,2022 OFFICE OF THE SPEAKER,1,GENERAL EXPENDITURES,PERSONNEL COMPENSATION,DETAIL,   ,   ,   ,MELTZER RICHARD,2022-01-01,2022-03-31,POLICY DIRECTOR,49824.99,2022
,2022 OFFICE OF THE SPEAKER,1,GENERAL EXPENDITURES,PERSONNEL COMPENSATION,DETAIL,   ,   ,   ,MITCHELL TOUSSAINT V.,2022-01-01,2022-01-31,STAFF ASSISTANT,-222.22,2022
,2022 OFFICE OF THE SPEAKER,1,GENERAL EXPENDITURES,PERSONNEL COMPENSATION,DETAIL,   ,   ,   ,MITCHELL TOUSSAINT V.,2022-01-01,2022-03-31,STAFF ASSISTANT,10416.66,2022
,2022 OFFICE OF THE SPEAKER,1,GENERAL EXPENDITURES,PERSONNEL COMPENSATION,DETAIL,   ,   ,   ,MITCHELL TOUSSAINT V.,2022-01-01,2022-02-28,STAFF ASSISTANT (OVERTIME),1932.67,2022
,2022 OFFICE OF THE SPEAKER,1,GENERAL EXPENDITURES,PERSONNEL COMPENSATION,DETAIL,   ,   ,   ,MONGE KATHERINE S,2022-01-01,2022-01-31,SENIOR COUNSEL,-1055.56,2022
,2022 OFFICE OF THE SPEAKER,1,GENERAL EXPENDITURES,PERSONNEL COMPENSATION,DETAIL,   ,   ,   ,MONGE KATHERINE S,2022-01-01,2022-03-31,SENIOR COUNSEL,47499.99,2022
,2022 OFFICE OF THE SPEAKER,1,GENERAL EXPENDITURES,PERSONNEL COMPENSATION,DETAIL,   ,   ,   ,PARKER WYNDEE R.,2022-01-01,2022-01-31,NATIONAL SECURITY ADVISOR,-1107.22,2022
,2022 OFFICE OF THE SPEAKER,1,GENERAL EXPENDITURES,PERSONNEL COMPENSATION,DETAIL,   ,   ,   ,PARKER WYNDEE R.,2022-01-01,2022-03-31,NATIONAL SECURITY ADVISOR,49824.99,2022
,2022 OFFICE OF THE SPEAKER,1,GENERAL EXPENDITURES,PERSONNEL COMPENSATION,DETAIL,   ,   ,   ,PAZ JR CARLOS,2022-01-01,2022-01-31,SENIOR COMMUNICATIONS ADVISOR,-805.56,2022
,2022 OFFICE OF THE SPEAKER,1,GENERAL EXPENDITURES,PERSONNEL COMPENSATION,DETAIL,   ,   ,   ,PAZ JR CARLOS,2022-01-01,2022-03-31,SENIOR COMMUNICATIONS ADVISOR,36249.99,2022
,2022 OFFICE OF THE SPEAKER,1,GENERAL EXPENDITURES,PERSONNEL COMPENSATION,DETAIL,   ,   ,   ,PRESLEY JESSICA A,2022-01-01,2022-01-31,DIRECTOR OF DIGITAL STRATEGY,-555.56,2022
,2022 OFFICE OF THE SPEAKER,1,GENERAL EXPENDITURES,PERSONNEL COMPENSATION,DETAIL,   ,   ,   ,PRESLEY JESSICA A,2022-01-01,2022-03-31,DIRECTOR OF DIGITAL STRATEGY,24999.99,2022
,2022 OFFICE OF THE SPEAKER,1,GENERAL EXPENDITURES,PERSONNEL COMPENSATION,DETAIL,   ,   ,   ,PRICE REVA B.,2022-01-01,2022-01-31,OUTREACH DIR & SENIOR ADVISOR,-859.43,2022
,2022 OFFICE OF THE SPEAKER,1,GENERAL EXPENDITURES,PERSONNEL COMPENSATION,DETAIL,   ,   ,   ,PRICE REVA B.,2022-01-01,2022-03-31,OUTREACH DIR & SENIOR ADVISOR,38674.5,2022
,2022 OFFICE OF THE SPEAKER,1,GENERAL EXPENDITURES,PERSONNEL COMPENSATION,DETAIL,   ,   ,   ,PRIMUS WENDELL E.,2022-01-01,2022-01-31,SR HLTH/BUDGET POLICY ADV,-1107.22,2022
,2022 OFFICE OF THE SPEAKER,1,GENERAL EXPENDITURES,PERSONNEL COMPENSATION,DETAIL,   ,   ,   ,PRIMUS WENDELL E.,2022-01-01,2022-03-31,SR HLTH/BUDGET POLICY ADV,49824.99,2022
,2022 OFFICE OF THE SPEAKER,1,GENERAL EXPENDITURES,PERSONNEL COMPENSATION,DETAIL,   ,   ,   ,REED MICHAEL D,2022-01-01,2022-01-31,DIR OF MBR SVCS & SENIOR ADV,-888.89,2022
,2022 OFFICE OF THE SPEAKER,1,GENERAL EXPENDITURES,PERSONNEL COMPENSATION,DETAIL,   ,   ,   ,REED MICHAEL D,2022-01-01,2022-03-31,DIR OF MBR SVCS & SENIOR ADV,39999.99,2022
,2022 OFFICE OF THE SPEAKER,1,GENERAL EXPENDITURES,PERSONNEL COMPENSATION,DETAIL,   ,   ,   ,RISTUCCIA ISABELLA M.,2022-01-01,2022-01-31,PRESS ASSISTANT,-222.22,2022
,2022 OFFICE OF THE SPEAKER,1,GENERAL EXPENDITURES,PERSONNEL COMPENSATION,DETAIL,   ,   ,   ,RISTUCCIA ISABELLA M.,2022-01-01,2022-03-31,PRESS ASSISTANT,10416.66,2022
,2022 OFFICE OF THE SPEAKER,1,GENERAL EXPENDITURES,PERSONNEL COMPENSATION,DETAIL,   ,   ,   ,RISTUCCIA ISABELLA M.,2022-01-01,2022-02-28,PRESS ASSISTANT (OVERTIME),4391.78,2022
,2022 OFFICE OF THE SPEAKER,1,GENERAL EXPENDITURES,PERSONNEL COMPENSATION,DETAIL,   ,   ,   ,RUDD DIANA,2022-01-01,2022-01-31,MEMBER SERVICES DIR/COUNSEL,-666.67,2022
,2022 OFFICE OF THE SPEAKER,1,GENERAL EXPENDITURES,PERSONNEL COMPENSATION,DETAIL,   ,   ,   ,RUDD DIANA,2022-01-01,2022-03-31,MEMBER SERVICES DIR/COUNSEL,30000,2022
,2022 OFFICE OF THE SPEAKER,1,GENERAL EXPENDITURES,PERSONNEL COMPENSATION,DETAIL,   ,   ,   ,RUIZ XENIA F,2022-01-01,2022-01-31,OUTREACH DIRECTOR,-722.22,2022
,2022 OFFICE OF THE SPEAKER,1,GENERAL EXPENDITURES,PERSONNEL COMPENSATION,DETAIL,   ,   ,   ,RUIZ XENIA F,2022-01-01,2022-03-31,OUTREACH DIRECTOR,32499.99,2022
,2022 OFFICE OF THE SPEAKER,1,GENERAL EXPENDITURES,PERSONNEL COMPENSATION,DETAIL,   ,   ,   ,RUSSELL MAYA A,2022-01-01,2022-01-31,DIGITAL DIRECTOR,-311.67,2022
,2022 OFFICE OF THE SPEAKER,1,GENERAL EXPENDITURES,PERSONNEL COMPENSATION,DETAIL,   ,   ,   ,RUSSELL MAYA A,2022-01-01,2022-03-31,DIGITAL DIRECTOR,14275,2022
,2022 OFFICE OF THE SPEAKER,1,GENERAL EXPENDITURES,PERSONNEL COMPENSATION,DETAIL,   ,   ,   ,SCANNELL BROOKE A,2022-01-01,2022-01-31,SENIOR POLICY ADVISOR,-410.56,2022
,2022 OFFICE OF THE SPEAKER,1,GENERAL EXPENDITURES,PERSONNEL COMPENSATION,DETAIL,   ,   ,   ,SCANNELL BROOKE A,2022-01-01,2022-03-31,SENIOR POLICY ADVISOR,18474.99,2022
,2022 OFFICE OF THE SPEAKER,1,GENERAL EXPENDITURES,PERSONNEL COMPENSATION,DETAIL,   ,   ,   ,SHAIQ SAMAH N.,2022-01-01,2022-01-31,SENIOR PRESS ASSISTANT,-236.11,2022
,2022 OFFICE OF THE SPEAKER,1,GENERAL EXPENDITURES,PERSONNEL COMPENSATION,DETAIL,   ,   ,   ,SHAIQ SAMAH N.,2022-01-01,2022-03-31,SENIOR PRESS ASSISTANT,11041.67,2022
,2022 OFFICE OF THE SPEAKER,1,GENERAL EXPENDITURES,PERSONNEL COMPENSATION,DETAIL,   ,   ,   ,SHAIQ SAMAH N.,2022-01-01,2022-02-28,SENIOR PRESS ASSISTANT (OVERTIME),6895.95,2022
,2022 OFFICE OF THE SPEAKER,1,GENERAL EXPENDITURES,PERSONNEL COMPENSATION,DETAIL,   ,   ,   ,SMITH KELSEY L,2022-01-01,2022-01-31,DIR. OF SCHEDULING & ADVANCE,-472.22,2022
,2022 OFFICE OF THE SPEAKER,1,GENERAL EXPENDITURES,PERSONNEL COMPENSATION,DETAIL,   ,   ,   ,SMITH KELSEY L,2022-01-01,2022-03-31,DIR. OF SCHEDULING & ADVANCE,21249.99,2022
,2022 OFFICE OF THE SPEAKER,1,GENERAL EXPENDITURES,PERSONNEL COMPENSATION,DETAIL,   ,   ,   ,SMITH SHANE T,2022-01-01,2022-01-31,SPECIAL ASST TO THE SPEAKER,-555.56,2022
,2022 OFFICE OF THE SPEAKER,1,GENERAL EXPENDITURES,PERSONNEL COMPENSATION,DETAIL,   ,   ,   ,SMITH SHANE T,2022-01-01,2022-03-31,SPECIAL ASST TO THE SPEAKER,24999.99,2022
,2022 OFFICE OF THE SPEAKER,1,GENERAL EXPENDITURES,PERSONNEL COMPENSATION,DETAIL,   ,   ,   ,SOENKSEN AMY C,2022-01-01,2022-01-31,DIR INTERGOV AFFAIRS MBR/SCVS,-777.78,2022
,2022 OFFICE OF THE SPEAKER,1,GENERAL EXPENDITURES,PERSONNEL COMPENSATION,DETAIL,   ,   ,   ,SOENKSEN AMY C,2022-01-01,2022-03-31,DIR INTERGOV AFFAIRS MBR/SCVS,35000.01,2022
,2022 OFFICE OF THE SPEAKER,1,GENERAL EXPENDITURES,PERSONNEL COMPENSATION,DETAIL,   ,   ,   ,SONG ANNA J.,2022-01-01,2022-01-31,OUTREACH ASSISTANT,-280.56,2022
,2022 OFFICE OF THE SPEAKER,1,GENERAL EXPENDITURES,PERSONNEL COMPENSATION,DETAIL,   ,   ,   ,SONG ANNA J.,2022-01-01,2022-03-31,OUTREACH ASSISTANT,12624.99,2022
,2022 OFFICE OF THE SPEAKER,1,GENERAL EXPENDITURES,PERSONNEL COMPENSATION,DETAIL,   ,   ,   ,STERN KEITH L.,2022-01-01,2022-01-31,DIRECTOR OF FLOOR OPERATIONS,-1107.22,2022
,2022 OFFICE OF THE SPEAKER,1,GENERAL EXPENDITURES,PERSONNEL COMPENSATION,DETAIL,   ,   ,   ,STERN KEITH L.,2022-01-01,2022-03-31,DIRECTOR OF FLOOR OPERATIONS,49824.99,2022
,2022 OFFICE OF THE SPEAKER,1,GENERAL EXPENDITURES,PERSONNEL COMPENSATION,DETAIL,   ,   ,   ,TECKLENBURG MICHAEL H.,2022-01-01,2022-01-31,COUNSEL,-788.89,2022
,2022 OFFICE OF THE SPEAKER,1,GENERAL EXPENDITURES,PERSONNEL COMPENSATION,DETAIL,   ,   ,   ,TECKLENBURG MICHAEL H.,2022-01-01,2022-03-31,COUNSEL,37416.66,2022
,2022 OFFICE OF THE SPEAKER,1,GENERAL EXPENDITURES,PERSONNEL COMPENSATION,DETAIL,   ,   ,   ,URRY ALEXANDER M,2022-01-01,2022-01-31,POLICY ADVISOR,-444.44,2022
,2022 OFFICE OF THE SPEAKER,1,GENERAL EXPENDITURES,PERSONNEL COMPENSATION,DETAIL,   ,   ,   ,URRY ALEXANDER M,2022-01-01,2022-03-31,POLICY ADVISOR,20000.01,2022
,2022 OFFICE OF THE SPEAKER,1,GENERAL EXPENDITURES,PERSONNEL COMPENSATION,DETAIL,   ,   ,   ,VERMILYEA SYDNEY S.,2022-01-01,2022-01-31,DEPUTY SCHEDULER,-361.11,2022
,2022 OFFICE OF THE SPEAKER,1,GENERAL EXPENDITURES,PERSONNEL COMPENSATION,DETAIL,   ,   ,   ,VERMILYEA SYDNEY S.,2022-01-01,2022-02-28,DEPUTY SCHEDULER,10833.34,2022
,2022 OFFICE OF THE SPEAKER,1,GENERAL EXPENDITURES,PERSONNEL COMPENSATION,DETAIL,   ,   ,   ,VERMILYEA SYDNEY S.,2022-03-01,2022-03-31,DPTY DIR SCHED/ADVANCE ASSOC,5833.33,2022
,2022 OFFICE OF THE SPEAKER,1,GENERAL EXPENDITURES,PERSONNEL COMPENSATION,DETAIL,   ,   ,   ,WEBER JOHN M.,2022-01-20,2022-03-31,DEPUTY DIR OF SPEECHWRITING,12819.45,2022
,2022 OFFICE OF THE SPEAKER,1,GENERAL EXPENDITURES,PERSONNEL COMPENSATION,DETAIL,   ,   ,   ,WOLTERS KATE,2022-01-01,2022-01-31,DIRECTOR OF SPECIAL EVENTS,-55.56,2022
,2022 OFFICE OF THE SPEAKER,1,GENERAL EXPENDITURES,PERSONNEL COMPENSATION,DETAIL,   ,   ,   ,WOLTERS KATE,2022-01-01,2022-03-31,DIRECTOR OF SPECIAL EVENTS,2499.99,2022
,2022 OFFICE OF THE SPEAKER,1,GENERAL EXPENDITURES,PERSONNEL COMPENSATION,SUBTOTAL,   ,   ,   ,   ,   ,   ,PERSONNEL COMPENSATION TOTALS:,1724893.95,2022
,2022 OFFICE OF THE SPEAKER,1,GENERAL EXPENDITURES,TRAVEL,DETAIL,2022-02-28,AP,1526128,CITIBANK GOV CARD SERVICE,2022-01-07,2022-01-08,AIRFARE COMMERCIAL TRANSPORT,327.19,2022
,2022 OFFICE OF THE SPEAKER,1,GENERAL EXPENDITURES,TRAVEL,DETAIL,2022-02-28,AP,1526128,CITIBANK GOV CARD SERVICE,2022-01-07,2022-01-08,LODGING,250.23,2022
,2022 OFFICE OF THE SPEAKER,1,GENERAL EXPENDITURES,TRAVEL,DETAIL,2022-02-28,AP,1526128,CITIBANK GOV CARD SERVICE,2022-01-07,2022-01-07,MEALS,27.13,2022
,2022 OFFICE OF THE SPEAKER,1,GENERAL EXPENDITURES,TRAVEL,DETAIL,2022-02-28,AP,1526128,CITIBANK GOV CARD SERVICE,2022-01-07,2022-01-07,WI-FI ON TRAVEL,58,2022
,2022 OFFICE OF THE SPEAKER,1,GENERAL EXPENDITURES,TRAVEL,DETAIL,2022-02-28,AP,1526128,CITIBANK GOV CARD SERVICE,2022-01-07,2022-01-07,TAXI/RIDE SHARE,64.99,2022
,2022 OFFICE OF THE SPEAKER,1,GENERAL EXPENDITURES,TRAVEL,DETAIL,2022-02-28,AP,1526128,CITIBANK GOV CARD SERVICE,2022-01-08,2022-01-08,TAXI/RIDE SHARE,28.14,2022
,2022 OFFICE OF THE SPEAKER,1,GENERAL EXPENDITURES,TRAVEL,DETAIL,2022-03-03,AP,1530356,BLANKENSHIP ALLISON W.,2022-02-02,2022-02-08,TAXI/RIDE SHARE,56.78,2022
,2022 OFFICE OF THE SPEAKER,1,GENERAL EXPENDITURES,TRAVEL,DETAIL,2022-03-03,AP,1532226,SHAIQ SAMAH N.,2022-01-06,2022-01-28,TAXI/RIDE SHARE,44.9,2022
,2022 OFFICE OF THE SPEAKER,1,GENERAL EXPENDITURES,TRAVEL,DETAIL,2022-03-15,AP,1534723,BLANKENSHIP ALLISON W.,2022-03-02,2022-03-02,TAXI/RIDE SHARE,14.77,2022
,2022 OFFICE OF THE SPEAKER,1,GENERAL EXPENDITURES,TRAVEL,DETAIL,2022-03-16,AP,1534674,CITIBANK GOV CARD SERVICE,2022-02-10,2022-02-13,NON-AIRFARE COMMERCIAL TRANSP,335,2022
,2022 OFFICE OF THE SPEAKER,1,GENERAL EXPENDITURES,TRAVEL,DETAIL,2022-03-16,AP,1534674,CITIBANK GOV CARD SERVICE,2022-02-09,2022-02-13,LODGING,1039.83,2022
,2022 OFFICE OF THE SPEAKER,1,GENERAL EXPENDITURES,TRAVEL,DETAIL,2022-03-16,AP,1534714,CITIBANK GOV CARD SERVICE,2022-02-04,2022-02-04,AIRFARE COMMERCIAL TRANSPORT,128.6,2022
,2022 OFFICE OF THE SPEAKER,1,GENERAL EXPENDITURES,TRAVEL,DETAIL,2022-03-16,AP,1534714,CITIBANK GOV CARD SERVICE,2022-02-06,2022-02-06,AIRFARE COMMERCIAL TRANSPORT,360.6,2022
,2022 OFFICE OF THE SPEAKER,1,GENERAL EXPENDITURES,TRAVEL,DETAIL,2022-03-16,AP,1534714,CITIBANK GOV CARD SERVICE,2022-02-04,2022-02-05,LODGING,410.9,2022
,2022 OFFICE OF THE SPEAKER,1,GENERAL EXPENDITURES,TRAVEL,DETAIL,2022-03-16,AP,1534714,CITIBANK GOV CARD SERVICE,2022-02-05,2022-02-06,LODGING,303.03,2022
,2022 OFFICE OF THE SPEAKER,1,GENERAL EXPENDITURES,TRAVEL,DETAIL,2022-03-16,AP,1534714,CITIBANK GOV CARD SERVICE,2022-02-05,2022-02-05,MEALS,122.89,2022
,2022 OFFICE OF THE SPEAKER,1,GENERAL EXPENDITURES,TRAVEL,DETAIL,2022-03-16,AP,1534714,CITIBANK GOV CARD SERVICE,2022-02-06,2022-02-06,MEALS,44.35,2022
,2022 OFFICE OF THE SPEAKER,1,GENERAL EXPENDITURES,TRAVEL,DETAIL,2022-03-16,AP,1534714,CITIBANK GOV CARD SERVICE,2022-02-06,2022-02-06,TAXI/RIDE SHARE,26.25,2022
,2022 OFFICE OF THE SPEAKER,1,GENERAL EXPENDITURES,TRAVEL,DETAIL,2022-03-16,AP,1535141,VERMILYEA SYDNEY S.,2022-01-12,2022-01-31,TAXI/RIDE SHARE,103.84,2022
,2022 OFFICE OF THE SPEAKER,1,GENERAL EXPENDITURES,TRAVEL,DETAIL,2022-03-31,AP,1542802,CITIBANK GOV CARD SERVICE,2022-02-04,2022-02-06,AIRFARE COMMERCIAL TRANSPORT,661.19,2022
,2022 OFFICE OF THE SPEAKER,1,GENERAL EXPENDITURES,TRAVEL,DETAIL,2022-03-31,AP,1542802,CITIBANK GOV CARD SERVICE,2022-02-09,2022-02-11,AIRFARE COMMERCIAL TRANSPORT,187,2022
,2022 OFFICE OF THE SPEAKER,1,GENERAL EXPENDITURES,TRAVEL,DETAIL,2022-03-31,AP,1542802,CITIBANK GOV CARD SERVICE,2022-02-04,2022-02-05,LODGING,142.74,2022
,2022 OFFICE OF THE SPEAKER,1,GENERAL EXPENDITURES,TRAVEL,DETAIL,2022-03-31,AP,1542802,CITIBANK GOV CARD SERVICE,2022-02-05,2022-02-06,LODGING,303.03,2022
,2022 OFFICE OF THE SPEAKER,1,GENERAL EXPENDITURES,TRAVEL,DETAIL,2022-03-31,AP,1542802,CITIBANK GOV CARD SERVICE,2022-02-09,2022-02-10,LODGING,204.2,2022
,2022 OFFICE OF THE SPEAKER,1,GENERAL EXPENDITURES,TRAVEL,DETAIL,2022-03-31,AP,1542802,CITIBANK GOV CARD SERVICE,2022-02-10,2022-02-11,LODGING,348.61,2022
,2022 OFFICE OF THE SPEAKER,1,GENERAL EXPENDITURES,TRAVEL,DETAIL,2022-03-31,AP,1542802,CITIBANK GOV CARD SERVICE,2022-02-04,2022-02-04,MEALS,35.42,2022
,2022 OFFICE OF THE SPEAKER,1,GENERAL EXPENDITURES,TRAVEL,DETAIL,2022-03-31,AP,1542802,CITIBANK GOV CARD SERVICE,2022-02-05,2022-02-05,MEALS,59.8,2022
,2022 OFFICE OF THE SPEAKER,1,GENERAL EXPENDITURES,TRAVEL,DETAIL,2022-03-31,AP,1542802,CITIBANK GOV CARD SERVICE,2022-02-06,2022-02-06,MEALS,13.74,2022
,2022 OFFICE OF THE SPEAKER,1,GENERAL EXPENDITURES,TRAVEL,DETAIL,2022-03-31,AP,1542802,CITIBANK GOV CARD SERVICE,2022-02-09,2022-02-09,MEALS,60.25,2022
,2022 OFFICE OF THE SPEAKER,1,GENERAL EXPENDITURES,TRAVEL,DETAIL,2022-03-31,AP,1542802,CITIBANK GOV CARD SERVICE,2022-02-10,2022-02-10,MEALS,8.37,2022
,2022 OFFICE OF THE SPEAKER,1,GENERAL EXPENDITURES,TRAVEL,DETAIL,2022-03-31,AP,1542802,CITIBANK GOV CARD SERVICE,2022-02-04,2022-02-04,WI-FI ON TRAVEL,16,2022
,2022 OFFICE OF THE SPEAKER,1,GENERAL EXPENDITURES,TRAVEL,DETAIL,2022-03-31,AP,1542802,CITIBANK GOV CARD SERVICE,2022-02-04,2022-02-04,TAXI/RIDE SHARE,72.71,2022
,2022 OFFICE OF THE SPEAKER,1,GENERAL EXPENDITURES,TRAVEL,DETAIL,2022-03-31,AP,1542802,CITIBANK GOV CARD SERVICE,2022-02-05,2022-02-05,TAXI/RIDE SHARE,19.47,2022
,2022 OFFICE OF THE SPEAKER,1,GENERAL EXPENDITURES,TRAVEL,DETAIL,2022-03-31,AP,1542802,CITIBANK GOV CARD SERVICE,2022-02-06,2022-02-06,TAXI/RIDE SHARE,55.89,2022
,2022 OFFICE OF THE SPEAKER,1,GENERAL EXPENDITURES,TRAVEL,DETAIL,2022-03-31,AP,1542802,CITIBANK GOV CARD SERVICE,2022-02-09,2022-02-09,TAXI/RIDE SHARE,29.53,2022
,2022 OFFICE OF THE SPEAKER,1,GENERAL EXPENDITURES,TRAVEL,DETAIL,2022-03-31,AP,1542802,CITIBANK GOV CARD SERVICE,2022-02-10,2022-02-10,TAXI/RIDE SHARE,12.86,2022
,2022 OFFICE OF THE SPEAKER,1,GENERAL EXPENDITURES,TRAVEL,DETAIL,2022-03-31,AP,1542802,CITIBANK GOV CARD SERVICE,2022-02-11,2022-02-11,TAXI/RIDE SHARE,23.78,2022
,2022 OFFICE OF THE SPEAKER,1,GENERAL EXPENDITURES,TRAVEL,SUBTOTAL,   ,   ,   ,   ,   ,   ,TRAVEL TOTALS:,6002.01,2022
,2022 OFFICE OF THE SPEAKER,1,GENERAL EXPENDITURES,RENT  COMMUNICATION  UTILITIES,DETAIL,2022-01-25,GL,MED0112472, ,2022-01-20,2022-01-20,HIR GRAPHICS (TRANSFER),50,2022
,2022 OFFICE OF THE SPEAKER,1,GENERAL EXPENDITURES,RENT  COMMUNICATION  UTILITIES,DETAIL,2022-02-02,AP,1522518,HELLO DIRECT INC,2022-01-31,2022-01-31,FRANKABLE TELECOM/TELETOWNHALL,612.89,2022
,2022 OFFICE OF THE SPEAKER,1,GENERAL EXPENDITURES,RENT  COMMUNICATION  UTILITIES,DETAIL,2022-02-08,AP,1522804,KISKER GRAYSON S.,2022-01-26,2022-01-26,POSTAGE / COURIER / BOX RENTAL,593.88,2022
,2022 OFFICE OF THE SPEAKER,1,GENERAL EXPENDITURES,RENT  COMMUNICATION  UTILITIES,DETAIL,2022-02-24,GL,EMS0113247, ,2022-01-01,2022-01-31,DC TELECOM EQUIP (TRANSFER),228,2022
,2022 OFFICE OF THE SPEAKER,1,GENERAL EXPENDITURES,RENT  COMMUNICATION  UTILITIES,DETAIL,2022-02-24,GL,EMS0113247, ,2022-01-01,2022-01-31,DC TELECOM SERV (TRANSFER),1227.5,2022
,2022 OFFICE OF THE SPEAKER,1,GENERAL EXPENDITURES,RENT  COMMUNICATION  UTILITIES,DETAIL,2022-02-24,GL,EMS0113247, ,2022-01-01,2022-01-31,DC TELECOM TOLLS (TRANSFER),10040.71,2022
,2022 OFFICE OF THE SPEAKER,1,GENERAL EXPENDITURES,RENT  COMMUNICATION  UTILITIES,DETAIL,2022-02-25,GL,MED0113284, ,2022-02-03,2022-02-18,HIR GRAPHICS (TRANSFER),154,2022
,2022 OFFICE OF THE SPEAKER,1,GENERAL EXPENDITURES,RENT  COMMUNICATION  UTILITIES,DETAIL,2022-03-03,AP,1530355,FEDEX,2022-01-07,2022-01-07,POSTAGE / COURIER / BOX RENTAL,31.13,2022
,2022 OFFICE OF THE SPEAKER,1,GENERAL EXPENDITURES,RENT  COMMUNICATION  UTILITIES,DETAIL,2022-03-08,AP,1532219,JULIO OBSCURA,2022-02-01,2022-02-28,RECORDING (OUTSIDE),6000,2022
,2022 OFFICE OF THE SPEAKER,1,GENERAL EXPENDITURES,RENT  COMMUNICATION  UTILITIES,DETAIL,2022-03-16,AP,1535091,CITIBANK GOV CARD SERVICE,2022-02-10,2022-02-10,TEMPORARY SPACE RENTAL,786.45,2022
,2022 OFFICE OF THE SPEAKER,1,GENERAL EXPENDITURES,RENT  COMMUNICATION  UTILITIES,DETAIL,2022-03-23,GL,EMS0113952, ,2022-02-01,2022-02-28,DC TELECOM EQUIP (TRANSFER),420,2022
,2022 OFFICE OF THE SPEAKER,1,GENERAL EXPENDITURES,RENT  COMMUNICATION  UTILITIES,DETAIL,2022-03-23,GL,EMS0113952, ,2022-02-01,2022-02-28,DC TELECOM SERV (TRANSFER),1227.5,2022
,2022 OFFICE OF THE SPEAKER,1,GENERAL EXPENDITURES,RENT  COMMUNICATION  UTILITIES,DETAIL,2022-03-23,GL,EMS0113952, ,2022-02-01,2022-02-28,DC TELECOM TOLLS (TRANSFER),9167.89,2022
,2022 OFFICE OF THE SPEAKER,1,GENERAL EXPENDITURES,RENT  COMMUNICATION  UTILITIES,DETAIL,2022-03-28,AP,1542459,FEDEX,2022-02-19,2022-02-19,POSTAGE / COURIER / BOX RENTAL,8.97,2022
,2022 OFFICE OF THE SPEAKER,1,GENERAL EXPENDITURES,RENT  COMMUNICATION  UTILITIES,DETAIL,2022-03-28,AP,1542461,FEDEX,2022-03-02,2022-03-02,POSTAGE / COURIER / BOX RENTAL,7.25,2022
,2022 OFFICE OF THE SPEAKER,1,GENERAL EXPENDITURES,RENT  COMMUNICATION  UTILITIES,DETAIL,2022-03-28,AP,1542464,FEDEX,2022-02-15,2022-02-15,POSTAGE / COURIER / BOX RENTAL,9.28,2022
,2022 OFFICE OF THE SPEAKER,1,GENERAL EXPENDITURES,RENT  COMMUNICATION  UTILITIES,DETAIL,2022-03-29,GL,MED0114088, ,2022-03-02,2022-03-16,HIR GRAPHICS (TRANSFER),158,2022
,2022 OFFICE OF THE SPEAKER,1,GENERAL EXPENDITURES,RENT  COMMUNICATION  UTILITIES,SUBTOTAL,   ,   ,   ,   ,   ,   ,RENT  COMMUNICATION  UTILITIES TOTALS:,30723.45,2022
,2022 OFFICE OF THE SPEAKER,1,GENERAL EXPENDITURES,PRINTING AND REPRODUCTION,DETAIL,2022-03-03,AP,1530351,ACCURATE WORD,2022-02-08,2022-02-08,NON-FRANKABLE PRINTING & REPRO,43,2022
,2022 OFFICE OF THE SPEAKER,1,GENERAL EXPENDITURES,PRINTING AND REPRODUCTION,DETAIL,2022-03-03,AP,1530353,ACCURATE WORD,2022-02-01,2022-02-01,NON-FRANKABLE PRINTING & REPRO,129,2022
,2022 OFFICE OF THE SPEAKER,1,GENERAL EXPENDITURES,PRINTING AND REPRODUCTION,DETAIL,2022-03-03,AP,1530699,CITI PCARD-FACEBK C6E2DBB2M2,2022-01-14,2022-01-16,ADVERTISEMENTS,750,2022
,2022 OFFICE OF THE SPEAKER,1,GENERAL EXPENDITURES,PRINTING AND REPRODUCTION,DETAIL,2022-03-03,AP,1530699,CITI PCARD-FACEBK EZ32SAK2M2,2022-01-02,2022-01-13,ADVERTISEMENTS,750,2022
,2022 OFFICE OF THE SPEAKER,1,GENERAL EXPENDITURES,PRINTING AND REPRODUCTION,DETAIL,2022-03-03,AP,1530699,CITI PCARD-FACEBK GM6KACTZL2,2022-01-16,2022-01-26,ADVERTISEMENTS,750,2022
,2022 OFFICE OF THE SPEAKER,1,GENERAL EXPENDITURES,PRINTING AND REPRODUCTION,DETAIL,2022-03-03,AP,1530699,CITI PCARD-FACEBK J5GETAK2M2,2022-01-12,2022-01-14,ADVERTISEMENTS,750,2022
,2022 OFFICE OF THE SPEAKER,1,GENERAL EXPENDITURES,PRINTING AND REPRODUCTION,DETAIL,2022-03-03,AP,1530699,CITI PCARD-FACEBK PGF4CBK2M2,2022-01-26,2022-01-27,ADVERTISEMENTS,750,2022
,2022 OFFICE OF THE SPEAKER,1,GENERAL EXPENDITURES,PRINTING AND REPRODUCTION,DETAIL,2022-03-03,AP,1530699,CITI PCARD-FACEBK SK6UUAK2M2,2022-01-14,2022-01-15,ADVERTISEMENTS,750,2022
,2022 OFFICE OF THE SPEAKER,1,GENERAL EXPENDITURES,PRINTING AND REPRODUCTION,DETAIL,2022-03-03,AP,1530699,CITI PCARD-FACEBK VTRK6CT2M2,2022-01-27,2022-01-27,ADVERTISEMENTS,750,2022
,2022 OFFICE OF THE SPEAKER,1,GENERAL EXPENDITURES,PRINTING AND REPRODUCTION,DETAIL,2022-03-03,AP,1530699,CITI PCARD-FACEBK ZCY8PAXZL2,2022-01-26,2022-01-27,ADVERTISEMENTS,750,2022
,2022 OFFICE OF THE SPEAKER,1,GENERAL EXPENDITURES,PRINTING AND REPRODUCTION,DETAIL,2022-03-17,AP,1536019,CITI PCARD-FACEBK 4JLE4CF2M2,2022-02-04,2022-02-19,ADVERTISEMENTS,750,2022
,2022 OFFICE OF THE SPEAKER,1,GENERAL EXPENDITURES,PRINTING AND REPRODUCTION,DETAIL,2022-03-17,AP,1536019,CITI PCARD-FACEBK 7J5VWAXZL2,2022-02-03,2022-02-03,ADVERTISEMENTS,750,2022
,2022 OFFICE OF THE SPEAKER,1,GENERAL EXPENDITURES,PRINTING AND REPRODUCTION,DETAIL,2022-03-17,AP,1536019,CITI PCARD-FACEBK 8APNKC32M2,2022-02-19,2022-02-20,ADVERTISEMENTS,750,2022
,2022 OFFICE OF THE SPEAKER,1,GENERAL EXPENDITURES,PRINTING AND REPRODUCTION,DETAIL,2022-03-17,AP,1536019,CITI PCARD-FACEBK ACE63CB2M2,2022-02-03,2022-02-04,ADVERTISEMENTS,750,2022
,2022 OFFICE OF THE SPEAKER,1,GENERAL EXPENDITURES,PRINTING AND REPRODUCTION,DETAIL,2022-03-17,AP,1536019,CITI PCARD-FACEBK CH9WDBXZL2,2022-02-19,2022-02-20,ADVERTISEMENTS,750,2022
,2022 OFFICE OF THE SPEAKER,1,GENERAL EXPENDITURES,PRINTING AND REPRODUCTION,DETAIL,2022-03-17,AP,1536019,CITI PCARD-FACEBK CPM8KCB2M2,2022-02-21,2022-02-22,ADVERTISEMENTS,750,2022
,2022 OFFICE OF THE SPEAKER,1,GENERAL EXPENDITURES,PRINTING AND REPRODUCTION,DETAIL,2022-03-17,AP,1536019,CITI PCARD-FACEBK CTCFTCPZL2,2022-02-19,2022-02-21,ADVERTISEMENTS,750,2022
,2022 OFFICE OF THE SPEAKER,1,GENERAL EXPENDITURES,PRINTING AND REPRODUCTION,DETAIL,2022-03-17,AP,1536019,CITI PCARD-FACEBK JXK75CP2M2,2022-02-04,2022-02-04,ADVERTISEMENTS,750,2022
,2022 OFFICE OF THE SPEAKER,1,GENERAL EXPENDITURES,PRINTING AND REPRODUCTION,DETAIL,2022-03-17,AP,1536019,CITI PCARD-FACEBK ML9SPBF2M2,2022-02-04,2022-02-05,ADVERTISEMENTS,750,2022
,2022 OFFICE OF THE SPEAKER,1,GENERAL EXPENDITURES,PRINTING AND REPRODUCTION,DETAIL,2022-03-17,AP,1536019,CITI PCARD-FACEBK N74CJCB2M2,2022-02-20,2022-02-21,ADVERTISEMENTS,750,2022
,2022 OFFICE OF THE SPEAKER,1,GENERAL EXPENDITURES,PRINTING AND REPRODUCTION,DETAIL,2022-03-17,AP,1536019,CITI PCARD-FACEBK QESR6CF2M2,2022-02-21,2022-02-22,ADVERTISEMENTS,750,2022
,2022 OFFICE OF THE SPEAKER,1,GENERAL EXPENDITURES,PRINTING AND REPRODUCTION,DETAIL,2022-03-17,AP,1536019,CITI PCARD-FACEBK QYEX7CPZL2,2022-01-27,2022-01-28,ADVERTISEMENTS,589.6,2022
,2022 OFFICE OF THE SPEAKER,1,GENERAL EXPENDITURES,PRINTING AND REPRODUCTION,DETAIL,2022-03-17,AP,1536019,CITI PCARD-FACEBK RJTUKCTZL2,2022-02-04,2022-02-04,ADVERTISEMENTS,750,2022
,2022 OFFICE OF THE SPEAKER,1,GENERAL EXPENDITURES,PRINTING AND REPRODUCTION,DETAIL,2022-03-17,AP,1536019,CITI PCARD-FACEBK TD8RKCTZL2,2022-02-04,2022-02-04,ADVERTISEMENTS,750,2022
,2022 OFFICE OF THE SPEAKER,1,GENERAL EXPENDITURES,PRINTING AND REPRODUCTION,DETAIL,2022-03-17,AP,1536019,CITI PCARD-FACEBK VT2XFBF2M2,2022-01-26,2022-01-28,ADVERTISEMENTS,750,2022
,2022 OFFICE OF THE SPEAKER,1,GENERAL EXPENDITURES,PRINTING AND REPRODUCTION,DETAIL,2022-03-17,AP,1536019,CITI PCARD-FACEBK X5KN7CT2M2,2022-01-27,2022-01-28,ADVERTISEMENTS,750,2022
,2022 OFFICE OF THE SPEAKER,1,GENERAL EXPENDITURES,PRINTING AND REPRODUCTION,DETAIL,2022-03-17,AP,1536019,CITI PCARD-FACEBK Y2PRKCB2M2,2022-02-21,2022-02-23,ADVERTISEMENTS,750,2022
,2022 OFFICE OF THE SPEAKER,1,GENERAL EXPENDITURES,PRINTING AND REPRODUCTION,DETAIL,2022-03-17,AP,1536019,CITI PCARD-FACEBK YYR8KC32M2,2022-02-19,2022-02-19,ADVERTISEMENTS,750,2022
,2022 OFFICE OF THE SPEAKER,1,GENERAL EXPENDITURES,PRINTING AND REPRODUCTION,DETAIL,2022-03-17,AP,1536019,CITI PCARD-FACEBK ZBYA6C32M2,2022-02-04,2022-02-05,ADVERTISEMENTS,750,2022
,2022 OFFICE OF THE SPEAKER,1,GENERAL EXPENDITURES,PRINTING AND REPRODUCTION,DETAIL,2022-03-28,AP,1542456,ACCURATE WORD,2022-03-18,2022-03-18,NON-FRANKABLE PRINTING & REPRO,76,2022
,2022 OFFICE OF THE SPEAKER,1,GENERAL EXPENDITURES,PRINTING AND REPRODUCTION,DETAIL,2022-03-29,GL,MED0114088, ,2022-03-11,2022-03-18,PHOTOGRAPHIC (TRANSFER),60,2022
,2022 OFFICE OF THE SPEAKER,1,GENERAL EXPENDITURES,PRINTING AND REPRODUCTION,SUBTOTAL,   ,   ,   ,   ,   ,   ,PRINTING AND REPRODUCTION TOTALS:,20397.6,2022
,2022 OFFICE OF THE SPEAKER,1,GENERAL EXPENDITURES,OTHER SERVICES,DETAIL,2022-01-21,AP,1515842,CITI PCARD-Dropbox J4X6J1Y5ZC4Q,2021-12-03,2022-12-03,TECHNOLOGY SERVICE CONTRACTS,763.2,2022
,2022 OFFICE OF THE SPEAKER,1,GENERAL EXPENDITURES,OTHER SERVICES,DETAIL,2022-02-10,AP,1525235,CITIBANK,2021-12-03,2022-12-03,TECHNOLOGY SERVICE CONTRACTS,-763.2,2022
,2022 OFFICE OF THE SPEAKER,1,GENERAL EXPENDITURES,OTHER SERVICES,DETAIL,2022-02-24,AP,1530723,FISCALNOTE INC,2022-01-01,2022-01-31,WEB DEV HST EMAIL & RLTD SERV,350,2022
,2022 OFFICE OF THE SPEAKER,1,GENERAL EXPENDITURES,OTHER SERVICES,DETAIL,2022-03-03,AP,1530699,CITI PCARD-DROPBOX LXK82MYDK1CZ,2021-11-01,2022-01-14,TECHNOLOGY SERVICE CONTRACTS,-9.88,2022
,2022 OFFICE OF THE SPEAKER,1,GENERAL EXPENDITURES,OTHER SERVICES,DETAIL,2022-03-18,AP,1539881,FISCALNOTE INC,2022-02-01,2022-02-28,WEB DEV HST EMAIL & RLTD SERV,350,2022
,2022 OFFICE OF THE SPEAKER,1,GENERAL EXPENDITURES,OTHER SERVICES,SUBTOTAL,   ,   ,   ,   ,   ,   ,OTHER SERVICES TOTALS:,690.12,2022
,2022 OFFICE OF THE SPEAKER,1,GENERAL EXPENDITURES,SUPPLIES AND MATERIALS,DETAIL,2022-01-31,GL,RMS0112721, ,2022-01-01,2022-01-31,OFFICE SUPPLY (TRANSFER),464.79,2022
,2022 OFFICE OF THE SPEAKER,1,GENERAL EXPENDITURES,SUPPLIES AND MATERIALS,DETAIL,2022-02-07,AP,1522446,OCCASIONS CATERERS,2022-01-05,2022-01-05,FOOD & BEVERAGE,3970,2022
,2022 OFFICE OF THE SPEAKER,1,GENERAL EXPENDITURES,SUPPLIES AND MATERIALS,DETAIL,2022-02-08,AP,1522794,MITCHELL TOUSSAINT V.,2022-01-25,2022-01-25,FOOD & BEVERAGE,205.24,2022
,2022 OFFICE OF THE SPEAKER,1,GENERAL EXPENDITURES,SUPPLIES AND MATERIALS,DETAIL,2022-02-17,AP,1524442,CITI PCARD-Amazon.com IK0N69O83,2022-01-11,2022-01-11,FOOD & BEVERAGE,51.97,2022
,2022 OFFICE OF THE SPEAKER,1,GENERAL EXPENDITURES,SUPPLIES AND MATERIALS,DETAIL,2022-02-17,AP,1524442,CITI PCARD-ENGLISH GARDEN FLORIST,2022-01-06,2022-01-06,HABITATION EXPENSE,410,2022
,2022 OFFICE OF THE SPEAKER,1,GENERAL EXPENDITURES,SUPPLIES AND MATERIALS,DETAIL,2022-02-17,AP,1524442,CITI PCARD-GIANT 2381,2022-01-09,2022-01-09,FOOD & BEVERAGE,75.58,2022
,2022 OFFICE OF THE SPEAKER,1,GENERAL EXPENDITURES,SUPPLIES AND MATERIALS,DETAIL,2022-02-17,AP,1524442,CITI PCARD-GIANT 2381,2022-01-09,2022-01-09,PUBLICATIONS/REFERENCE MAT'L,9.5,2022
,2022 OFFICE OF THE SPEAKER,1,GENERAL EXPENDITURES,SUPPLIES AND MATERIALS,DETAIL,2022-02-17,AP,1524442,CITI PCARD-SUBURBAN FLORIST,2022-01-14,2022-01-14,HABITATION EXPENSE,525,2022
,2022 OFFICE OF THE SPEAKER,1,GENERAL EXPENDITURES,SUPPLIES AND MATERIALS,DETAIL,2022-02-17,AP,1524442,CITI PCARD-WE THE PIZZA,2022-01-06,2022-01-06,FOOD & BEVERAGE,609.5,2022
,2022 OFFICE OF THE SPEAKER,1,GENERAL EXPENDITURES,SUPPLIES AND MATERIALS,DETAIL,2022-02-28,GL,RMS0113391, ,2022-02-01,2022-02-28,OFFICE SUPPLY (TRANSFER),764.62,2022
,2022 OFFICE OF THE SPEAKER,1,GENERAL EXPENDITURES,SUPPLIES AND MATERIALS,DETAIL,2022-03-03,AP,1530326,SODEXO INC & AFFILIATES,2022-01-06,2022-01-06,FOOD & BEVERAGE,325.45,2022
,2022 OFFICE OF THE SPEAKER,1,GENERAL EXPENDITURES,SUPPLIES AND MATERIALS,DETAIL,2022-03-03,AP,1530330,SODEXO INC & AFFILIATES,2022-01-10,2022-01-10,FOOD & BEVERAGE,60.63,2022
,2022 OFFICE OF THE SPEAKER,1,GENERAL EXPENDITURES,SUPPLIES AND MATERIALS,DETAIL,2022-03-03,AP,1530331,SODEXO INC & AFFILIATES,2022-01-10,2022-01-10,FOOD & BEVERAGE,245.01,2022
,2022 OFFICE OF THE SPEAKER,1,GENERAL EXPENDITURES,SUPPLIES AND MATERIALS,DETAIL,2022-03-03,AP,1530334,SODEXO INC & AFFILIATES,2022-01-18,2022-01-18,FOOD & BEVERAGE,60.63,2022
,2022 OFFICE OF THE SPEAKER,1,GENERAL EXPENDITURES,SUPPLIES AND MATERIALS,DETAIL,2022-03-03,AP,1530336,SODEXO INC & AFFILIATES,2022-01-18,2022-01-18,FOOD & BEVERAGE,245.01,2022
,2022 OFFICE OF THE SPEAKER,1,GENERAL EXPENDITURES,SUPPLIES AND MATERIALS,DETAIL,2022-03-03,AP,1530339,SODEXO INC & AFFILIATES,2022-01-20,2022-01-20,FOOD & BEVERAGE,121.25,2022
,2022 OFFICE OF THE SPEAKER,1,GENERAL EXPENDITURES,SUPPLIES AND MATERIALS,DETAIL,2022-03-03,AP,1530342,SODEXO INC & AFFILIATES,2022-01-20,2022-01-20,FOOD & BEVERAGE,257.83,2022
,2022 OFFICE OF THE SPEAKER,1,GENERAL EXPENDITURES,SUPPLIES AND MATERIALS,DETAIL,2022-03-03,AP,1530345,TOULIES EN FLEUR,2022-01-04,2022-01-31,HABITATION EXPENSE,1540,2022
,2022 OFFICE OF THE SPEAKER,1,GENERAL EXPENDITURES,SUPPLIES AND MATERIALS,DETAIL,2022-03-03,AP,1530699,CITI PCARD-ASANA.COM,2022-01-17,2022-02-16,SOFTWARE  LESS THAN  $500,92.79,2022
,2022 OFFICE OF THE SPEAKER,1,GENERAL EXPENDITURES,SUPPLIES AND MATERIALS,DETAIL,2022-03-03,AP,1530699,CITI PCARD-DESCRIPT,2022-01-25,2022-02-25,SOFTWARE  LESS THAN  $500,30,2022
,2022 OFFICE OF THE SPEAKER,1,GENERAL EXPENDITURES,SUPPLIES AND MATERIALS,DETAIL,2022-03-03,AP,1530699,CITI PCARD-LIVEU INC,2022-02-15,2022-03-15,SOFTWARE  LESS THAN  $500,312.7,2022
,2022 OFFICE OF THE SPEAKER,1,GENERAL EXPENDITURES,SUPPLIES AND MATERIALS,DETAIL,2022-03-03,AP,1530699,CITI PCARD-LUMEN5.COM,2022-01-18,2022-02-17,SOFTWARE  LESS THAN  $500,199,2022
,2022 OFFICE OF THE SPEAKER,1,GENERAL EXPENDITURES,SUPPLIES AND MATERIALS,DETAIL,2022-03-03,AP,1530699,CITI PCARD-RESTREAM INC.,2022-01-18,2022-02-18,SOFTWARE  LESS THAN  $500,99,2022
,2022 OFFICE OF THE SPEAKER,1,GENERAL EXPENDITURES,SUPPLIES AND MATERIALS,DETAIL,2022-03-04,AP,1530346,OCCASIONS CATERERS,2022-01-12,2022-01-12,FOOD & BEVERAGE,10985,2022
,2022 OFFICE OF THE SPEAKER,1,GENERAL EXPENDITURES,SUPPLIES AND MATERIALS,DETAIL,2022-03-15,AP,1534734,MOREDIRECT INC DBA CONNECTION,2022-03-01,2022-03-01,OFFICE SUPPLIES (OUTSIDE),2490,2022
,2022 OFFICE OF THE SPEAKER,1,GENERAL EXPENDITURES,SUPPLIES AND MATERIALS,DETAIL,2022-03-16,AP,1534677,CITI PCARD-AMZN Mktp US C86OP8383,2022-02-07,2022-02-07,HABITATION EXPENSE,1499.5,2022
,2022 OFFICE OF THE SPEAKER,1,GENERAL EXPENDITURES,SUPPLIES AND MATERIALS,DETAIL,2022-03-16,AP,1534677,CITI PCARD-DUBLINER,2022-02-14,2022-02-14,FOOD & BEVERAGE,764.15,2022
,2022 OFFICE OF THE SPEAKER,1,GENERAL EXPENDITURES,SUPPLIES AND MATERIALS,DETAIL,2022-03-16,AP,1534677,CITI PCARD-WE THE PIZZA,2022-02-03,2022-02-03,FOOD & BEVERAGE,331.2,2022
,2022 OFFICE OF THE SPEAKER,1,GENERAL EXPENDITURES,SUPPLIES AND MATERIALS,DETAIL,2022-03-16,AP,1534677,CITI PCARD-WHOLEFDS SCP #10563,2022-02-14,2022-02-14,FOOD & BEVERAGE,143.22,2022
,2022 OFFICE OF THE SPEAKER,1,GENERAL EXPENDITURES,SUPPLIES AND MATERIALS,DETAIL,2022-03-17,AP,1536019,CITI PCARD-ASANA.COM,2022-02-17,2022-03-16,SOFTWARE  LESS THAN  $500,96.96,2022
,2022 OFFICE OF THE SPEAKER,1,GENERAL EXPENDITURES,SUPPLIES AND MATERIALS,DETAIL,2022-03-17,AP,1536019,CITI PCARD-DESCRIPT,2022-02-25,2022-03-25,SOFTWARE  LESS THAN  $500,30,2022
,2022 OFFICE OF THE SPEAKER,1,GENERAL EXPENDITURES,SUPPLIES AND MATERIALS,DETAIL,2022-03-17,AP,1536019,CITI PCARD-LIVEU INC,2022-02-15,2022-03-15,SOFTWARE  LESS THAN  $500,312.7,2022
,2022 OFFICE OF THE SPEAKER,1,GENERAL EXPENDITURES,SUPPLIES AND MATERIALS,DETAIL,2022-03-17,AP,1536019,CITI PCARD-LUMEN5.COM,2022-02-18,2022-03-17,SOFTWARE  LESS THAN  $500,199,2022
,2022 OFFICE OF THE SPEAKER,1,GENERAL EXPENDITURES,SUPPLIES AND MATERIALS,DETAIL,2022-03-17,AP,1536019,CITI PCARD-OTTER.AI,2022-02-07,2023-02-07,SOFTWARE  LESS THAN  $500,99.99,2022
,2022 OFFICE OF THE SPEAKER,1,GENERAL EXPENDITURES,SUPPLIES AND MATERIALS,DETAIL,2022-03-17,AP,1536019,CITI PCARD-RESTREAM INC.,2022-02-18,2022-03-17,SOFTWARE  LESS THAN  $500,99,2022
,2022 OFFICE OF THE SPEAKER,1,GENERAL EXPENDITURES,SUPPLIES AND MATERIALS,DETAIL,2022-03-17,AP,1536019,CITI PCARD-WWW.TWITTER.COM,2022-02-02,2022-03-02,SOFTWARE  LESS THAN  $500,2.99,2022
,2022 OFFICE OF THE SPEAKER,1,GENERAL EXPENDITURES,SUPPLIES AND MATERIALS,DETAIL,2022-03-23,AP,1541541,MOREDIRECT INC DBA CONNECTION,2022-01-27,2022-01-27,OFFICE SUPPLIES (OUTSIDE) QTY - 2,29.9,2022
,2022 OFFICE OF THE SPEAKER,1,GENERAL EXPENDITURES,SUPPLIES AND MATERIALS,DETAIL,2022-03-23,AP,1541541,MOREDIRECT INC DBA CONNECTION,2022-01-27,2022-01-27,OFFICE SUPPLIES (OUTSIDE) QTY - 5,335,2022
,2022 OFFICE OF THE SPEAKER,1,GENERAL EXPENDITURES,SUPPLIES AND MATERIALS,DETAIL,2022-03-28,AP,1542453,SUBURBAN FLORIST INC,2022-03-28,2022-03-28,HABITATION EXPENSE,525,2022
,2022 OFFICE OF THE SPEAKER,1,GENERAL EXPENDITURES,SUPPLIES AND MATERIALS,DETAIL,2022-03-29,AP,1542451,OCCASIONS CATERERS,2022-03-01,2022-03-01,FOOD & BEVERAGE,19735,2022
,2022 OFFICE OF THE SPEAKER,1,GENERAL EXPENDITURES,SUPPLIES AND MATERIALS,DETAIL,2022-03-31,GL,RMS0114229, ,2022-03-01,2022-03-31,OFFICE SUPPLY (TRANSFER),806.3,2022
,2022 OFFICE OF THE SPEAKER,1,GENERAL EXPENDITURES,SUPPLIES AND MATERIALS,SUBTOTAL,   ,   ,   ,   ,   ,   ,SUPPLIES AND MATERIALS TOTALS:,49160.41,2022
,2022 OFFICE OF THE SPEAKER,1,GENERAL EXPENDITURES,EQUIPMENT,DETAIL,2022-01-31,GL,MNT0112655, ,2022-01-01,2022-01-31,MAINTENANCE / REPAIRS,1009,2022
,2022 OFFICE OF THE SPEAKER,1,GENERAL EXPENDITURES,EQUIPMENT,DETAIL,2022-02-28,GL,MNT0113336, ,2022-02-01,2022-02-28,MAINTENANCE / REPAIRS,1009,2022
,2022 OFFICE OF THE SPEAKER,1,GENERAL EXPENDITURES,EQUIPMENT,DETAIL,2022-03-31,GL,MNT0114177, ,2022-03-01,2022-03-31,MAINTENANCE / REPAIRS,1009,2022
,2022 OFFICE OF THE SPEAKER,1,GENERAL EXPENDITURES,EQUIPMENT,SUBTOTAL,   ,   ,   ,   ,   ,   ,EQUIPMENT TOTALS:,3027,2022
,2022 OFFICE OF THE SPEAKER,1,GENERAL EXPENDITURES,EQUIPMENT,SUBTOTAL,   ,   ,   ,   ,   ,   ,GENERAL EXPENDITURES TOTALS:,1835327.26,2022
,2022 OFFICE OF THE SPEAKER,1,GENERAL EXPENDITURES,EQUIPMENT,GRAND TOTAL FOR ORGANIZATION,   ,   ,   ,   ,   ,   ,OFFICE TOTALS: ,1835327.26,2022
,2021 OFFICE OF THE SPEAKER,1,GENERAL EXPENDITURES,FRANKED MAIL,DETAIL,2022-01-27,AP,1511792,UNITED STATES POSTAL SERVICE,2021-11-01,2021-11-30,FRANKED MAIL,8.36,2022
,2021 OFFICE OF THE SPEAKER,1,GENERAL EXPENDITURES,FRANKED MAIL,DETAIL,2022-02-02,AP,1521334,UNITED STATES POSTAL SERVICE,2021-12-01,2021-12-31,FRANKED MAIL,9.78,2022
,2021 OFFICE OF THE SPEAKER,1,GENERAL EXPENDITURES,FRANKED MAIL,SUBTOTAL,   ,   ,   ,   ,   ,   ,FRANKED MAIL TOTALS:,18.14,2022
,2021 OFFICE OF THE SPEAKER,1,GENERAL EXPENDITURES,PERSONNEL COMPENSATION,DETAIL,   ,   ,   ,BENNETT AARON M.,2022-01-01,2022-01-02,DIRECTOR OF SPEECHWRITING,472.22,2022
,2021 OFFICE OF THE SPEAKER,1,GENERAL EXPENDITURES,PERSONNEL COMPENSATION,DETAIL,   ,   ,   ,BERRET EMILY C,2022-01-01,2022-01-02,DEPUTY CHIEF OF STAFF,1107.22,2022
,2021 OFFICE OF THE SPEAKER,1,GENERAL EXPENDITURES,PERSONNEL COMPENSATION,DETAIL,   ,   ,   ,BLANKENSHIP ALLISON W,2022-01-01,2022-01-02,FLOOR ASSISTANT,388.89,2022
,2021 OFFICE OF THE SPEAKER,1,GENERAL EXPENDITURES,PERSONNEL COMPENSATION,DETAIL,   ,   ,   ,BUSH JACQUELINE D,2022-01-01,2022-01-02,DEPUTY PRESS SECRETARY,280.56,2022
,2021 OFFICE OF THE SPEAKER,1,GENERAL EXPENDITURES,PERSONNEL COMPENSATION,DETAIL,   ,   ,   ,CAPRON MARGARET W.,2022-01-01,2022-01-02,SENIOR ADV FOR POLICY & COMM,820.54,2022
,2021 OFFICE OF THE SPEAKER,1,GENERAL EXPENDITURES,PERSONNEL COMPENSATION,DETAIL,   ,   ,   ,CHERRY STEPHANIE,2022-01-01,2022-01-02,DIRECTOR OF MEDIA AFFAIRS,527.78,2022
,2021 OFFICE OF THE SPEAKER,1,GENERAL EXPENDITURES,PERSONNEL COMPENSATION,DETAIL,   ,   ,   ,COCHRAN COURTNEY E.,2022-01-01,2022-01-02,DIRECTOR OF STRATEGIC PLANNING,666.67,2022
,2021 OFFICE OF THE SPEAKER,1,GENERAL EXPENDITURES,PERSONNEL COMPENSATION,DETAIL,   ,   ,   ,CONNELLY HENRY V,2022-01-01,2022-01-02,COMMUNICATIONS DIRECTOR,1038.89,2022
,2021 OFFICE OF THE SPEAKER,1,GENERAL EXPENDITURES,PERSONNEL COMPENSATION,DETAIL,   ,   ,   ,COSTELLO JOSEPH M.,2022-01-01,2022-01-02,DEPUTY PRESS SECRETARY,127.31,2022
,2021 OFFICE OF THE SPEAKER,1,GENERAL EXPENDITURES,PERSONNEL COMPENSATION,DETAIL,   ,   ,   ,DEGRAFF KENNETH B.,2022-01-01,2022-01-02,SENIOR POLICY ADVISOR,694.44,2022
,2021 OFFICE OF THE SPEAKER,1,GENERAL EXPENDITURES,PERSONNEL COMPENSATION,DETAIL,   ,   ,   ,DONOHUE JENNIFER A,2022-01-01,2022-01-02,EXECUTIVE DIRECTOR,935,2022
,2021 OFFICE OF THE SPEAKER,1,GENERAL EXPENDITURES,PERSONNEL COMPENSATION,DETAIL,   ,   ,   ,EDMONSON ROBERT D,2022-01-01,2022-01-02,POLICY ADVISOR,888.89,2022
,2021 OFFICE OF THE SPEAKER,1,GENERAL EXPENDITURES,PERSONNEL COMPENSATION,DETAIL,   ,   ,   ,FIELDS MCKENZIE R,2022-01-01,2022-01-02,POLICY ADVISOR,177.78,2022
,2021 OFFICE OF THE SPEAKER,1,GENERAL EXPENDITURES,PERSONNEL COMPENSATION,DETAIL,   ,   ,   ,FISCHER JR ROBERT V.,2022-01-01,2022-01-02,ASST FLOOR CHIEF,1027.78,2022
,2021 OFFICE OF THE SPEAKER,1,GENERAL EXPENDITURES,PERSONNEL COMPENSATION,DETAIL,   ,   ,   ,FLEET II JAMES P,2022-01-01,2022-01-02,SENIOR ADVISOR,6.67,2022
,2021 OFFICE OF THE SPEAKER,1,GENERAL EXPENDITURES,PERSONNEL COMPENSATION,DETAIL,   ,   ,   ,GREENER APRIL L.,2022-01-01,2022-01-02,RESEARCH DIRECTOR,655.56,2022
,2021 OFFICE OF THE SPEAKER,1,GENERAL EXPENDITURES,PERSONNEL COMPENSATION,DETAIL,   ,   ,   ,HAMILTON WENDY D,2022-01-01,2022-01-02,OUTREACH & MEMBER SERVICES ADV,500,2022
,2021 OFFICE OF THE SPEAKER,1,GENERAL EXPENDITURES,PERSONNEL COMPENSATION,DETAIL,   ,   ,   ,HAMMILL ANDREW T.,2022-01-01,2022-01-02,DEPUTY CHIEF OF STAFF,1107.22,2022
,2021 OFFICE OF THE SPEAKER,1,GENERAL EXPENDITURES,PERSONNEL COMPENSATION,DETAIL,   ,   ,   ,HAN LEAH J.,2022-01-01,2022-01-02,SENIOR STAFF ASSISTANT,347.22,2022
,2021 OFFICE OF THE SPEAKER,1,GENERAL EXPENDITURES,PERSONNEL COMPENSATION,DETAIL,   ,   ,   ,HIDALGO ADRIANA N.,2022-01-01,2022-01-02,DISTRICT SCHED/SPECIAL ASSIST,444.44,2022
,2021 OFFICE OF THE SPEAKER,1,GENERAL EXPENDITURES,PERSONNEL COMPENSATION,DETAIL,   ,   ,   ,HOLMES NATHANIEL J,2022-01-01,2022-01-02,DEP DIR/SCHEDULING & ADVANCE,433.33,2022
,2021 OFFICE OF THE SPEAKER,1,GENERAL EXPENDITURES,PERSONNEL COMPENSATION,DETAIL,   ,   ,   ,IACOBELLIS SAMUEL C,2022-01-01,2022-01-02,DPTY DIR INTERGOV AFFAIRS ADV,444.44,2022
,2021 OFFICE OF THE SPEAKER,1,GENERAL EXPENDITURES,PERSONNEL COMPENSATION,DETAIL,   ,   ,   ,JACKSON AUDRA L,2022-01-01,2022-01-02,ASST MGR FOR THE DEM CLOAKROOM,444.44,2022
,2021 OFFICE OF THE SPEAKER,1,GENERAL EXPENDITURES,PERSONNEL COMPENSATION,DETAIL,   ,   ,   ,JALDIN PAZ HUGO,2022-01-01,2022-01-02,DEPUTY IT DIRECTOR,560.53,2022
,2021 OFFICE OF THE SPEAKER,1,GENERAL EXPENDITURES,PERSONNEL COMPENSATION,DETAIL,   ,   ,   ,KAPLAN EMMA L,2022-01-01,2022-01-02,DEPUTY FLOOR DIRECTOR,666.67,2022
,2021 OFFICE OF THE SPEAKER,1,GENERAL EXPENDITURES,PERSONNEL COMPENSATION,DETAIL,   ,   ,   ,KEATING ROSE M,2022-01-01,2022-01-02,ASST FLOOR MANAGER,777.78,2022
,2021 OFFICE OF THE SPEAKER,1,GENERAL EXPENDITURES,PERSONNEL COMPENSATION,DETAIL,   ,   ,   ,KEITA KAMILAH Z,2022-01-01,2022-01-02,IT DIRECTOR,582.11,2022
,2021 OFFICE OF THE SPEAKER,1,GENERAL EXPENDITURES,PERSONNEL COMPENSATION,DETAIL,   ,   ,   ,KISKER GRAYSON S.,2022-01-01,2022-01-02,DIGITAL ASSISTANT,236.11,2022
,2021 OFFICE OF THE SPEAKER,1,GENERAL EXPENDITURES,PERSONNEL COMPENSATION,DETAIL,   ,   ,   ,KISKER GRAYSON S.,2021-12-01,2021-12-31,DIGITAL ASSISTANT (OVERTIME),965.43,2022
,2021 OFFICE OF THE SPEAKER,1,GENERAL EXPENDITURES,PERSONNEL COMPENSATION,DETAIL,   ,   ,   ,KONFORTY NADAV G.,2022-01-01,2022-01-02,STAFF ASSISTANT,222.22,2022
,2021 OFFICE OF THE SPEAKER,1,GENERAL EXPENDITURES,PERSONNEL COMPENSATION,DETAIL,   ,   ,   ,KONFORTY NADAV G.,2021-12-01,2021-12-31,STAFF ASSISTANT (OVERTIME),1016.82,2022
,2021 OFFICE OF THE SPEAKER,1,GENERAL EXPENDITURES,PERSONNEL COMPENSATION,DETAIL,   ,   ,   ,KUNDANIS GEORGE,2022-01-01,2022-01-02,DEPUTY CHIEF OF STAFF,1107.22,2022
,2021 OFFICE OF THE SPEAKER,1,GENERAL EXPENDITURES,PERSONNEL COMPENSATION,DETAIL,   ,   ,   ,LEE SERYEUNG,2022-01-01,2022-01-02,PRESS SECRETARY,611.11,2022
,2021 OFFICE OF THE SPEAKER,1,GENERAL EXPENDITURES,PERSONNEL COMPENSATION,DETAIL,   ,   ,   ,LIZARRAGA JAIME E.,2022-01-01,2022-01-02,SENIOR ADVISOR,1055.56,2022
,2021 OFFICE OF THE SPEAKER,1,GENERAL EXPENDITURES,PERSONNEL COMPENSATION,DETAIL,   ,   ,   ,MANGRUM PEARL J.,2022-01-01,2022-01-02,FINANCIAL ADMINISTRATOR,805.56,2022
,2021 OFFICE OF THE SPEAKER,1,GENERAL EXPENDITURES,PERSONNEL COMPENSATION,DETAIL,   ,   ,   ,MANSBACH SHANA G,2022-01-01,2022-01-02,DEPUTY COMMUNICATIONS DIR,750,2022
,2021 OFFICE OF THE SPEAKER,1,GENERAL EXPENDITURES,PERSONNEL COMPENSATION,DETAIL,   ,   ,   ,MARRON BRENNA K.,2022-01-01,2022-01-02,DEPUTY EXEC DIRECTOR,651.67,2022
,2021 OFFICE OF THE SPEAKER,1,GENERAL EXPENDITURES,PERSONNEL COMPENSATION,DETAIL,   ,   ,   ,MARROW JAMES A,2022-01-01,2022-01-02,CREATIVE DIRECTOR,347.22,2022
,2021 OFFICE OF THE SPEAKER,1,GENERAL EXPENDITURES,PERSONNEL COMPENSATION,DETAIL,   ,   ,   ,MCCULLOUGH MARY T,2022-01-01,2022-01-02,CHIEF OF STAFF,1107.22,2022
,2021 OFFICE OF THE SPEAKER,1,GENERAL EXPENDITURES,PERSONNEL COMPENSATION,DETAIL,   ,   ,   ,MCCULLOUGH WILLIAM J,2022-01-01,2022-01-02,DEPUTY PRESS SECRETARY,347.22,2022
,2021 OFFICE OF THE SPEAKER,1,GENERAL EXPENDITURES,PERSONNEL COMPENSATION,DETAIL,   ,   ,   ,MELTZER RICHARD,2022-01-01,2022-01-02,POLICY DIRECTOR,1107.22,2022
,2021 OFFICE OF THE SPEAKER,1,GENERAL EXPENDITURES,PERSONNEL COMPENSATION,DETAIL,   ,   ,   ,MITCHELL TOUSSAINT V.,2022-01-01,2022-01-02,STAFF ASSISTANT,222.22,2022
,2021 OFFICE OF THE SPEAKER,1,GENERAL EXPENDITURES,PERSONNEL COMPENSATION,DETAIL,   ,   ,   ,MITCHELL TOUSSAINT V.,2021-12-01,2021-12-31,STAFF ASSISTANT (OVERTIME),562.49,2022
,2021 OFFICE OF THE SPEAKER,1,GENERAL EXPENDITURES,PERSONNEL COMPENSATION,DETAIL,   ,   ,   ,MONGE KATHERINE S,2022-01-01,2022-01-02,SENIOR COUNSEL,1055.56,2022
,2021 OFFICE OF THE SPEAKER,1,GENERAL EXPENDITURES,PERSONNEL COMPENSATION,DETAIL,   ,   ,   ,PARKER WYNDEE R.,2022-01-01,2022-01-02,NATIONAL SECURITY ADVISOR,1107.22,2022
,2021 OFFICE OF THE SPEAKER,1,GENERAL EXPENDITURES,PERSONNEL COMPENSATION,DETAIL,   ,   ,   ,PAZ JR CARLOS,2022-01-01,2022-01-02,SENIOR COMMUNICATIONS ADVISOR,805.56,2022
,2021 OFFICE OF THE SPEAKER,1,GENERAL EXPENDITURES,PERSONNEL COMPENSATION,DETAIL,   ,   ,   ,PRESLEY JESSICA A,2022-01-01,2022-01-02,DIRECTOR OF DIGITAL STRATEGY,555.56,2022
,2021 OFFICE OF THE SPEAKER,1,GENERAL EXPENDITURES,PERSONNEL COMPENSATION,DETAIL,   ,   ,   ,PRICE REVA B.,2022-01-01,2022-01-02,OUTREACH DIR & SENIOR ADVISOR,859.43,2022
,2021 OFFICE OF THE SPEAKER,1,GENERAL EXPENDITURES,PERSONNEL COMPENSATION,DETAIL,   ,   ,   ,PRIMUS WENDELL E.,2022-01-01,2022-01-02,SR HLTH/BUDGET POLICY ADV,1107.22,2022
,2021 OFFICE OF THE SPEAKER,1,GENERAL EXPENDITURES,PERSONNEL COMPENSATION,DETAIL,   ,   ,   ,REED MICHAEL D,2022-01-01,2022-01-02,DIR OF MBR SVCS & SENIOR ADV,888.89,2022
,2021 OFFICE OF THE SPEAKER,1,GENERAL EXPENDITURES,PERSONNEL COMPENSATION,DETAIL,   ,   ,   ,RISTUCCIA ISABELLA M.,2021-12-29,2021-12-29,PRESS ASSISTANT,222.22,2022
,2021 OFFICE OF THE SPEAKER,1,GENERAL EXPENDITURES,PERSONNEL COMPENSATION,DETAIL,   ,   ,   ,RISTUCCIA ISABELLA M.,2022-01-01,2022-01-02,PRESS ASSISTANT,222.22,2022
,2021 OFFICE OF THE SPEAKER,1,GENERAL EXPENDITURES,PERSONNEL COMPENSATION,DETAIL,   ,   ,   ,RUDD DIANA,2022-01-01,2022-01-02,MEMBER SERVICES DIR/COUNSEL,666.67,2022
,2021 OFFICE OF THE SPEAKER,1,GENERAL EXPENDITURES,PERSONNEL COMPENSATION,DETAIL,   ,   ,   ,RUIZ XENIA F,2022-01-01,2022-01-02,OUTREACH DIRECTOR,722.22,2022
,2021 OFFICE OF THE SPEAKER,1,GENERAL EXPENDITURES,PERSONNEL COMPENSATION,DETAIL,   ,   ,   ,RUSSELL MAYA A,2022-01-01,2022-01-02,DIGITAL DIRECTOR,311.67,2022
,2021 OFFICE OF THE SPEAKER,1,GENERAL EXPENDITURES,PERSONNEL COMPENSATION,DETAIL,   ,   ,   ,SCANNELL BROOKE A,2022-01-01,2022-01-02,SENIOR POLICY ADVISOR,410.56,2022
,2021 OFFICE OF THE SPEAKER,1,GENERAL EXPENDITURES,PERSONNEL COMPENSATION,DETAIL,   ,   ,   ,SHAIQ SAMAH N.,2022-01-01,2022-01-02,SENIOR PRESS ASSISTANT,236.11,2022
,2021 OFFICE OF THE SPEAKER,1,GENERAL EXPENDITURES,PERSONNEL COMPENSATION,DETAIL,   ,   ,   ,SHAIQ SAMAH N.,2021-12-01,2021-12-31,PRESS ASSISTANT (OVERTIME),1629.79,2022
,2021 OFFICE OF THE SPEAKER,1,GENERAL EXPENDITURES,PERSONNEL COMPENSATION,DETAIL,   ,   ,   ,SMITH KELSEY L,2022-01-01,2022-01-02,DIR. OF SCHEDULING & ADVANCE,472.22,2022
,2021 OFFICE OF THE SPEAKER,1,GENERAL EXPENDITURES,PERSONNEL COMPENSATION,DETAIL,   ,   ,   ,SMITH SHANE T,2022-01-01,2022-01-02,SPECIAL ASST TO THE SPEAKER,555.56,2022
,2021 OFFICE OF THE SPEAKER,1,GENERAL EXPENDITURES,PERSONNEL COMPENSATION,DETAIL,   ,   ,   ,SOENKSEN AMY C,2022-01-01,2022-01-02,DIR INTERGOV AFFAIRS MBR/SCVS,777.78,2022
,2021 OFFICE OF THE SPEAKER,1,GENERAL EXPENDITURES,PERSONNEL COMPENSATION,DETAIL,   ,   ,   ,SONG ANNA J.,2022-01-01,2022-01-02,OUTREACH ASSISTANT,280.56,2022
,2021 OFFICE OF THE SPEAKER,1,GENERAL EXPENDITURES,PERSONNEL COMPENSATION,DETAIL,   ,   ,   ,STERN KEITH L.,2022-01-01,2022-01-02,DIRECTOR OF FLOOR OPERATIONS,1107.22,2022
,2021 OFFICE OF THE SPEAKER,1,GENERAL EXPENDITURES,PERSONNEL COMPENSATION,DETAIL,   ,   ,   ,TECKLENBURG MICHAEL H.,2022-01-01,2022-01-02,COUNSEL,788.89,2022
,2021 OFFICE OF THE SPEAKER,1,GENERAL EXPENDITURES,PERSONNEL COMPENSATION,DETAIL,   ,   ,   ,URRY ALEXANDER M,2022-01-01,2022-01-02,POLICY ADVISOR,444.44,2022
,2021 OFFICE OF THE SPEAKER,1,GENERAL EXPENDITURES,PERSONNEL COMPENSATION,DETAIL,   ,   ,   ,VERMILYEA SYDNEY S.,2022-01-01,2022-01-02,DEPUTY SCHEDULER,361.11,2022
,2021 OFFICE OF THE SPEAKER,1,GENERAL EXPENDITURES,PERSONNEL COMPENSATION,DETAIL,   ,   ,   ,WOLTERS KATE,2022-01-01,2022-01-02,DIRECTOR OF SPECIAL EVENTS,55.56,2022
,2021 OFFICE OF THE SPEAKER,1,GENERAL EXPENDITURES,PERSONNEL COMPENSATION,SUBTOTAL,   ,   ,   ,   ,   ,   ,PERSONNEL COMPENSATION TOTALS:,42883.91,2022
,2021 OFFICE OF THE SPEAKER,1,GENERAL EXPENDITURES,TRAVEL,DETAIL,2022-01-04,AP,1498649,CITIBANK GOV CARD SERVICE,2021-10-30,2021-10-30,AIRFARE COMMERCIAL TRANSPORT,203,2022
,2021 OFFICE OF THE SPEAKER,1,GENERAL EXPENDITURES,TRAVEL,DETAIL,2022-01-04,AP,1508601,BLANKENSHIP ALLISON W.,2021-11-15,2021-11-23,TAXI/RIDE SHARE,180.23,2022
,2021 OFFICE OF THE SPEAKER,1,GENERAL EXPENDITURES,TRAVEL,DETAIL,2022-01-04,AP,1508601,BLANKENSHIP ALLISON W.,2021-12-01,2021-12-13,TAXI/RIDE SHARE,229.83,2022
,2021 OFFICE OF THE SPEAKER,1,GENERAL EXPENDITURES,TRAVEL,DETAIL,2022-01-06,AP,1510532,CITIBANK GOV CARD SERVICE,2021-12-02,2021-12-02,TAXI/RIDE SHARE,8.67,2022
,2021 OFFICE OF THE SPEAKER,1,GENERAL EXPENDITURES,TRAVEL,DETAIL,2022-01-06,AP,1510532,CITIBANK GOV CARD SERVICE,2021-12-04,2021-12-04,TAXI/RIDE SHARE,8.67,2022
,2021 OFFICE OF THE SPEAKER,1,GENERAL EXPENDITURES,TRAVEL,DETAIL,2022-01-06,AP,1510532,CITIBANK GOV CARD SERVICE,2021-12-06,2021-12-06,TAXI/RIDE SHARE,67.29,2022
,2021 OFFICE OF THE SPEAKER,1,GENERAL EXPENDITURES,TRAVEL,DETAIL,2022-02-07,AP,1522805,VERMILYEA SYDNEY S.,2021-12-01,2021-12-15,TAXI/RIDE SHARE,196.14,2022
,2021 OFFICE OF THE SPEAKER,1,GENERAL EXPENDITURES,TRAVEL,DETAIL,2022-03-03,AP,1530360,SMITH KELSEY L.,2021-12-03,2021-12-04,PARKING,32,2022
,2021 OFFICE OF THE SPEAKER,1,GENERAL EXPENDITURES,TRAVEL,DETAIL,2022-03-03,AP,1532224,SHAIQ SAMAH N.,2021-12-06,2021-12-15,TAXI/RIDE SHARE,82.35,2022
,2021 OFFICE OF THE SPEAKER,1,GENERAL EXPENDITURES,TRAVEL,SUBTOTAL,   ,   ,   ,   ,   ,   ,TRAVEL TOTALS:,1008.18,2022
,2021 OFFICE OF THE SPEAKER,1,GENERAL EXPENDITURES,RENT  COMMUNICATION  UTILITIES,DETAIL,2022-01-04,AP,1506184,WOLTERS KATE,2021-12-04,2021-12-04,POSTAGE / COURIER / BOX RENTAL,123.03,2022
,2021 OFFICE OF THE SPEAKER,1,GENERAL EXPENDITURES,RENT  COMMUNICATION  UTILITIES,DETAIL,2022-01-25,AP,1510517,BEYOND PIX SF LLC,2021-11-12,2021-11-12,TEMPORARY SPACE RENTAL,950,2022
,2021 OFFICE OF THE SPEAKER,1,GENERAL EXPENDITURES,RENT  COMMUNICATION  UTILITIES,DETAIL,2022-01-26,GL,EMS0112513, ,2021-12-01,2021-12-31,DC TELECOM EQUIP (TRANSFER),228,2022
,2021 OFFICE OF THE SPEAKER,1,GENERAL EXPENDITURES,RENT  COMMUNICATION  UTILITIES,DETAIL,2022-01-26,GL,EMS0112513, ,2021-12-01,2021-12-31,DC TELECOM SERV (TRANSFER),1227.5,2022
,2021 OFFICE OF THE SPEAKER,1,GENERAL EXPENDITURES,RENT  COMMUNICATION  UTILITIES,DETAIL,2022-01-26,GL,EMS0112513, ,2021-12-01,2021-12-31,DC TELECOM TOLLS (TRANSFER),10494.65,2022
,2021 OFFICE OF THE SPEAKER,1,GENERAL EXPENDITURES,RENT  COMMUNICATION  UTILITIES,DETAIL,2022-02-07,AP,1522775,FEDEX,2021-12-14,2021-12-14,POSTAGE / COURIER / BOX RENTAL,42.82,2022
,2021 OFFICE OF THE SPEAKER,1,GENERAL EXPENDITURES,RENT  COMMUNICATION  UTILITIES,DETAIL,2022-02-28,GL,GLA0113343, ,2021-12-29,2021-12-29,HIR GRAPHICS (TRANSFER),120,2022
,2021 OFFICE OF THE SPEAKER,1,GENERAL EXPENDITURES,RENT  COMMUNICATION  UTILITIES,SUBTOTAL,   ,   ,   ,   ,   ,   ,RENT  COMMUNICATION  UTILITIES TOTALS:,13186,2022
,2021 OFFICE OF THE SPEAKER,1,GENERAL EXPENDITURES,PRINTING AND REPRODUCTION,DETAIL,2022-01-04,AP,1508290,ACCURATE WORD,2021-12-14,2021-12-14,FRANKABLE PRINTING & REPROD,43,2022
,2021 OFFICE OF THE SPEAKER,1,GENERAL EXPENDITURES,PRINTING AND REPRODUCTION,DETAIL,2022-01-04,AP,1508292,ACCURATE WORD,2021-11-18,2021-11-18,FRANKABLE PRINTING & REPROD,5407,2022
,2021 OFFICE OF THE SPEAKER,1,GENERAL EXPENDITURES,PRINTING AND REPRODUCTION,DETAIL,2022-01-04,AP,1508451,HIDALGO ADRIANA N.,2021-12-17,2021-12-17,FRANKABLE PRINTING & REPROD,72.15,2022
,2021 OFFICE OF THE SPEAKER,1,GENERAL EXPENDITURES,PRINTING AND REPRODUCTION,DETAIL,2022-01-21,AP,1515842,CITI PCARD-FACEBK 2WXET8XZL2,2021-12-01,2021-12-03,ADVERTISEMENTS,750,2022
,2021 OFFICE OF THE SPEAKER,1,GENERAL EXPENDITURES,PRINTING AND REPRODUCTION,DETAIL,2022-01-21,AP,1515842,CITI PCARD-FACEBK 4A6BY9F2M2,2021-12-16,2021-12-16,ADVERTISEMENTS,750,2022
,2021 OFFICE OF THE SPEAKER,1,GENERAL EXPENDITURES,PRINTING AND REPRODUCTION,DETAIL,2022-01-21,AP,1515842,CITI PCARD-FACEBK 4ZTDAAF2M2,2021-12-23,2021-12-24,ADVERTISEMENTS,750,2022
,2021 OFFICE OF THE SPEAKER,1,GENERAL EXPENDITURES,PRINTING AND REPRODUCTION,DETAIL,2022-01-21,AP,1515842,CITI PCARD-FACEBK 7BGZMA72M2,2021-12-08,2021-12-16,ADVERTISEMENTS,750,2022
,2021 OFFICE OF THE SPEAKER,1,GENERAL EXPENDITURES,PRINTING AND REPRODUCTION,DETAIL,2022-01-21,AP,1515842,CITI PCARD-FACEBK HNUDY9K2M2,2021-12-17,2021-12-18,ADVERTISEMENTS,750,2022
,2021 OFFICE OF THE SPEAKER,1,GENERAL EXPENDITURES,PRINTING AND REPRODUCTION,DETAIL,2022-01-21,AP,1515842,CITI PCARD-FACEBK KE8JX8XZL2,2021-12-02,2021-12-07,ADVERTISEMENTS,750,2022
,2021 OFFICE OF THE SPEAKER,1,GENERAL EXPENDITURES,PRINTING AND REPRODUCTION,DETAIL,2022-01-21,AP,1515842,CITI PCARD-FACEBK KK686BTZL2,2021-12-18,2021-12-23,ADVERTISEMENTS,750,2022
,2021 OFFICE OF THE SPEAKER,1,GENERAL EXPENDITURES,PRINTING AND REPRODUCTION,DETAIL,2022-01-21,AP,1515842,CITI PCARD-FACEBK NQQDZ9F2M2,2021-12-16,2021-12-17,ADVERTISEMENTS,750,2022
,2021 OFFICE OF THE SPEAKER,1,GENERAL EXPENDITURES,PRINTING AND REPRODUCTION,DETAIL,2022-01-21,AP,1515842,CITI PCARD-FACEBK UBJPRAT2M2,2021-12-16,2021-12-18,ADVERTISEMENTS,750,2022
,2021 OFFICE OF THE SPEAKER,1,GENERAL EXPENDITURES,PRINTING AND REPRODUCTION,DETAIL,2022-01-21,AP,1515842,CITI PCARD-FACEBK YJ89FAT2M2,2021-12-06,2021-12-08,ADVERTISEMENTS,750,2022
,2021 OFFICE OF THE SPEAKER,1,GENERAL EXPENDITURES,PRINTING AND REPRODUCTION,DETAIL,2022-01-21,AP,1515842,CITI PCARD-FACEBK YM6WQ9F2M2,2021-12-07,2021-12-09,ADVERTISEMENTS,750,2022
,2021 OFFICE OF THE SPEAKER,1,GENERAL EXPENDITURES,PRINTING AND REPRODUCTION,DETAIL,2022-02-07,AP,1522761,SHARP ELECTRONICS CORPORATIION,2021-09-24,2021-12-24,NON-FRANKABLE PRINTING & REPRO,1220.52,2022
,2021 OFFICE OF THE SPEAKER,1,GENERAL EXPENDITURES,PRINTING AND REPRODUCTION,DETAIL,2022-03-03,AP,1530699,CITI PCARD-FACEBK 27SFVAB2M2,2021-12-23,2021-12-24,ADVERTISEMENTS,693.41,2022
,2021 OFFICE OF THE SPEAKER,1,GENERAL EXPENDITURES,PRINTING AND REPRODUCTION,DETAIL,2022-03-03,AP,1530699,CITI PCARD-FACEBK 2UWAFAK2M2,2021-12-31,2021-12-31,ADVERTISEMENTS,750,2022
,2021 OFFICE OF THE SPEAKER,1,GENERAL EXPENDITURES,PRINTING AND REPRODUCTION,DETAIL,2022-03-03,AP,1530699,CITI PCARD-FACEBK LQ59GAK2M2,2021-12-31,2022-01-02,ADVERTISEMENTS,750,2022
,2021 OFFICE OF THE SPEAKER,1,GENERAL EXPENDITURES,PRINTING AND REPRODUCTION,DETAIL,2022-03-03,AP,1530699,CITI PCARD-FACEBK LYST9B72M2,2022-01-02,2022-01-02,ADVERTISEMENTS,750,2022
,2021 OFFICE OF THE SPEAKER,1,GENERAL EXPENDITURES,PRINTING AND REPRODUCTION,DETAIL,2022-03-03,AP,1530699,CITI PCARD-FACEBK PRP8FBTZL2,2021-12-31,2022-01-01,ADVERTISEMENTS,750,2022
,2021 OFFICE OF THE SPEAKER,1,GENERAL EXPENDITURES,PRINTING AND REPRODUCTION,SUBTOTAL,   ,   ,   ,   ,   ,   ,PRINTING AND REPRODUCTION TOTALS:,18686.08,2022
,2021 OFFICE OF THE SPEAKER,1,GENERAL EXPENDITURES,OTHER SERVICES,DETAIL,2022-01-16,AP,1516930,LEIDOS DIGITAL SOLUTIONS INC,2022-01-01,2022-01-31,TECHNOLOGY SERVICE CONTRACTS,23100,2022
,2021 OFFICE OF THE SPEAKER,1,GENERAL EXPENDITURES,OTHER SERVICES,DETAIL,2022-01-16,AP,1516931,LEIDOS DIGITAL SOLUTIONS INC,2022-01-01,2022-12-31,TECHNOLOGY SERVICE CONTRACTS,132708,2022
,2021 OFFICE OF THE SPEAKER,1,GENERAL EXPENDITURES,OTHER SERVICES,DETAIL,2022-01-27,AP,1520676,FISCALNOTE INC,2021-12-01,2021-12-31,WEB DEV HST EMAIL & RLTD SERV,350,2022
,2021 OFFICE OF THE SPEAKER,1,GENERAL EXPENDITURES,OTHER SERVICES,DETAIL,2022-02-10,AP,1525235,CITIBANK,2021-12-03,2022-12-03,TECHNOLOGY SERVICE CONTRACTS,763.2,2022
,2021 OFFICE OF THE SPEAKER,1,GENERAL EXPENDITURES,OTHER SERVICES,SUBTOTAL,   ,   ,   ,   ,   ,   ,OTHER SERVICES TOTALS:,156921.2,2022
,2021 OFFICE OF THE SPEAKER,1,GENERAL EXPENDITURES,SUPPLIES AND MATERIALS,DETAIL,2022-01-04,AP,1508275,HAN LEAH J.,2021-12-13,2021-12-13,OFFICE SUPPLIES (OUTSIDE),36.62,2022
,2021 OFFICE OF THE SPEAKER,1,GENERAL EXPENDITURES,SUPPLIES AND MATERIALS,DETAIL,2022-01-04,AP,1508279,OCCASIONS CATERERS,2021-12-07,2021-12-07,FOOD & BEVERAGE,3585,2022
,2021 OFFICE OF THE SPEAKER,1,GENERAL EXPENDITURES,SUPPLIES AND MATERIALS,DETAIL,2022-01-04,AP,1508287,POLITICO LLC,2021-12-17,2022-12-16,PUBLICATIONS/REFERENCE MAT'L,7950,2022
,2021 OFFICE OF THE SPEAKER,1,GENERAL EXPENDITURES,SUPPLIES AND MATERIALS,DETAIL,2022-01-04,AP,1508297,MOREDIRECT INC DBA CONNECTION,2021-12-03,2021-12-03,OFFICE SUPPLIES (OUTSIDE),5939.84,2022
,2021 OFFICE OF THE SPEAKER,1,GENERAL EXPENDITURES,SUPPLIES AND MATERIALS,DETAIL,2022-01-06,AP,1510520,TOULIES EN FLEUR,2021-09-06,2021-09-27,HABITATION EXPENSE,825,2022
,2021 OFFICE OF THE SPEAKER,1,GENERAL EXPENDITURES,SUPPLIES AND MATERIALS,DETAIL,2022-01-06,AP,1510522,TOULIES EN FLEUR,2021-10-11,2021-10-25,HABITATION EXPENSE,760,2022
,2021 OFFICE OF THE SPEAKER,1,GENERAL EXPENDITURES,SUPPLIES AND MATERIALS,DETAIL,2022-01-06,AP,1510523,TOULIES EN FLEUR,2021-11-01,2021-11-29,HABITATION EXPENSE,1155,2022
,2021 OFFICE OF THE SPEAKER,1,GENERAL EXPENDITURES,SUPPLIES AND MATERIALS,DETAIL,2022-01-06,AP,1510524,TOULIES EN FLEUR,2021-12-06,2021-12-13,HABITATION EXPENSE,1135,2022
,2021 OFFICE OF THE SPEAKER,1,GENERAL EXPENDITURES,SUPPLIES AND MATERIALS,DETAIL,2022-01-06,AP,1510526,SODEXO INC & AFFILIATES,2021-12-14,2021-12-14,FOOD & BEVERAGE,60.63,2022
,2021 OFFICE OF THE SPEAKER,1,GENERAL EXPENDITURES,SUPPLIES AND MATERIALS,DETAIL,2022-01-07,AP,1510483,RELX INC DBA LEXISNEXIS,2022-01-01,2022-12-31,PUBLICATIONS/REFERENCE MAT'L,23652,2022
,2021 OFFICE OF THE SPEAKER,1,GENERAL EXPENDITURES,SUPPLIES AND MATERIALS,DETAIL,2022-01-07,AP,1510519,SUBURBAN FLORIST INC,2021-12-08,2021-12-08,HABITATION EXPENSE,525,2022
,2021 OFFICE OF THE SPEAKER,1,GENERAL EXPENDITURES,SUPPLIES AND MATERIALS,DETAIL,2022-01-19,AP,1515788,LEIDOS DIGITAL SOLUTIONS INC,2021-12-17,2022-12-16,SOFTWARE  LESS THAN  $500,6500,2022
,2021 OFFICE OF THE SPEAKER,1,GENERAL EXPENDITURES,SUPPLIES AND MATERIALS,DETAIL,2022-01-19,AP,1515791,OCCASIONS CATERERS,2021-12-09,2021-12-09,FOOD & BEVERAGE,9980,2022
,2021 OFFICE OF THE SPEAKER,1,GENERAL EXPENDITURES,SUPPLIES AND MATERIALS,DETAIL,2022-01-19,AP,1515794,OCCASIONS CATERERS,2021-12-10,2021-12-10,FOOD & BEVERAGE,3640,2022
,2021 OFFICE OF THE SPEAKER,1,GENERAL EXPENDITURES,SUPPLIES AND MATERIALS,DETAIL,2022-01-19,AP,1515798,MOREDIRECT INC DBA CONNECTION,2021-12-28,2021-12-28,OFFICE SUPPLIES (OUTSIDE),271.4,2022
,2021 OFFICE OF THE SPEAKER,1,GENERAL EXPENDITURES,SUPPLIES AND MATERIALS,DETAIL,2022-01-21,AP,1515842,CITI PCARD-AMZN Mktp US ZV8MY0RU3,2021-12-07,2021-12-07,OFFICE SUPPLIES (OUTSIDE),34.99,2022
,2021 OFFICE OF THE SPEAKER,1,GENERAL EXPENDITURES,SUPPLIES AND MATERIALS,DETAIL,2022-01-21,AP,1515842,CITI PCARD-ASANA.COM,2021-12-17,2022-01-16,SOFTWARE  LESS THAN  $500,152.45,2022
,2021 OFFICE OF THE SPEAKER,1,GENERAL EXPENDITURES,SUPPLIES AND MATERIALS,DETAIL,2022-01-21,AP,1515842,CITI PCARD-DESCRIPT,2021-12-25,2022-01-25,SOFTWARE  LESS THAN  $500,30,2022
,2021 OFFICE OF THE SPEAKER,1,GENERAL EXPENDITURES,SUPPLIES AND MATERIALS,DETAIL,2022-01-21,AP,1515842,CITI PCARD-LIVEU INC,2021-12-15,2022-01-15,SOFTWARE  LESS THAN  $500,312.7,2022
,2021 OFFICE OF THE SPEAKER,1,GENERAL EXPENDITURES,SUPPLIES AND MATERIALS,DETAIL,2022-01-21,AP,1515842,CITI PCARD-LUMEN5.COM,2021-12-18,2022-01-18,SOFTWARE  LESS THAN  $500,199,2022
,2021 OFFICE OF THE SPEAKER,1,GENERAL EXPENDITURES,SUPPLIES AND MATERIALS,DETAIL,2022-01-21,AP,1515842,CITI PCARD-RESTREAM INC.,2021-12-18,2022-01-18,SOFTWARE  LESS THAN  $500,99,2022
,2021 OFFICE OF THE SPEAKER,1,GENERAL EXPENDITURES,SUPPLIES AND MATERIALS,DETAIL,2022-01-21,AP,1515842,CITI PCARD-WWW.TWITTER.COM,2021-12-02,2022-01-02,SOFTWARE  LESS THAN  $500,2.99,2022
,2021 OFFICE OF THE SPEAKER,1,GENERAL EXPENDITURES,SUPPLIES AND MATERIALS,DETAIL,2022-01-26,AP,1520387,CITI PCARD-AMAZON.COM FW4WS9OP3 AMZN,2021-11-30,2021-11-30,FOOD & BEVERAGE,49.31,2022
,2021 OFFICE OF THE SPEAKER,1,GENERAL EXPENDITURES,SUPPLIES AND MATERIALS,DETAIL,2022-01-26,AP,1520387,CITI PCARD-AMZN Mktp US,2021-10-30,2021-10-30,OFFICE SUPPLIES (OUTSIDE),-118.93,2022
,2021 OFFICE OF THE SPEAKER,1,GENERAL EXPENDITURES,SUPPLIES AND MATERIALS,DETAIL,2022-01-26,AP,1520387,CITI PCARD-AMZN Mktp US,2021-12-13,2021-12-13,OFFICE SUPPLIES (OUTSIDE),-1459.27,2022
,2021 OFFICE OF THE SPEAKER,1,GENERAL EXPENDITURES,SUPPLIES AND MATERIALS,DETAIL,2022-01-26,AP,1520387,CITI PCARD-AMZN Mktp US,2021-12-17,2021-12-17,OFFICE SUPPLIES (OUTSIDE),9.52,2022
,2021 OFFICE OF THE SPEAKER,1,GENERAL EXPENDITURES,SUPPLIES AND MATERIALS,DETAIL,2022-01-26,AP,1520387,CITI PCARD-AMZN Mktp US 1Y6J88I83,2021-12-13,2021-12-13,OFFICE SUPPLIES (OUTSIDE),1399.3,2022
,2021 OFFICE OF THE SPEAKER,1,GENERAL EXPENDITURES,SUPPLIES AND MATERIALS,DETAIL,2022-01-26,AP,1520387,CITI PCARD-AMZN Mktp US 4N6NC6C33,2021-12-06,2021-12-06,OFFICE SUPPLIES (OUTSIDE),35.98,2022
,2021 OFFICE OF THE SPEAKER,1,GENERAL EXPENDITURES,SUPPLIES AND MATERIALS,DETAIL,2022-01-26,AP,1520387,CITI PCARD-AMZN Mktp US C72CO7FY3,2021-12-13,2021-12-13,OFFICE SUPPLIES (OUTSIDE),99.95,2022
,2021 OFFICE OF THE SPEAKER,1,GENERAL EXPENDITURES,SUPPLIES AND MATERIALS,DETAIL,2022-01-26,AP,1520387,CITI PCARD-Amazon.com,2021-10-29,2021-10-29,OFFICE SUPPLIES (OUTSIDE),-61.99,2022
,2021 OFFICE OF THE SPEAKER,1,GENERAL EXPENDITURES,SUPPLIES AND MATERIALS,DETAIL,2022-01-26,AP,1520387,CITI PCARD-BED BATH & BEYOND #1177,2021-12-16,2021-12-16,OFFICE SUPPLIES (OUTSIDE),0.15,2022
,2021 OFFICE OF THE SPEAKER,1,GENERAL EXPENDITURES,SUPPLIES AND MATERIALS,DETAIL,2022-01-26,AP,1520387,CITI PCARD-TARGET        00014167,2021-12-06,2021-12-06,FOOD & BEVERAGE,389.22,2022
,2021 OFFICE OF THE SPEAKER,1,GENERAL EXPENDITURES,SUPPLIES AND MATERIALS,DETAIL,2022-01-26,AP,1520387,CITI PCARD-TARGET        00014167,2021-12-06,2021-12-06,OFFICE SUPPLIES (OUTSIDE),6.87,2022
,2021 OFFICE OF THE SPEAKER,1,GENERAL EXPENDITURES,SUPPLIES AND MATERIALS,DETAIL,2022-01-26,AP,1520387,CITI PCARD-TARGET        00022590,2021-12-13,2021-12-13,OFFICE SUPPLIES (OUTSIDE),0.1,2022
,2021 OFFICE OF THE SPEAKER,1,GENERAL EXPENDITURES,SUPPLIES AND MATERIALS,DETAIL,2022-01-26,AP,1520387,CITI PCARD-WE THE PIZZA,2021-12-07,2021-12-07,FOOD & BEVERAGE,384.1,2022
,2021 OFFICE OF THE SPEAKER,1,GENERAL EXPENDITURES,SUPPLIES AND MATERIALS,DETAIL,2022-01-26,AP,1520387,CITI PCARD-WE THE PIZZA,2021-12-14,2021-12-14,FOOD & BEVERAGE,288.08,2022
,2021 OFFICE OF THE SPEAKER,1,GENERAL EXPENDITURES,SUPPLIES AND MATERIALS,DETAIL,2022-01-31,GL,RMS0112721, ,2021-12-01,2021-12-31,OFFICE SUPPLY (TRANSFER),193.08,2022
,2021 OFFICE OF THE SPEAKER,1,GENERAL EXPENDITURES,SUPPLIES AND MATERIALS,DETAIL,2022-02-07,AP,1522715,SODEXO INC & AFFILIATES,2021-11-05,2021-11-05,FOOD & BEVERAGE,121.25,2022
,2021 OFFICE OF THE SPEAKER,1,GENERAL EXPENDITURES,SUPPLIES AND MATERIALS,DETAIL,2022-02-07,AP,1522731,SODEXO INC & AFFILIATES,2021-12-07,2021-12-07,FOOD & BEVERAGE,60.63,2022
,2021 OFFICE OF THE SPEAKER,1,GENERAL EXPENDITURES,SUPPLIES AND MATERIALS,DETAIL,2022-02-07,AP,1522737,SODEXO INC & AFFILIATES,2021-08-23,2021-08-23,FOOD & BEVERAGE,213.27,2022
,2021 OFFICE OF THE SPEAKER,1,GENERAL EXPENDITURES,SUPPLIES AND MATERIALS,DETAIL,2022-02-07,AP,1522738,SODEXO INC & AFFILIATES,2021-08-24,2021-08-24,FOOD & BEVERAGE,200.93,2022
,2021 OFFICE OF THE SPEAKER,1,GENERAL EXPENDITURES,SUPPLIES AND MATERIALS,DETAIL,2022-02-07,AP,1522750,SODEXO INC & AFFILIATES,2021-11-30,2021-11-30,FOOD & BEVERAGE,60.63,2022
,2021 OFFICE OF THE SPEAKER,1,GENERAL EXPENDITURES,SUPPLIES AND MATERIALS,DETAIL,2022-02-08,AP,1522455,SODEXO INC & AFFILIATES,2021-11-01,2021-11-01,FOOD & BEVERAGE,60.63,2022
,2021 OFFICE OF THE SPEAKER,1,GENERAL EXPENDITURES,SUPPLIES AND MATERIALS,DETAIL,2022-02-08,AP,1522720,SODEXO INC & AFFILIATES,2021-11-15,2021-11-15,FOOD & BEVERAGE,60.63,2022
,2021 OFFICE OF THE SPEAKER,1,GENERAL EXPENDITURES,SUPPLIES AND MATERIALS,DETAIL,2022-02-08,AP,1522733,SODEXO INC & AFFILIATES,2021-12-07,2021-12-07,FOOD & BEVERAGE,245.01,2022
,2021 OFFICE OF THE SPEAKER,1,GENERAL EXPENDITURES,SUPPLIES AND MATERIALS,DETAIL,2022-02-08,AP,1522744,SODEXO INC & AFFILIATES,2021-11-01,2021-11-01,FOOD & BEVERAGE,245.01,2022
,2021 OFFICE OF THE SPEAKER,1,GENERAL EXPENDITURES,SUPPLIES AND MATERIALS,DETAIL,2022-02-08,AP,1522746,SODEXO INC & AFFILIATES,2021-11-15,2021-11-15,FOOD & BEVERAGE,245.01,2022
,2021 OFFICE OF THE SPEAKER,1,GENERAL EXPENDITURES,SUPPLIES AND MATERIALS,DETAIL,2022-02-08,AP,1522756,SODEXO INC & AFFILIATES,2021-11-30,2021-11-30,FOOD & BEVERAGE,245.01,2022
,2021 OFFICE OF THE SPEAKER,1,GENERAL EXPENDITURES,SUPPLIES AND MATERIALS,DETAIL,2022-02-16,AR,AC-17803,SUBURBAN FLORIST INC,2021-12-08,2021-12-08,HABITATION EXPENSE,-525,2022
,2021 OFFICE OF THE SPEAKER,1,GENERAL EXPENDITURES,SUPPLIES AND MATERIALS,DETAIL,2022-02-17,AP,1524442,CITI PCARD-SUBURBAN FLORIST,2021-12-30,2021-12-30,HABITATION EXPENSE,1050,2022
,2021 OFFICE OF THE SPEAKER,1,GENERAL EXPENDITURES,SUPPLIES AND MATERIALS,DETAIL,2022-03-03,AP,1530699,CITI PCARD-WWW.TWITTER.COM,2022-01-02,2022-02-02,SOFTWARE  LESS THAN  $500,2.99,2022
,2021 OFFICE OF THE SPEAKER,1,GENERAL EXPENDITURES,SUPPLIES AND MATERIALS,SUBTOTAL,   ,   ,   ,   ,   ,   ,SUPPLIES AND MATERIALS TOTALS:,70348.09,2022
,2021 OFFICE OF THE SPEAKER,1,GENERAL EXPENDITURES,EQUIPMENT,DETAIL,2022-03-11,AP,1535871,MOREDIRECT INC DBA CONNECTION,2022-02-08,2022-02-08,COMPUTER HARDW PURCH  LESS THAN $25 000,3299,2022
,2021 OFFICE OF THE SPEAKER,1,GENERAL EXPENDITURES,EQUIPMENT,DETAIL,2022-03-11,GL,GLA0113796, ,2022-03-03,2022-03-03,COMPUTER HARDW PURCH  LESS THAN $25 000,20462.6,2022
,2021 OFFICE OF THE SPEAKER,1,GENERAL EXPENDITURES,EQUIPMENT,DETAIL,2022-03-17,AP,1540175,MOREDIRECT INC DBA CONNECTION,2022-01-05,2022-01-05,OFFICE EQUIP PURCH LESS THAN $25 000,694.95,2022
,2021 OFFICE OF THE SPEAKER,1,GENERAL EXPENDITURES,EQUIPMENT,SUBTOTAL,   ,   ,   ,   ,   ,   ,EQUIPMENT TOTALS:,24456.55,2022
,2021 OFFICE OF THE SPEAKER,1,GENERAL EXPENDITURES,EQUIPMENT,SUBTOTAL,   ,   ,   ,   ,   ,   ,GENERAL EXPENDITURES TOTALS:,327508.15,2022
,2021 OFFICE OF THE SPEAKER,1,GENERAL EXPENDITURES,EQUIPMENT,GRAND TOTAL FOR ORGANIZATION,   ,   ,   ,   ,   ,   ,OFFICE TOTALS: ,327508.15,2022
,2022 OFFICE OF THE SPEAKER,1,INTERN ALLOWANCES,PERSONNEL COMPENSATION,DETAIL,   ,   ,   ,JOHNSON TEVYE F.,2022-01-12,2022-03-31,SPEAKER PAID INTERN - HOUSE PR,3792,2022
,2022 OFFICE OF THE SPEAKER,1,INTERN ALLOWANCES,PERSONNEL COMPENSATION,DETAIL,   ,   ,   ,KAPASE KRISHNA S.,2022-01-25,2022-03-31,SPEAKER PAID INTERN - HOUSE PR,3960,2022
,2022 OFFICE OF THE SPEAKER,1,INTERN ALLOWANCES,PERSONNEL COMPENSATION,DETAIL,   ,   ,   ,OCHOA MARGAUX V.,2022-01-12,2022-03-31,SPEAKER PAID INTERN - HOUSE PR,3792,2022
,2022 OFFICE OF THE SPEAKER,1,INTERN ALLOWANCES,PERSONNEL COMPENSATION,DETAIL,   ,   ,   ,PARADA UMANA SAMARA,2022-01-10,2022-03-31,SPEAKER PAID INTERN - HOUSE PR,3888,2022
,2022 OFFICE OF THE SPEAKER,1,INTERN ALLOWANCES,PERSONNEL COMPENSATION,SUBTOTAL,   ,   ,   ,   ,   ,   ,PERSONNEL COMPENSATION TOTALS:,15432,2022
,2022 OFFICE OF THE SPEAKER,1,INTERN ALLOWANCES,PERSONNEL COMPENSATION,SUBTOTAL,   ,   ,   ,   ,   ,   ,INTERN ALLOWANCES TOTALS:,15432,2022
,2022 OFFICE OF THE SPEAKER,1,INTERN ALLOWANCES,PERSONNEL COMPENSATION,GRAND TOTAL FOR ORGANIZATION,   ,   ,   ,   ,   ,   ,OFFICE TOTALS: ,15432,2022
,2022 OFFICE OF THE MAJORITY LEADER,1,GENERAL EXPENDITURES,PERSONNEL COMPENSATION,DETAIL,   ,   ,   ,ABOUCHAR KEITH S.,2022-01-03,2022-03-31,SENIOR POLICY ADVISOR,36666.67,2022
,2022 OFFICE OF THE MAJORITY LEADER,1,GENERAL EXPENDITURES,PERSONNEL COMPENSATION,DETAIL,   ,   ,   ,ADAMS JOSIAH C.,2022-03-01,2022-03-31,DEPUTY SCHEDULER,1286.67,2022
,2022 OFFICE OF THE MAJORITY LEADER,1,GENERAL EXPENDITURES,PERSONNEL COMPENSATION,DETAIL,   ,   ,   ,BAUSERMAN TRENTON D,2022-01-03,2022-03-31,SENIOR POLICY ADVISOR,36666.67,2022
,2022 OFFICE OF THE MAJORITY LEADER,1,GENERAL EXPENDITURES,PERSONNEL COMPENSATION,DETAIL,   ,   ,   ,BAYER JOHN S,2022-01-03,2022-03-31,MEMBER SERVICES & OUTREACH ADV,20777.77,2022
,2022 OFFICE OF THE MAJORITY LEADER,1,GENERAL EXPENDITURES,PERSONNEL COMPENSATION,DETAIL,   ,   ,   ,BEAN HARLEIGH J.,2022-01-03,2022-02-28,OFFICE MANAGER/EXEC ASST,9666.67,2022
,2022 OFFICE OF THE MAJORITY LEADER,1,GENERAL EXPENDITURES,PERSONNEL COMPENSATION,DETAIL,   ,   ,   ,BEAN HARLEIGH J.,2022-03-01,2022-03-31,DIR OF OPS & STRAT PLANNING,9583.33,2022
,2022 OFFICE OF THE MAJORITY LEADER,1,GENERAL EXPENDITURES,PERSONNEL COMPENSATION,DETAIL,   ,   ,   ,BRENNAN BRIDGET E,2022-01-03,2022-03-04,DIRECTOR OF SCHEDULING,18083.34,2022
,2022 OFFICE OF THE MAJORITY LEADER,1,GENERAL EXPENDITURES,PERSONNEL COMPENSATION,DETAIL,   ,   ,   ,BROWN CHLOE M,2022-01-03,2022-03-31,RESEARCH AND OUTREACH ADVISOR,19555.56,2022
,2022 OFFICE OF THE MAJORITY LEADER,1,GENERAL EXPENDITURES,PERSONNEL COMPENSATION,DETAIL,   ,   ,   ,COVEY-BRANDT ALEXIS,2022-01-01,2022-01-31,CHIEF OF STAFF,-1107.22,2022
,2022 OFFICE OF THE MAJORITY LEADER,1,GENERAL EXPENDITURES,PERSONNEL COMPENSATION,DETAIL,   ,   ,   ,COVEY-BRANDT ALEXIS,2022-01-01,2022-03-31,CHIEF OF STAFF,49824.99,2022
,2022 OFFICE OF THE MAJORITY LEADER,1,GENERAL EXPENDITURES,PERSONNEL COMPENSATION,DETAIL,   ,   ,   ,DUCKWORTH BRIAN A.,2022-01-03,2022-03-31,SENIOR MEMBER SERVICES ADVISOR,22000,2022
,2022 OFFICE OF THE MAJORITY LEADER,1,GENERAL EXPENDITURES,PERSONNEL COMPENSATION,DETAIL,   ,   ,   ,DWYER STEPHEN,2022-01-03,2022-03-31,DIGITAL DIR & POLICY ADV,25336.67,2022
,2022 OFFICE OF THE MAJORITY LEADER,1,GENERAL EXPENDITURES,PERSONNEL COMPENSATION,DETAIL,   ,   ,   ,FRY COURTNEY,2022-01-01,2022-01-31,FLOOR DIRECTOR,-1107.22,2022
,2022 OFFICE OF THE MAJORITY LEADER,1,GENERAL EXPENDITURES,PERSONNEL COMPENSATION,DETAIL,   ,   ,   ,FRY COURTNEY,2022-01-01,2022-03-31,FLOOR DIRECTOR,47441.66,2022
,2022 OFFICE OF THE MAJORITY LEADER,1,GENERAL EXPENDITURES,PERSONNEL COMPENSATION,DETAIL,   ,   ,   ,IOZZI MARK P,2022-01-03,2022-03-31,SENIOR POLICY ADVISOR,17722.23,2022
,2022 OFFICE OF THE MAJORITY LEADER,1,GENERAL EXPENDITURES,PERSONNEL COMPENSATION,DETAIL,   ,   ,   ,JACKSON JAMIE L,2022-01-03,2022-03-31,SENIOR COUNSEL,36666.67,2022
,2022 OFFICE OF THE MAJORITY LEADER,1,GENERAL EXPENDITURES,PERSONNEL COMPENSATION,DETAIL,   ,   ,   ,JEYADEV VIDHYA S.,2022-01-03,2022-03-31,PRESS ASSISTANT,12329.77,2022
,2022 OFFICE OF THE MAJORITY LEADER,1,GENERAL EXPENDITURES,PERSONNEL COMPENSATION,DETAIL,   ,   ,   ,LEUSCHEN JAMES P.,2022-01-03,2022-03-31,POLICY DIRECTOR,42777.77,2022
,2022 OFFICE OF THE MAJORITY LEADER,1,GENERAL EXPENDITURES,PERSONNEL COMPENSATION,DETAIL,   ,   ,   ,MEHRAN NICOLETTE,2022-01-03,2022-03-31,STAFF ASSISTANT,9036.66,2022
,2022 OFFICE OF THE MAJORITY LEADER,1,GENERAL EXPENDITURES,PERSONNEL COMPENSATION,DETAIL,   ,   ,   ,MEHRAN NICOLETTE,2022-01-01,2022-02-28,STAFF ASSISTANT (OVERTIME),2033.63,2022
,2022 OFFICE OF THE MAJORITY LEADER,1,GENERAL EXPENDITURES,PERSONNEL COMPENSATION,DETAIL,   ,   ,   ,MERZ JULIE E,2022-01-03,2022-03-31,MEMBER SERVICES DIRECTOR,20777.77,2022
,2022 OFFICE OF THE MAJORITY LEADER,1,GENERAL EXPENDITURES,PERSONNEL COMPENSATION,DETAIL,   ,   ,   ,MULKERRIN MARGARET A,2022-01-03,2022-03-31,COMMUNICATIONS DIRECTOR,29333.33,2022
,2022 OFFICE OF THE MAJORITY LEADER,1,GENERAL EXPENDITURES,PERSONNEL COMPENSATION,DETAIL,   ,   ,   ,ROMICK BRIAN,2022-01-01,2022-01-31,DEPUTY CHIEF OF STAFF,-1107.22,2022
,2022 OFFICE OF THE MAJORITY LEADER,1,GENERAL EXPENDITURES,PERSONNEL COMPENSATION,DETAIL,   ,   ,   ,ROMICK BRIAN,2022-01-01,2022-03-31,DEPUTY CHIEF OF STAFF,49824.99,2022
,2022 OFFICE OF THE MAJORITY LEADER,1,GENERAL EXPENDITURES,PERSONNEL COMPENSATION,DETAIL,   ,   ,   ,ROWE DEBORAH M,2022-01-03,2022-03-31,SENIOR FLOOR ADVISOR,26888.9,2022
,2022 OFFICE OF THE MAJORITY LEADER,1,GENERAL EXPENDITURES,PERSONNEL COMPENSATION,DETAIL,   ,   ,   ,SALAZAR HANNAH L.,2022-01-03,2022-03-31,STAFF ASSISTANT,9036.66,2022
,2022 OFFICE OF THE MAJORITY LEADER,1,GENERAL EXPENDITURES,PERSONNEL COMPENSATION,DETAIL,   ,   ,   ,SALAZAR HANNAH L.,2022-01-01,2022-02-28,STAFF ASSISTANT (OVERTIME),1903.83,2022
,2022 OFFICE OF THE MAJORITY LEADER,1,GENERAL EXPENDITURES,PERSONNEL COMPENSATION,DETAIL,   ,   ,   ,SALAZAR RAYMOND J.,2022-01-03,2022-03-31,DEPUTY FLOOR DIRECTOR & SR ADV,28111.1,2022
,2022 OFFICE OF THE MAJORITY LEADER,1,GENERAL EXPENDITURES,PERSONNEL COMPENSATION,DETAIL,   ,   ,   ,SNYDER RACHEL N,2022-01-03,2022-03-31,SENIOR POLICY ADVISOR,15277.77,2022
,2022 OFFICE OF THE MAJORITY LEADER,1,GENERAL EXPENDITURES,PERSONNEL COMPENSATION,DETAIL,   ,   ,   ,SPAK MICHAEL J,2022-01-03,2022-03-31,SPECIAL ASSISTANT,14666.67,2022
,2022 OFFICE OF THE MAJORITY LEADER,1,GENERAL EXPENDITURES,PERSONNEL COMPENSATION,DETAIL,   ,   ,   ,TRAUBERMAN JACOB M,2022-01-03,2022-03-31,FLOOR AIDE,18333.33,2022
,2022 OFFICE OF THE MAJORITY LEADER,1,GENERAL EXPENDITURES,PERSONNEL COMPENSATION,DETAIL,   ,   ,   ,URRABAZO CLAUDIA,2022-01-03,2022-03-31,DEP. MBR SER DIR & SR ADV,34222.23,2022
,2022 OFFICE OF THE MAJORITY LEADER,1,GENERAL EXPENDITURES,PERSONNEL COMPENSATION,DETAIL,   ,   ,   ,WEISSMANN ADAM,2022-01-03,2022-03-31,SPEECHWRITER,29333.33,2022
,2022 OFFICE OF THE MAJORITY LEADER,1,GENERAL EXPENDITURES,PERSONNEL COMPENSATION,SUBTOTAL,   ,   ,   ,   ,   ,   ,PERSONNEL COMPENSATION TOTALS:,691844.98,2022
,2022 OFFICE OF THE MAJORITY LEADER,1,GENERAL EXPENDITURES,RENT  COMMUNICATION  UTILITIES,DETAIL,2022-03-29,GL,MED0114088, ,2022-03-10,2022-03-10,HIR GRAPHICS (TRANSFER),20,2022
,2022 OFFICE OF THE MAJORITY LEADER,1,GENERAL EXPENDITURES,RENT  COMMUNICATION  UTILITIES,SUBTOTAL,   ,   ,   ,   ,   ,   ,RENT  COMMUNICATION  UTILITIES TOTALS:,20,2022
,2022 OFFICE OF THE MAJORITY LEADER,1,GENERAL EXPENDITURES,OTHER SERVICES,DETAIL,2022-03-29,AP,1542736,PRESKENIS PERRIN ASSOCIATES INC,2022-01-28,2022-01-28,TRAINING,2370,2022
,2022 OFFICE OF THE MAJORITY LEADER,1,GENERAL EXPENDITURES,OTHER SERVICES,SUBTOTAL,   ,   ,   ,   ,   ,   ,OTHER SERVICES TOTALS:,2370,2022
,2022 OFFICE OF THE MAJORITY LEADER,1,GENERAL EXPENDITURES,SUPPLIES AND MATERIALS,DETAIL,2022-03-01,AP,1531762,READYREFRESH BY NESTLE,2022-01-31,2022-01-31,WATER,40.89,2022
,2022 OFFICE OF THE MAJORITY LEADER,1,GENERAL EXPENDITURES,SUPPLIES AND MATERIALS,DETAIL,2022-03-29,AP,1542709,READYREFRESH BY NESTLE,2022-02-28,2022-02-28,WATER,92.81,2022
,2022 OFFICE OF THE MAJORITY LEADER,1,GENERAL EXPENDITURES,SUPPLIES AND MATERIALS,SUBTOTAL,   ,   ,   ,   ,   ,   ,SUPPLIES AND MATERIALS TOTALS:,133.7,2022
,2022 OFFICE OF THE MAJORITY LEADER,1,GENERAL EXPENDITURES,SUPPLIES AND MATERIALS,SUBTOTAL,   ,   ,   ,   ,   ,   ,GENERAL EXPENDITURES TOTALS:,694368.68,2022
,2022 OFFICE OF THE MAJORITY LEADER,1,GENERAL EXPENDITURES,SUPPLIES AND MATERIALS,GRAND TOTAL FOR ORGANIZATION,   ,   ,   ,   ,   ,   ,OFFICE TOTALS: ,694368.68,2022
,2021 OFFICE OF THE MAJORITY LEADER,1,GENERAL EXPENDITURES,PERSONNEL COMPENSATION,DETAIL,   ,   ,   ,ABOUCHAR KEITH S.,2022-01-01,2022-01-02,SENIOR POLICY ADVISOR,1107.22,2022
,2021 OFFICE OF THE MAJORITY LEADER,1,GENERAL EXPENDITURES,PERSONNEL COMPENSATION,DETAIL,   ,   ,   ,BAUSERMAN TRENTON D,2022-01-01,2022-01-02,SENIOR POLICY ADVISOR,1107.22,2022
,2021 OFFICE OF THE MAJORITY LEADER,1,GENERAL EXPENDITURES,PERSONNEL COMPENSATION,DETAIL,   ,   ,   ,BAYER JOHN S,2022-01-01,2022-01-02,MEMBER SERVICES & OUTREACH ADV,777.8,2022
,2021 OFFICE OF THE MAJORITY LEADER,1,GENERAL EXPENDITURES,PERSONNEL COMPENSATION,DETAIL,   ,   ,   ,BEAN HARLEIGH J.,2022-01-01,2022-01-02,OFFICE MANAGER/EXEC ASST,972.2,2022
,2021 OFFICE OF THE MAJORITY LEADER,1,GENERAL EXPENDITURES,PERSONNEL COMPENSATION,DETAIL,   ,   ,   ,BRENNAN BRIDGET E,2022-01-01,2022-01-02,DIRECTOR OF SCHEDULING,972.22,2022
,2021 OFFICE OF THE MAJORITY LEADER,1,GENERAL EXPENDITURES,PERSONNEL COMPENSATION,DETAIL,   ,   ,   ,BROWN CHLOE M,2022-01-01,2022-01-02,RESEARCH AND OUTREACH ADVISOR,777.8,2022
,2021 OFFICE OF THE MAJORITY LEADER,1,GENERAL EXPENDITURES,PERSONNEL COMPENSATION,DETAIL,   ,   ,   ,COVEY-BRANDT ALEXIS,2022-01-01,2022-01-02,CHIEF OF STAFF,1107.22,2022
,2021 OFFICE OF THE MAJORITY LEADER,1,GENERAL EXPENDITURES,PERSONNEL COMPENSATION,DETAIL,   ,   ,   ,DUCKWORTH BRIAN A.,2022-01-01,2022-01-02,SENIOR MEMBER SERVICES ADVISOR,833.33,2022
,2021 OFFICE OF THE MAJORITY LEADER,1,GENERAL EXPENDITURES,PERSONNEL COMPENSATION,DETAIL,   ,   ,   ,DWYER STEPHEN,2022-01-01,2022-01-02,DIGITAL DIR & POLICY ADV,6.67,2022
,2021 OFFICE OF THE MAJORITY LEADER,1,GENERAL EXPENDITURES,PERSONNEL COMPENSATION,DETAIL,   ,   ,   ,FRY COURTNEY,2022-01-01,2022-01-02,FLOOR DIRECTOR,1107.22,2022
,2021 OFFICE OF THE MAJORITY LEADER,1,GENERAL EXPENDITURES,PERSONNEL COMPENSATION,DETAIL,   ,   ,   ,IOZZI MARK P,2022-01-01,2022-01-02,SENIOR POLICY ADVISOR,6.67,2022
,2021 OFFICE OF THE MAJORITY LEADER,1,GENERAL EXPENDITURES,PERSONNEL COMPENSATION,DETAIL,   ,   ,   ,JACKSON JAMIE L,2022-01-01,2022-01-02,SENIOR COUNSEL,1107.22,2022
,2021 OFFICE OF THE MAJORITY LEADER,1,GENERAL EXPENDITURES,PERSONNEL COMPENSATION,DETAIL,   ,   ,   ,JEYADEV VIDHYA S.,2022-01-01,2022-01-02,PRESS ASSISTANT,613.53,2022
,2021 OFFICE OF THE MAJORITY LEADER,1,GENERAL EXPENDITURES,PERSONNEL COMPENSATION,DETAIL,   ,   ,   ,LEUSCHEN JAMES P.,2022-01-01,2022-01-02,POLICY DIRECTOR,1107.22,2022
,2021 OFFICE OF THE MAJORITY LEADER,1,GENERAL EXPENDITURES,PERSONNEL COMPENSATION,DETAIL,   ,   ,   ,MEHRAN NICOLETTE,2022-01-01,2022-01-02,STAFF ASSISTANT,488.87,2022
,2021 OFFICE OF THE MAJORITY LEADER,1,GENERAL EXPENDITURES,PERSONNEL COMPENSATION,DETAIL,   ,   ,   ,MEHRAN NICOLETTE,2021-12-01,2021-12-31,STAFF ASSISTANT (OVERTIME),3172.9,2022
,2021 OFFICE OF THE MAJORITY LEADER,1,GENERAL EXPENDITURES,PERSONNEL COMPENSATION,DETAIL,   ,   ,   ,MERZ JULIE E,2022-01-01,2022-01-02,MEMBER SERVICES DIRECTOR,553.61,2022
,2021 OFFICE OF THE MAJORITY LEADER,1,GENERAL EXPENDITURES,PERSONNEL COMPENSATION,DETAIL,   ,   ,   ,MULKERRIN MARGARET A,2022-01-01,2022-01-02,NATIONAL PRESS SECRETARY,777.8,2022
,2021 OFFICE OF THE MAJORITY LEADER,1,GENERAL EXPENDITURES,PERSONNEL COMPENSATION,DETAIL,   ,   ,   ,ROMICK BRIAN,2022-01-01,2022-01-02,DEPUTY CHIEF OF STAFF,1107.22,2022
,2021 OFFICE OF THE MAJORITY LEADER,1,GENERAL EXPENDITURES,PERSONNEL COMPENSATION,DETAIL,   ,   ,   ,ROWE DEBORAH M,2022-01-01,2022-01-02,SENIOR FLOOR ADVISOR,916.67,2022
,2021 OFFICE OF THE MAJORITY LEADER,1,GENERAL EXPENDITURES,PERSONNEL COMPENSATION,DETAIL,   ,   ,   ,SALAZAR HANNAH L.,2022-01-01,2022-01-02,STAFF ASSISTANT,488.87,2022
,2021 OFFICE OF THE MAJORITY LEADER,1,GENERAL EXPENDITURES,PERSONNEL COMPENSATION,DETAIL,   ,   ,   ,SALAZAR HANNAH L.,2021-12-01,2021-12-31,STAFF ASSISTANT (OVERTIME),3426.73,2022
,2021 OFFICE OF THE MAJORITY LEADER,1,GENERAL EXPENDITURES,PERSONNEL COMPENSATION,DETAIL,   ,   ,   ,SALAZAR RAYMOND J.,2022-01-01,2022-01-02,DEPUTY FLOOR DIRECTOR & SR ADV,944.47,2022
,2021 OFFICE OF THE MAJORITY LEADER,1,GENERAL EXPENDITURES,PERSONNEL COMPENSATION,DETAIL,   ,   ,   ,SNYDER RACHEL N,2022-01-01,2022-01-02,SENIOR POLICY ADVISOR,6.67,2022
,2021 OFFICE OF THE MAJORITY LEADER,1,GENERAL EXPENDITURES,PERSONNEL COMPENSATION,DETAIL,   ,   ,   ,SPAK MICHAEL J,2022-01-01,2022-01-02,SPECIAL ASSISTANT,972.2,2022
,2021 OFFICE OF THE MAJORITY LEADER,1,GENERAL EXPENDITURES,PERSONNEL COMPENSATION,DETAIL,   ,   ,   ,TRAUBERMAN JACOB M,2022-01-01,2022-01-02,FLOOR AIDE,722.2,2022
,2021 OFFICE OF THE MAJORITY LEADER,1,GENERAL EXPENDITURES,PERSONNEL COMPENSATION,DETAIL,   ,   ,   ,URRABAZO CLAUDIA,2022-01-01,2022-01-02,DEP. MBR SER DIR & SR ADV,1107.2,2022
,2021 OFFICE OF THE MAJORITY LEADER,1,GENERAL EXPENDITURES,PERSONNEL COMPENSATION,DETAIL,   ,   ,   ,WEISSMANN ADAM,2022-01-01,2022-01-02,SPEECHWRITER,1000,2022
,2021 OFFICE OF THE MAJORITY LEADER,1,GENERAL EXPENDITURES,PERSONNEL COMPENSATION,SUBTOTAL,   ,   ,   ,   ,   ,   ,PERSONNEL COMPENSATION TOTALS:,27288.95,2022
,2021 OFFICE OF THE MAJORITY LEADER,1,GENERAL EXPENDITURES,SUPPLIES AND MATERIALS,DETAIL,2022-02-02,AP,1522059,READYREFRESH BY NESTLE,2021-12-31,2021-12-31,WATER,365.39,2022
,2021 OFFICE OF THE MAJORITY LEADER,1,GENERAL EXPENDITURES,SUPPLIES AND MATERIALS,DETAIL,2022-03-01,AP,1530977,TVEYES INC,2022-01-01,2022-12-31,PUBLICATIONS/REFERENCE MAT'L,1200,2022
,2021 OFFICE OF THE MAJORITY LEADER,1,GENERAL EXPENDITURES,SUPPLIES AND MATERIALS,SUBTOTAL,   ,   ,   ,   ,   ,   ,SUPPLIES AND MATERIALS TOTALS:,1565.39,2022
,2021 OFFICE OF THE MAJORITY LEADER,1,GENERAL EXPENDITURES,EQUIPMENT,DETAIL,2022-02-10,AP,1525272,LEIDOS DIGITAL SOLUTIONS INC,2022-02-09,2022-02-09,COMPUTER HARDW PURCH  LESS THAN $25 000,1125,2022
,2021 OFFICE OF THE MAJORITY LEADER,1,GENERAL EXPENDITURES,EQUIPMENT,SUBTOTAL,   ,   ,   ,   ,   ,   ,EQUIPMENT TOTALS:,1125,2022
,2021 OFFICE OF THE MAJORITY LEADER,1,GENERAL EXPENDITURES,EQUIPMENT,SUBTOTAL,   ,   ,   ,   ,   ,   ,GENERAL EXPENDITURES TOTALS:,29979.34,2022
,2021 OFFICE OF THE MAJORITY LEADER,1,GENERAL EXPENDITURES,EQUIPMENT,GRAND TOTAL FOR ORGANIZATION,   ,   ,   ,   ,   ,   ,OFFICE TOTALS: ,29979.34,2022
,2022 OFFICE OF THE MAJORITY LEADER,1,INTERN ALLOWANCES,PERSONNEL COMPENSATION,DETAIL,   ,   ,   ,BIANCO GRANT M.,2022-01-01,2022-01-31,MAJ LEADER PAID INTERN - HOUSE,600,2022
,2022 OFFICE OF THE MAJORITY LEADER,1,INTERN ALLOWANCES,PERSONNEL COMPENSATION,DETAIL,   ,   ,   ,BLANTON ALEXANDER G.,2022-01-01,2022-01-31,MAJ LEADER PAID INTERN - HOUSE,600,2022
,2022 OFFICE OF THE MAJORITY LEADER,1,INTERN ALLOWANCES,PERSONNEL COMPENSATION,DETAIL,   ,   ,   ,BROWN ELLIE S.,2022-02-10,2022-03-31,MAJ LEADER PAID INTERN - HOUSE,622.5,2022
,2022 OFFICE OF THE MAJORITY LEADER,1,INTERN ALLOWANCES,PERSONNEL COMPENSATION,DETAIL,   ,   ,   ,CARUSO ROBERT J.,2022-01-01,2022-01-31,MAJ LEADER PAID INTERN - HOUSE,600,2022
,2022 OFFICE OF THE MAJORITY LEADER,1,INTERN ALLOWANCES,PERSONNEL COMPENSATION,DETAIL,   ,   ,   ,ELLINGSON COSENZA ELENA J.,2022-02-10,2022-03-31,MAJ LEADER PAID INTERN - HOUSE,1081.8,2022
,2022 OFFICE OF THE MAJORITY LEADER,1,INTERN ALLOWANCES,PERSONNEL COMPENSATION,DETAIL,   ,   ,   ,GRIMALDO ANDREA Y.,2022-02-10,2022-03-31,MAJ LEADER PAID INTERN - HOUSE,622.5,2022
,2022 OFFICE OF THE MAJORITY LEADER,1,INTERN ALLOWANCES,PERSONNEL COMPENSATION,DETAIL,   ,   ,   ,HO CHRISTINE W.,2022-02-10,2022-02-23,MAJ LEADER PAID INTERN - HOUSE,81.67,2022
,2022 OFFICE OF THE MAJORITY LEADER,1,INTERN ALLOWANCES,PERSONNEL COMPENSATION,DETAIL,   ,   ,   ,INGLE PETER N.,2022-01-01,2022-01-31,MAJ LEADER PAID INTERN - HOUSE,600,2022
,2022 OFFICE OF THE MAJORITY LEADER,1,INTERN ALLOWANCES,PERSONNEL COMPENSATION,DETAIL,   ,   ,   ,JACKSON HANNAH D.,2022-02-10,2022-03-31,MAJ LEADER PAID INTERN - HOUSE,622.5,2022
,2022 OFFICE OF THE MAJORITY LEADER,1,INTERN ALLOWANCES,PERSONNEL COMPENSATION,DETAIL,   ,   ,   ,JOHNSON PEOLA K.,2022-02-10,2022-03-23,MAJ LEADER PAID INTERN - HOUSE,520.13,2022
,2022 OFFICE OF THE MAJORITY LEADER,1,INTERN ALLOWANCES,PERSONNEL COMPENSATION,DETAIL,   ,   ,   ,JONES ERIC V.,2022-02-10,2022-03-31,MAJ LEADER PAID INTERN - HOUSE,415,2022
,2022 OFFICE OF THE MAJORITY LEADER,1,INTERN ALLOWANCES,PERSONNEL COMPENSATION,DETAIL,   ,   ,   ,WATTS OLIVIA A.,2022-02-15,2022-03-31,MAJ LEADER PAID INTERN - HOUSE,377.67,2022
,2022 OFFICE OF THE MAJORITY LEADER,1,INTERN ALLOWANCES,PERSONNEL COMPENSATION,SUBTOTAL,   ,   ,   ,   ,   ,   ,PERSONNEL COMPENSATION TOTALS:,6743.77,2022
,2022 OFFICE OF THE MAJORITY LEADER,1,INTERN ALLOWANCES,PERSONNEL COMPENSATION,SUBTOTAL,   ,   ,   ,   ,   ,   ,INTERN ALLOWANCES TOTALS:,6743.77,2022
,2022 OFFICE OF THE MAJORITY LEADER,1,INTERN ALLOWANCES,PERSONNEL COMPENSATION,GRAND TOTAL FOR ORGANIZATION,   ,   ,   ,   ,   ,   ,OFFICE TOTALS: ,6743.77,2022
,2022 OFFICE OF THE MINORITY LEADER,1,GENERAL EXPENDITURES,PERSONNEL COMPENSATION,DETAIL,   ,   ,   ,BEDNAR MARK M,2022-01-01,2022-01-31,DIR OF STRATEGIC COMMUNICATION,-833.33,2022
,2022 OFFICE OF THE MINORITY LEADER,1,GENERAL EXPENDITURES,PERSONNEL COMPENSATION,DETAIL,   ,   ,   ,BEDNAR MARK M,2022-01-01,2022-03-31,DIR OF STRATEGIC COMMUNICATION,37500,2022
,2022 OFFICE OF THE MINORITY LEADER,1,GENERAL EXPENDITURES,PERSONNEL COMPENSATION,DETAIL,   ,   ,   ,BERTOLINI STEVEN R.,2022-01-01,2022-01-31,STAFF ASSISTANT,-266.67,2022
,2022 OFFICE OF THE MINORITY LEADER,1,GENERAL EXPENDITURES,PERSONNEL COMPENSATION,DETAIL,   ,   ,   ,BERTOLINI STEVEN R.,2022-01-01,2022-03-31,STAFF ASSISTANT,12000,2022
,2022 OFFICE OF THE MINORITY LEADER,1,GENERAL EXPENDITURES,PERSONNEL COMPENSATION,DETAIL,   ,   ,   ,BIEN CHRISTOPHER A,2022-01-01,2022-01-31,DEPUTY DIR OF FLOOR OPERATIONS,-750,2022
,2022 OFFICE OF THE MINORITY LEADER,1,GENERAL EXPENDITURES,PERSONNEL COMPENSATION,DETAIL,   ,   ,   ,BIEN CHRISTOPHER A,2022-01-01,2022-03-31,DEPUTY DIR OF FLOOR OPERATIONS,33750,2022
,2022 OFFICE OF THE MINORITY LEADER,1,GENERAL EXPENDITURES,PERSONNEL COMPENSATION,DETAIL,   ,   ,   ,BOGOROWSKI HANNA C,2022-01-01,2022-01-31,COMMUNICATIONS ADVISOR,-433.33,2022
,2022 OFFICE OF THE MINORITY LEADER,1,GENERAL EXPENDITURES,PERSONNEL COMPENSATION,DETAIL,   ,   ,   ,BOGOROWSKI HANNA C,2022-01-01,2022-03-31,COMMUNICATIONS ADVISOR,19500,2022
,2022 OFFICE OF THE MINORITY LEADER,1,GENERAL EXPENDITURES,PERSONNEL COMPENSATION,DETAIL,   ,   ,   ,BONNER JENNIFER L,2022-01-01,2022-01-31,SCHEDULER,-466.67,2022
,2022 OFFICE OF THE MINORITY LEADER,1,GENERAL EXPENDITURES,PERSONNEL COMPENSATION,DETAIL,   ,   ,   ,BONNER JENNIFER L,2022-01-01,2022-03-31,SCHEDULER,21000,2022
,2022 OFFICE OF THE MINORITY LEADER,1,GENERAL EXPENDITURES,PERSONNEL COMPENSATION,DETAIL,   ,   ,   ,BUCHANAN NATALIE L,2022-01-01,2022-01-31,DEPUTY CHIEF OF STAFF FOR MEMB,-1000,2022
,2022 OFFICE OF THE MINORITY LEADER,1,GENERAL EXPENDITURES,PERSONNEL COMPENSATION,DETAIL,   ,   ,   ,BUCHANAN NATALIE L,2022-01-01,2022-03-31,DEPUTY CHIEF OF STAFF FOR MEMB,45000,2022
,2022 OFFICE OF THE MINORITY LEADER,1,GENERAL EXPENDITURES,PERSONNEL COMPENSATION,DETAIL,   ,   ,   ,BURKE ROBERT J,2022-01-01,2022-01-31,COMMUNICATIONS AIDE,-316.67,2022
,2022 OFFICE OF THE MINORITY LEADER,1,GENERAL EXPENDITURES,PERSONNEL COMPENSATION,DETAIL,   ,   ,   ,BURKE ROBERT J,2022-01-01,2022-03-31,COMMUNICATIONS AIDE,14250,2022
,2022 OFFICE OF THE MINORITY LEADER,1,GENERAL EXPENDITURES,PERSONNEL COMPENSATION,DETAIL,   ,   ,   ,CAMERON CHRISTINA E,2022-01-01,2022-01-31,MEDIA AFFAIRS & OPERATIONS ADV,-633.33,2022
,2022 OFFICE OF THE MINORITY LEADER,1,GENERAL EXPENDITURES,PERSONNEL COMPENSATION,DETAIL,   ,   ,   ,CAMERON CHRISTINA E,2022-01-01,2022-03-31,MEDIA AFFAIRS & OPERATIONS ADV,28500,2022
,2022 OFFICE OF THE MINORITY LEADER,1,GENERAL EXPENDITURES,PERSONNEL COMPENSATION,DETAIL,   ,   ,   ,CARR MACHALAGH,2022-01-01,2022-01-31,GENERAL COUNSEL,-1000,2022
,2022 OFFICE OF THE MINORITY LEADER,1,GENERAL EXPENDITURES,PERSONNEL COMPENSATION,DETAIL,   ,   ,   ,CARR MACHALAGH,2022-01-01,2022-03-31,GENERAL COUNSEL,45000,2022
,2022 OFFICE OF THE MINORITY LEADER,1,GENERAL EXPENDITURES,PERSONNEL COMPENSATION,DETAIL,   ,   ,   ,CONSTANGY III HERBERT W,2022-01-01,2022-01-31,SHARED EMPLOYEE,-666.67,2022
,2022 OFFICE OF THE MINORITY LEADER,1,GENERAL EXPENDITURES,PERSONNEL COMPENSATION,DETAIL,   ,   ,   ,CONSTANGY III HERBERT W,2022-01-01,2022-03-31,SHARED EMPLOYEE,30000,2022
,2022 OFFICE OF THE MINORITY LEADER,1,GENERAL EXPENDITURES,PERSONNEL COMPENSATION,DETAIL,   ,   ,   ,COOK KRISTOPHER D.,2022-01-01,2022-01-31,SHARED EMPLOYEE,-400,2022
,2022 OFFICE OF THE MINORITY LEADER,1,GENERAL EXPENDITURES,PERSONNEL COMPENSATION,DETAIL,   ,   ,   ,COOK KRISTOPHER D.,2022-01-01,2022-03-31,SHARED EMPLOYEE,18000,2022
,2022 OFFICE OF THE MINORITY LEADER,1,GENERAL EXPENDITURES,PERSONNEL COMPENSATION,DETAIL,   ,   ,   ,CORRELL CHARLES C,2022-01-01,2022-01-31,SPEECHWRITER,-500,2022
,2022 OFFICE OF THE MINORITY LEADER,1,GENERAL EXPENDITURES,PERSONNEL COMPENSATION,DETAIL,   ,   ,   ,CORRELL CHARLES C,2022-01-01,2022-03-31,SPEECHWRITER,22500,2022
,2022 OFFICE OF THE MINORITY LEADER,1,GENERAL EXPENDITURES,PERSONNEL COMPENSATION,DETAIL,   ,   ,   ,COYLE SARAH M,2022-01-01,2022-01-31,CLOAKROOM FLOOR DIRECTOR,-533.33,2022
,2022 OFFICE OF THE MINORITY LEADER,1,GENERAL EXPENDITURES,PERSONNEL COMPENSATION,DETAIL,   ,   ,   ,COYLE SARAH M,2022-01-01,2022-03-31,CLOAKROOM FLOOR DIRECTOR,24000,2022
,2022 OFFICE OF THE MINORITY LEADER,1,GENERAL EXPENDITURES,PERSONNEL COMPENSATION,DETAIL,   ,   ,   ,DAYER KATHERINE J,2022-01-01,2022-01-31,CLOAKROOM FLOOR ASSISTANT,-316.67,2022
,2022 OFFICE OF THE MINORITY LEADER,1,GENERAL EXPENDITURES,PERSONNEL COMPENSATION,DETAIL,   ,   ,   ,DAYER KATHERINE J,2022-01-01,2022-03-31,CLOAKROOM FLOOR ASSISTANT,14250,2022
,2022 OFFICE OF THE MINORITY LEADER,1,GENERAL EXPENDITURES,PERSONNEL COMPENSATION,DETAIL,   ,   ,   ,DOMENECH EMILY H,2022-01-01,2022-01-31,SENIOR POLICY ADVISOR,-933.33,2022
,2022 OFFICE OF THE MINORITY LEADER,1,GENERAL EXPENDITURES,PERSONNEL COMPENSATION,DETAIL,   ,   ,   ,DOMENECH EMILY H,2022-01-01,2022-03-31,SENIOR POLICY ADVISOR,42000,2022
,2022 OFFICE OF THE MINORITY LEADER,1,GENERAL EXPENDITURES,PERSONNEL COMPENSATION,DETAIL,   ,   ,   ,DUNHAM WILL,2022-01-01,2022-01-31,DEP CHIEF OF STAFF FOR POLICY,-1100,2022
,2022 OFFICE OF THE MINORITY LEADER,1,GENERAL EXPENDITURES,PERSONNEL COMPENSATION,DETAIL,   ,   ,   ,DUNHAM WILL,2022-01-01,2022-03-31,DEP CHIEF OF STAFF FOR POLICY,48000,2022
,2022 OFFICE OF THE MINORITY LEADER,1,GENERAL EXPENDITURES,PERSONNEL COMPENSATION,DETAIL,   ,   ,   ,EARWOOD ELIZABETH K.,2022-01-01,2022-01-31,SHARED EMPLOYEE,-333.33,2022
,2022 OFFICE OF THE MINORITY LEADER,1,GENERAL EXPENDITURES,PERSONNEL COMPENSATION,DETAIL,   ,   ,   ,EARWOOD ELIZABETH K.,2022-01-01,2022-03-31,SHARED EMPLOYEE,15000,2022
,2022 OFFICE OF THE MINORITY LEADER,1,GENERAL EXPENDITURES,PERSONNEL COMPENSATION,DETAIL,   ,   ,   ,ENGLING MAXIMILIAN T,2022-01-01,2022-01-31,DEP DIR OF MEMBER SERVICES,-833.33,2022
,2022 OFFICE OF THE MINORITY LEADER,1,GENERAL EXPENDITURES,PERSONNEL COMPENSATION,DETAIL,   ,   ,   ,ENGLING MAXIMILIAN T,2022-01-01,2022-03-31,DEP DIR OF MEMBER SERVICES,37500,2022
,2022 OFFICE OF THE MINORITY LEADER,1,GENERAL EXPENDITURES,PERSONNEL COMPENSATION,DETAIL,   ,   ,   ,EXNER MICHELE P,2022-01-01,2022-01-31,COMMUNICATIONS DIRECTOR,-833.33,2022
,2022 OFFICE OF THE MINORITY LEADER,1,GENERAL EXPENDITURES,PERSONNEL COMPENSATION,DETAIL,   ,   ,   ,EXNER MICHELE P,2022-01-01,2022-03-31,COMMUNICATIONS DIRECTOR,37500,2022
,2022 OFFICE OF THE MINORITY LEADER,1,GENERAL EXPENDITURES,PERSONNEL COMPENSATION,DETAIL,   ,   ,   ,GIAIER STEVEN S,2022-01-01,2022-01-31,SENIOR POLICY ADVISOR & COUNSE,-933.33,2022
,2022 OFFICE OF THE MINORITY LEADER,1,GENERAL EXPENDITURES,PERSONNEL COMPENSATION,DETAIL,   ,   ,   ,GIAIER STEVEN S,2022-01-01,2022-03-31,SENIOR POLICY ADVISOR & COUNSE,42000,2022
,2022 OFFICE OF THE MINORITY LEADER,1,GENERAL EXPENDITURES,PERSONNEL COMPENSATION,DETAIL,   ,   ,   ,GILLESPIE JAMES M.,2022-01-01,2022-01-31,SPECIAL ASSISTANT TO THE REPUL,-416.67,2022
,2022 OFFICE OF THE MINORITY LEADER,1,GENERAL EXPENDITURES,PERSONNEL COMPENSATION,DETAIL,   ,   ,   ,GILLESPIE JAMES M.,2022-01-01,2022-03-31,SPECIAL ASSISTANT TO THE REPUL,18750,2022
,2022 OFFICE OF THE MINORITY LEADER,1,GENERAL EXPENDITURES,PERSONNEL COMPENSATION,DETAIL,   ,   ,   ,GILMARTIN CHARLES P.,2022-01-01,2022-01-31,DEPUTY SPOKESMAN,-433.33,2022
,2022 OFFICE OF THE MINORITY LEADER,1,GENERAL EXPENDITURES,PERSONNEL COMPENSATION,DETAIL,   ,   ,   ,GILMARTIN CHARLES P.,2022-01-01,2022-03-31,DEPUTY SPOKESMAN,19500,2022
,2022 OFFICE OF THE MINORITY LEADER,1,GENERAL EXPENDITURES,PERSONNEL COMPENSATION,DETAIL,   ,   ,   ,GOURDIKIAN ALEXANDRA G.,2022-01-01,2022-01-31,DIRECTOR OF OPERATIONS & SCHED,-900,2022
,2022 OFFICE OF THE MINORITY LEADER,1,GENERAL EXPENDITURES,PERSONNEL COMPENSATION,DETAIL,   ,   ,   ,GOURDIKIAN ALEXANDRA G.,2022-01-01,2022-03-31,DIRECTOR OF OPERATIONS & SCHED,40500,2022
,2022 OFFICE OF THE MINORITY LEADER,1,GENERAL EXPENDITURES,PERSONNEL COMPENSATION,DETAIL,   ,   ,   ,HAULSEE TAYLOR S.,2022-01-01,2022-01-31,SHARED EMPLOYEE,-666.67,2022
,2022 OFFICE OF THE MINORITY LEADER,1,GENERAL EXPENDITURES,PERSONNEL COMPENSATION,DETAIL,   ,   ,   ,HAULSEE TAYLOR S.,2022-01-01,2022-03-31,SHARED EMPLOYEE,30000,2022
,2022 OFFICE OF THE MINORITY LEADER,1,GENERAL EXPENDITURES,PERSONNEL COMPENSATION,DETAIL,   ,   ,   ,HILL PRESTON W,2022-01-01,2022-01-31,POLICY ADVISOR,-750,2022
,2022 OFFICE OF THE MINORITY LEADER,1,GENERAL EXPENDITURES,PERSONNEL COMPENSATION,DETAIL,   ,   ,   ,HILL PRESTON W,2022-01-01,2022-03-31,POLICY ADVISOR,33750,2022
,2022 OFFICE OF THE MINORITY LEADER,1,GENERAL EXPENDITURES,PERSONNEL COMPENSATION,DETAIL,   ,   ,   ,HOCHSCHILD KEENAN N.,2022-01-01,2022-01-31,DIGITAL COMMUNICATIONS ADVISOR,-433.33,2022
,2022 OFFICE OF THE MINORITY LEADER,1,GENERAL EXPENDITURES,PERSONNEL COMPENSATION,DETAIL,   ,   ,   ,HOCHSCHILD KEENAN N.,2022-01-01,2022-03-31,DIGITAL COMMUNICATIONS ADVISOR,19500,2022
,2022 OFFICE OF THE MINORITY LEADER,1,GENERAL EXPENDITURES,PERSONNEL COMPENSATION,DETAIL,   ,   ,   ,HOWELL MARGARET E.,2022-01-01,2022-01-31,GRAPHIC DESIGNER,-350,2022
,2022 OFFICE OF THE MINORITY LEADER,1,GENERAL EXPENDITURES,PERSONNEL COMPENSATION,DETAIL,   ,   ,   ,HOWELL MARGARET E.,2022-01-01,2022-03-31,GRAPHIC DESIGNER,15750,2022
,2022 OFFICE OF THE MINORITY LEADER,1,GENERAL EXPENDITURES,PERSONNEL COMPENSATION,DETAIL,   ,   ,   ,HUMES ALEXANDRA W.,2022-01-01,2022-01-31,MEMBER SERVICES COORDINATOR,-450,2022
,2022 OFFICE OF THE MINORITY LEADER,1,GENERAL EXPENDITURES,PERSONNEL COMPENSATION,DETAIL,   ,   ,   ,HUMES ALEXANDRA W.,2022-01-01,2022-03-31,MEMBER SERVICES COORDINATOR,20250,2022
,2022 OFFICE OF THE MINORITY LEADER,1,GENERAL EXPENDITURES,PERSONNEL COMPENSATION,DETAIL,   ,   ,   ,KELLY CARI R,2022-01-01,2022-01-31,SHARED EMPLOYEE,-516.67,2022
,2022 OFFICE OF THE MINORITY LEADER,1,GENERAL EXPENDITURES,PERSONNEL COMPENSATION,DETAIL,   ,   ,   ,KELLY CARI R,2022-01-01,2022-03-31,SHARED EMPLOYEE,23250,2022
,2022 OFFICE OF THE MINORITY LEADER,1,GENERAL EXPENDITURES,PERSONNEL COMPENSATION,DETAIL,   ,   ,   ,LEGANSKI JOHN G,2022-01-01,2022-01-31,DEP CHIEF OF STAFF FOR FLOOR O,-1000,2022
,2022 OFFICE OF THE MINORITY LEADER,1,GENERAL EXPENDITURES,PERSONNEL COMPENSATION,DETAIL,   ,   ,   ,LEGANSKI JOHN G,2022-01-01,2022-01-31,DEP CHIEF OF STAFF FOR FLOOR O,15000,2022
,2022 OFFICE OF THE MINORITY LEADER,1,GENERAL EXPENDITURES,PERSONNEL COMPENSATION,DETAIL,   ,   ,   ,LEGANSKI JOHN G,2022-02-01,2022-03-31,DIRECTOR OF FLOOR OPERATIONS,30000,2022
,2022 OFFICE OF THE MINORITY LEADER,1,GENERAL EXPENDITURES,PERSONNEL COMPENSATION,DETAIL,   ,   ,   ,LOMBARDI KYLE,2022-01-01,2022-01-31,SHARED EMPLOYEE,-700,2022
,2022 OFFICE OF THE MINORITY LEADER,1,GENERAL EXPENDITURES,PERSONNEL COMPENSATION,DETAIL,   ,   ,   ,LOMBARDI KYLE,2022-01-01,2022-03-31,SHARED EMPLOYEE,31500,2022
,2022 OFFICE OF THE MINORITY LEADER,1,GENERAL EXPENDITURES,PERSONNEL COMPENSATION,DETAIL,   ,   ,   ,LONG RYAN C,2022-01-01,2022-01-31,SR POLICY ADVISOR & COUNSEL,-933.33,2022
,2022 OFFICE OF THE MINORITY LEADER,1,GENERAL EXPENDITURES,PERSONNEL COMPENSATION,DETAIL,   ,   ,   ,LONG RYAN C,2022-01-01,2022-03-31,SR POLICY ADVISOR  & COUNSEL,42000,2022
,2022 OFFICE OF THE MINORITY LEADER,1,GENERAL EXPENDITURES,PERSONNEL COMPENSATION,DETAIL,   ,   ,   ,MARTINEZ BRITTANY N,2022-01-01,2022-01-31,CALIFORNIA PRESS SECRETARY,-450,2022
,2022 OFFICE OF THE MINORITY LEADER,1,GENERAL EXPENDITURES,PERSONNEL COMPENSATION,DETAIL,   ,   ,   ,MARTINEZ BRITTANY N,2022-01-01,2022-03-31,CALIFORNIA PRESS SECRETARY,20250,2022
,2022 OFFICE OF THE MINORITY LEADER,1,GENERAL EXPENDITURES,PERSONNEL COMPENSATION,DETAIL,   ,   ,   ,MESHAD MICHAEL W.,2022-01-16,2022-03-31,STAFF ASSISTANT,8750,2022
,2022 OFFICE OF THE MINORITY LEADER,1,GENERAL EXPENDITURES,PERSONNEL COMPENSATION,DETAIL,   ,   ,   ,MEYER DANIEL P,2022-01-01,2022-01-31,CHIEF OF STAFF,-1107.22,2022
,2022 OFFICE OF THE MINORITY LEADER,1,GENERAL EXPENDITURES,PERSONNEL COMPENSATION,DETAIL,   ,   ,   ,MEYER DANIEL P,2022-01-01,2022-03-31,CHIEF OF STAFF,49824.99,2022
,2022 OFFICE OF THE MINORITY LEADER,1,GENERAL EXPENDITURES,PERSONNEL COMPENSATION,DETAIL,   ,   ,   ,MIN JAMES B.,2022-01-01,2022-01-31,DEPUTY CHIEF OF STAFF/COUNSEL,-1066.67,2022
,2022 OFFICE OF THE MINORITY LEADER,1,GENERAL EXPENDITURES,PERSONNEL COMPENSATION,DETAIL,   ,   ,   ,MIN JAMES B.,2022-01-01,2022-03-31,DEPUTY CHIEF OF STAFF/COUNSEL,48000,2022
,2022 OFFICE OF THE MINORITY LEADER,1,GENERAL EXPENDITURES,PERSONNEL COMPENSATION,DETAIL,   ,   ,   ,MURPHY CULLEN D,2022-01-01,2022-01-31,FLOOR ASSISTANT,-350,2022
,2022 OFFICE OF THE MINORITY LEADER,1,GENERAL EXPENDITURES,PERSONNEL COMPENSATION,DETAIL,   ,   ,   ,MURPHY CULLEN D,2022-01-01,2022-03-31,FLOOR ASSISTANT,15750,2022
,2022 OFFICE OF THE MINORITY LEADER,1,GENERAL EXPENDITURES,PERSONNEL COMPENSATION,DETAIL,   ,   ,   ,SMITH CALEB J,2022-01-01,2022-01-31,DIGITAL COMMUNICATIONS DIRECTO,-1000,2022
,2022 OFFICE OF THE MINORITY LEADER,1,GENERAL EXPENDITURES,PERSONNEL COMPENSATION,DETAIL,   ,   ,   ,SMITH CALEB J,2022-01-01,2022-03-31,DIGITAL COMMUNICATIONS DIRECTO,45000,2022
,2022 OFFICE OF THE MINORITY LEADER,1,GENERAL EXPENDITURES,PERSONNEL COMPENSATION,DETAIL,   ,   ,   ,SMITH TREVOR H,2022-01-01,2022-01-31,SHARED EMPLOYEE,-566.67,2022
,2022 OFFICE OF THE MINORITY LEADER,1,GENERAL EXPENDITURES,PERSONNEL COMPENSATION,DETAIL,   ,   ,   ,SMITH TREVOR H,2022-01-01,2022-03-31,SHARED EMPLOYEE,25500,2022
,2022 OFFICE OF THE MINORITY LEADER,1,GENERAL EXPENDITURES,PERSONNEL COMPENSATION,DETAIL,   ,   ,   ,SMITHWICK KYLE B,2022-01-01,2022-01-31,SHARED EMPLOYEE,-666.67,2022
,2022 OFFICE OF THE MINORITY LEADER,1,GENERAL EXPENDITURES,PERSONNEL COMPENSATION,DETAIL,   ,   ,   ,SMITHWICK KYLE B,2022-01-01,2022-03-31,SHARED EMPLOYEE,30000,2022
,2022 OFFICE OF THE MINORITY LEADER,1,GENERAL EXPENDITURES,PERSONNEL COMPENSATION,DETAIL,   ,   ,   ,SOUZA ALLEN R,2022-01-01,2022-01-31,NATIONAL SECURITY ADVISOR,-933.33,2022
,2022 OFFICE OF THE MINORITY LEADER,1,GENERAL EXPENDITURES,PERSONNEL COMPENSATION,DETAIL,   ,   ,   ,SOUZA ALLEN R,2022-01-01,2022-03-31,NATIONAL SECURITY ADVISOR,42000,2022
,2022 OFFICE OF THE MINORITY LEADER,1,GENERAL EXPENDITURES,PERSONNEL COMPENSATION,DETAIL,   ,   ,   ,SPARKS MATTHEW E,2022-01-01,2022-01-31,HEAD OF COMMUNICATIONS,-1000,2022
,2022 OFFICE OF THE MINORITY LEADER,1,GENERAL EXPENDITURES,PERSONNEL COMPENSATION,DETAIL,   ,   ,   ,SPARKS MATTHEW E,2022-01-01,2022-03-31,HEAD OF COMMUNICATIONS,45000,2022
,2022 OFFICE OF THE MINORITY LEADER,1,GENERAL EXPENDITURES,PERSONNEL COMPENSATION,DETAIL,   ,   ,   ,SPECHT BRITTAN G,2022-01-01,2022-01-31,DEPUTY POLICY DIRECTOR,-950,2022
,2022 OFFICE OF THE MINORITY LEADER,1,GENERAL EXPENDITURES,PERSONNEL COMPENSATION,DETAIL,   ,   ,   ,SPECHT BRITTAN G,2022-01-01,2022-01-31,DEPUTY POLICY DIRECTOR,14250,2022
,2022 OFFICE OF THE MINORITY LEADER,1,GENERAL EXPENDITURES,PERSONNEL COMPENSATION,DETAIL,   ,   ,   ,SPECHT BRITTAN G,2022-02-01,2022-03-31,SENIOR POLICY ADVISOR,28500,2022
,2022 OFFICE OF THE MINORITY LEADER,1,GENERAL EXPENDITURES,PERSONNEL COMPENSATION,SUBTOTAL,   ,   ,   ,   ,   ,   ,PERSONNEL COMPENSATION TOTALS:,1271101.11,2022
,2022 OFFICE OF THE MINORITY LEADER,1,GENERAL EXPENDITURES,TRAVEL,DETAIL,2022-02-07,AP,1522050,GIAIER STEVEN S,2022-01-11,2022-01-11,TAXI/RIDE SHARE,33.04,2022
,2022 OFFICE OF THE MINORITY LEADER,1,GENERAL EXPENDITURES,TRAVEL,DETAIL,2022-02-07,AP,1522050,GIAIER STEVEN S,2022-01-12,2022-01-12,TAXI/RIDE SHARE,27.87,2022
,2022 OFFICE OF THE MINORITY LEADER,1,GENERAL EXPENDITURES,TRAVEL,DETAIL,2022-02-07,AP,1522050,GIAIER STEVEN S,2022-01-13,2022-01-13,TAXI/RIDE SHARE,29.34,2022
,2022 OFFICE OF THE MINORITY LEADER,1,GENERAL EXPENDITURES,TRAVEL,DETAIL,2022-02-07,AP,1522050,GIAIER STEVEN S,2022-01-18,2022-01-18,TAXI/RIDE SHARE,33.34,2022
,2022 OFFICE OF THE MINORITY LEADER,1,GENERAL EXPENDITURES,TRAVEL,DETAIL,2022-02-07,AP,1522050,GIAIER STEVEN S,2022-01-19,2022-01-19,TAXI/RIDE SHARE,29.89,2022
,2022 OFFICE OF THE MINORITY LEADER,1,GENERAL EXPENDITURES,TRAVEL,DETAIL,2022-02-07,AP,1522050,GIAIER STEVEN S,2022-01-20,2022-01-20,TAXI/RIDE SHARE,29.11,2022
,2022 OFFICE OF THE MINORITY LEADER,1,GENERAL EXPENDITURES,TRAVEL,DETAIL,2022-02-07,AP,1522050,GIAIER STEVEN S,2022-01-26,2022-01-26,TAXI/RIDE SHARE,30.61,2022
,2022 OFFICE OF THE MINORITY LEADER,1,GENERAL EXPENDITURES,TRAVEL,DETAIL,2022-02-07,AP,1522050,GIAIER STEVEN S,2022-01-27,2022-01-27,TAXI/RIDE SHARE,28.92,2022
,2022 OFFICE OF THE MINORITY LEADER,1,GENERAL EXPENDITURES,TRAVEL,DETAIL,2022-02-07,AP,1522050,GIAIER STEVEN S,2022-01-28,2022-01-28,TAXI/RIDE SHARE,13.18,2022
,2022 OFFICE OF THE MINORITY LEADER,1,GENERAL EXPENDITURES,TRAVEL,DETAIL,2022-02-07,AP,1522050,GIAIER STEVEN S,2022-01-31,2022-01-31,TAXI/RIDE SHARE,20.99,2022
,2022 OFFICE OF THE MINORITY LEADER,1,GENERAL EXPENDITURES,TRAVEL,DETAIL,2022-02-07,AP,1522050,GIAIER STEVEN S,2022-02-01,2022-02-01,TAXI/RIDE SHARE,24.22,2022
,2022 OFFICE OF THE MINORITY LEADER,1,GENERAL EXPENDITURES,TRAVEL,DETAIL,2022-03-03,AP,1531960,SMITH CALEB,2022-02-18,2022-02-18,MEALS,5.29,2022
,2022 OFFICE OF THE MINORITY LEADER,1,GENERAL EXPENDITURES,TRAVEL,DETAIL,2022-03-03,AP,1531960,SMITH CALEB,2022-02-18,2022-02-18,TAXI/RIDE SHARE,26.61,2022
,2022 OFFICE OF THE MINORITY LEADER,1,GENERAL EXPENDITURES,TRAVEL,DETAIL,2022-03-03,AP,1531960,SMITH CALEB,2022-02-26,2022-02-26,TAXI/RIDE SHARE,24.65,2022
,2022 OFFICE OF THE MINORITY LEADER,1,GENERAL EXPENDITURES,TRAVEL,DETAIL,2022-03-10,AP,1532643,GIAIER STEVEN S,2022-02-02,2022-02-02,TAXI/RIDE SHARE,16.84,2022
,2022 OFFICE OF THE MINORITY LEADER,1,GENERAL EXPENDITURES,TRAVEL,DETAIL,2022-03-10,AP,1532643,GIAIER STEVEN S,2022-02-03,2022-02-03,TAXI/RIDE SHARE,56.77,2022
,2022 OFFICE OF THE MINORITY LEADER,1,GENERAL EXPENDITURES,TRAVEL,DETAIL,2022-03-10,AP,1532643,GIAIER STEVEN S,2022-02-04,2022-02-04,TAXI/RIDE SHARE,31.44,2022
,2022 OFFICE OF THE MINORITY LEADER,1,GENERAL EXPENDITURES,TRAVEL,DETAIL,2022-03-10,AP,1532643,GIAIER STEVEN S,2022-02-07,2022-02-07,TAXI/RIDE SHARE,32.96,2022
,2022 OFFICE OF THE MINORITY LEADER,1,GENERAL EXPENDITURES,TRAVEL,DETAIL,2022-03-10,AP,1532643,GIAIER STEVEN S,2022-02-08,2022-02-08,TAXI/RIDE SHARE,28.94,2022
,2022 OFFICE OF THE MINORITY LEADER,1,GENERAL EXPENDITURES,TRAVEL,DETAIL,2022-03-10,AP,1532643,GIAIER STEVEN S,2022-02-09,2022-02-09,TAXI/RIDE SHARE,21.86,2022
,2022 OFFICE OF THE MINORITY LEADER,1,GENERAL EXPENDITURES,TRAVEL,DETAIL,2022-03-10,AP,1532643,GIAIER STEVEN S,2022-02-15,2022-02-15,TAXI/RIDE SHARE,61,2022
,2022 OFFICE OF THE MINORITY LEADER,1,GENERAL EXPENDITURES,TRAVEL,DETAIL,2022-03-10,AP,1532643,GIAIER STEVEN S,2022-02-16,2022-02-16,TAXI/RIDE SHARE,34.37,2022
,2022 OFFICE OF THE MINORITY LEADER,1,GENERAL EXPENDITURES,TRAVEL,DETAIL,2022-03-10,AP,1532643,GIAIER STEVEN S,2022-02-22,2022-02-22,TAXI/RIDE SHARE,29.64,2022
,2022 OFFICE OF THE MINORITY LEADER,1,GENERAL EXPENDITURES,TRAVEL,DETAIL,2022-03-10,AP,1532643,GIAIER STEVEN S,2022-02-25,2022-02-25,TAXI/RIDE SHARE,19.03,2022
,2022 OFFICE OF THE MINORITY LEADER,1,GENERAL EXPENDITURES,TRAVEL,DETAIL,2022-03-10,AP,1532643,GIAIER STEVEN S,2022-02-28,2022-02-28,TAXI/RIDE SHARE,41.96,2022
,2022 OFFICE OF THE MINORITY LEADER,1,GENERAL EXPENDITURES,TRAVEL,DETAIL,2022-03-29,AP,1541348,DUNHAM WILL,2022-03-12,2022-03-13,AIRFARE COMMERCIAL TRANSPORT,313.35,2022
,2022 OFFICE OF THE MINORITY LEADER,1,GENERAL EXPENDITURES,TRAVEL,DETAIL,2022-03-29,AP,1541348,DUNHAM WILL,2022-03-13,2022-03-13,TAXI/RIDE SHARE,37.79,2022
,2022 OFFICE OF THE MINORITY LEADER,1,GENERAL EXPENDITURES,TRAVEL,DETAIL,2022-03-29,AP,1541348,DUNHAM WILL,2022-03-14,2022-03-14,TAXI/RIDE SHARE,67.69,2022
,2022 OFFICE OF THE MINORITY LEADER,1,GENERAL EXPENDITURES,TRAVEL,DETAIL,2022-03-30,AP,1542581,LEGANSKI JOHN G.,2022-03-13,2022-03-14,AIRFARE COMMERCIAL TRANSPORT,323.34,2022
,2022 OFFICE OF THE MINORITY LEADER,1,GENERAL EXPENDITURES,TRAVEL,DETAIL,2022-03-30,AP,1542581,LEGANSKI JOHN G.,2022-03-13,2022-03-14,LODGING,321.65,2022
,2022 OFFICE OF THE MINORITY LEADER,1,GENERAL EXPENDITURES,TRAVEL,DETAIL,2022-03-30,AP,1542581,LEGANSKI JOHN G.,2022-03-13,2022-03-13,TAXI/RIDE SHARE,57.81,2022
,2022 OFFICE OF THE MINORITY LEADER,1,GENERAL EXPENDITURES,TRAVEL,DETAIL,2022-03-30,AP,1542581,LEGANSKI JOHN G.,2022-03-14,2022-03-14,TAXI/RIDE SHARE,22.18,2022
,2022 OFFICE OF THE MINORITY LEADER,1,GENERAL EXPENDITURES,TRAVEL,DETAIL,2022-03-30,AP,1542669,HOCHSCHILD KEENAN N.,2022-03-18,2022-03-27,AIRFARE COMMERCIAL TRANSPORT,711.2,2022
,2022 OFFICE OF THE MINORITY LEADER,1,GENERAL EXPENDITURES,TRAVEL,DETAIL,2022-03-30,AP,1542669,HOCHSCHILD KEENAN N.,2022-03-18,2022-03-19,LODGING,155.25,2022
,2022 OFFICE OF THE MINORITY LEADER,1,GENERAL EXPENDITURES,TRAVEL,DETAIL,2022-03-30,AP,1542669,HOCHSCHILD KEENAN N.,2022-03-18,2022-03-18,MEALS,28.79,2022
,2022 OFFICE OF THE MINORITY LEADER,1,GENERAL EXPENDITURES,TRAVEL,DETAIL,2022-03-30,AP,1542669,HOCHSCHILD KEENAN N.,2022-03-18,2022-03-19,MEALS,49.12,2022
,2022 OFFICE OF THE MINORITY LEADER,1,GENERAL EXPENDITURES,TRAVEL,DETAIL,2022-03-30,AP,1542669,HOCHSCHILD KEENAN N.,2022-03-27,2022-03-27,MEALS,3.04,2022
,2022 OFFICE OF THE MINORITY LEADER,1,GENERAL EXPENDITURES,TRAVEL,DETAIL,2022-03-30,AP,1542669,HOCHSCHILD KEENAN N.,2022-03-18,2022-03-18,WI-FI ON TRAVEL,19,2022
,2022 OFFICE OF THE MINORITY LEADER,1,GENERAL EXPENDITURES,TRAVEL,DETAIL,2022-03-30,AP,1542669,HOCHSCHILD KEENAN N.,2022-03-19,2022-03-19,WI-FI ON TRAVEL,19,2022
,2022 OFFICE OF THE MINORITY LEADER,1,GENERAL EXPENDITURES,TRAVEL,DETAIL,2022-03-30,AP,1542669,HOCHSCHILD KEENAN N.,2022-03-19,2022-03-19,TAXI/RIDE SHARE,15.99,2022
,2022 OFFICE OF THE MINORITY LEADER,1,GENERAL EXPENDITURES,TRAVEL,DETAIL,2022-03-30,AP,1542669,HOCHSCHILD KEENAN N.,2022-03-27,2022-03-27,TAXI/RIDE SHARE,24.99,2022
,2022 OFFICE OF THE MINORITY LEADER,1,GENERAL EXPENDITURES,TRAVEL,SUBTOTAL,   ,   ,   ,   ,   ,   ,TRAVEL TOTALS:,2902.06,2022
,2022 OFFICE OF THE MINORITY LEADER,1,GENERAL EXPENDITURES,RENT  COMMUNICATION  UTILITIES,DETAIL,2022-02-17,AP,1523963,CITI PCARD-USHR CATERING,2022-01-18,2022-01-18,EQUIP RENTAL (EFF 1/3/03),210,2022
,2022 OFFICE OF THE MINORITY LEADER,1,GENERAL EXPENDITURES,RENT  COMMUNICATION  UTILITIES,DETAIL,2022-02-24,GL,EMS0113247, ,2022-01-01,2022-01-31,DC TELECOM EQUIP (TRANSFER),40,2022
,2022 OFFICE OF THE MINORITY LEADER,1,GENERAL EXPENDITURES,RENT  COMMUNICATION  UTILITIES,DETAIL,2022-02-24,GL,EMS0113247, ,2022-01-01,2022-01-31,DC TELECOM SERV (TRANSFER),570.75,2022
,2022 OFFICE OF THE MINORITY LEADER,1,GENERAL EXPENDITURES,RENT  COMMUNICATION  UTILITIES,DETAIL,2022-02-24,GL,EMS0113247, ,2022-01-01,2022-01-31,DC TELECOM TOLLS (TRANSFER),2186.51,2022
,2022 OFFICE OF THE MINORITY LEADER,1,GENERAL EXPENDITURES,RENT  COMMUNICATION  UTILITIES,DETAIL,2022-03-11,AP,1533001,CITI PCARD-GOOGLE  YouTube TV,2022-01-29,2022-02-28,UTILITIES,68.89,2022
,2022 OFFICE OF THE MINORITY LEADER,1,GENERAL EXPENDITURES,RENT  COMMUNICATION  UTILITIES,DETAIL,2022-03-23,GL,EMS0113952, ,2022-02-01,2022-02-28,DC TELECOM EQUIP (TRANSFER),40,2022
,2022 OFFICE OF THE MINORITY LEADER,1,GENERAL EXPENDITURES,RENT  COMMUNICATION  UTILITIES,DETAIL,2022-03-23,GL,EMS0113952, ,2022-02-01,2022-02-28,DC TELECOM SERV (TRANSFER),570.75,2022
,2022 OFFICE OF THE MINORITY LEADER,1,GENERAL EXPENDITURES,RENT  COMMUNICATION  UTILITIES,DETAIL,2022-03-23,GL,EMS0113952, ,2022-02-01,2022-02-28,DC TELECOM TOLLS (TRANSFER),2406.55,2022
,2022 OFFICE OF THE MINORITY LEADER,1,GENERAL EXPENDITURES,RENT  COMMUNICATION  UTILITIES,SUBTOTAL,   ,   ,   ,   ,   ,   ,RENT  COMMUNICATION  UTILITIES TOTALS:,6093.45,2022
,2022 OFFICE OF THE MINORITY LEADER,1,GENERAL EXPENDITURES,PRINTING AND REPRODUCTION,DETAIL,2022-02-16,AP,1525149,ACCURATE WORD,2022-02-02,2022-02-02,NON-FRANKABLE PRINTING & REPRO,43,2022
,2022 OFFICE OF THE MINORITY LEADER,1,GENERAL EXPENDITURES,PRINTING AND REPRODUCTION,DETAIL,2022-02-28,AP,1531007,ACCURATE WORD,2022-02-17,2022-02-17,NON-FRANKABLE PRINTING & REPRO,33,2022
,2022 OFFICE OF THE MINORITY LEADER,1,GENERAL EXPENDITURES,PRINTING AND REPRODUCTION,DETAIL,2022-03-28,AP,1542514,ACCURATE WORD,2022-03-22,2022-03-22,NON-FRANKABLE PRINTING & REPRO,43,2022
,2022 OFFICE OF THE MINORITY LEADER,1,GENERAL EXPENDITURES,PRINTING AND REPRODUCTION,SUBTOTAL,   ,   ,   ,   ,   ,   ,PRINTING AND REPRODUCTION TOTALS:,119,2022
,2022 OFFICE OF THE MINORITY LEADER,1,GENERAL EXPENDITURES,OTHER SERVICES,DETAIL,2022-01-11,AP,1511305,MIN JAMES B.,2022-01-04,2022-01-04,MISCELLANEOUS OTHER SERVICES,52.94,2022
,2022 OFFICE OF THE MINORITY LEADER,1,GENERAL EXPENDITURES,OTHER SERVICES,DETAIL,2022-01-11,AP,1512198,MIN JAMES B.,2022-01-06,2022-01-06,MISCELLANEOUS OTHER SERVICES,11.63,2022
,2022 OFFICE OF THE MINORITY LEADER,1,GENERAL EXPENDITURES,OTHER SERVICES,DETAIL,2022-01-19,AP,1513529,CITI PCARD-MailChimp,2021-12-12,2022-01-11,WEB DEV HST EMAIL & RLTD SERV,646.6,2022
,2022 OFFICE OF THE MINORITY LEADER,1,GENERAL EXPENDITURES,OTHER SERVICES,DETAIL,2022-02-16,AP,1527132,HOUSECALL LLC,2022-01-01,2022-01-31,TECHNOLOGY SERVICE CONTRACTS,5125,2022
,2022 OFFICE OF THE MINORITY LEADER,1,GENERAL EXPENDITURES,OTHER SERVICES,DETAIL,2022-02-16,AP,1527133,HOUSECALL LLC,2022-02-01,2022-02-28,TECHNOLOGY SERVICE CONTRACTS,5125,2022
,2022 OFFICE OF THE MINORITY LEADER,1,GENERAL EXPENDITURES,OTHER SERVICES,DETAIL,2022-02-18,AP,1523193,CITI PCARD-MailChimp,2022-01-12,2022-02-11,WEB DEV HST EMAIL & RLTD SERV,646.6,2022
,2022 OFFICE OF THE MINORITY LEADER,1,GENERAL EXPENDITURES,OTHER SERVICES,DETAIL,2022-02-28,AP,1531096,DIVERSIFIED REPORTING SERVICES INC,2022-02-07,2022-02-07,STENOGRAPHIC REPORTING,436.1,2022
,2022 OFFICE OF THE MINORITY LEADER,1,GENERAL EXPENDITURES,OTHER SERVICES,DETAIL,2022-03-11,AP,1533001,CITI PCARD-MailChimp,2022-02-12,2022-03-11,WEB DEV HST EMAIL & RLTD SERV,710.2,2022
,2022 OFFICE OF THE MINORITY LEADER,1,GENERAL EXPENDITURES,OTHER SERVICES,DETAIL,2022-03-16,AP,1537264,HOUSECALL LLC,2022-03-01,2022-03-31,TECHNOLOGY SERVICE CONTRACTS,5125,2022
,2022 OFFICE OF THE MINORITY LEADER,1,GENERAL EXPENDITURES,OTHER SERVICES,DETAIL,2022-03-29,AP,1541793,DIVERSIFIED REPORTING SERVICES INC,2022-03-07,2022-03-15,STENOGRAPHIC REPORTING,1046,2022
,2022 OFFICE OF THE MINORITY LEADER,1,GENERAL EXPENDITURES,OTHER SERVICES,SUBTOTAL,   ,   ,   ,   ,   ,   ,OTHER SERVICES TOTALS:,18925.07,2022
,2022 OFFICE OF THE MINORITY LEADER,1,GENERAL EXPENDITURES,SUPPLIES AND MATERIALS,DETAIL,2022-01-31,GL,RMS0112721, ,2022-01-01,2022-01-31,OFFICE SUPPLY (TRANSFER),175.26,2022
,2022 OFFICE OF THE MINORITY LEADER,1,GENERAL EXPENDITURES,SUPPLIES AND MATERIALS,DETAIL,2022-02-01,AP,1520198,CAMERON CHRISTINA E.,2022-01-18,2022-01-18,HABITATION EXPENSE,28.9,2022
,2022 OFFICE OF THE MINORITY LEADER,1,GENERAL EXPENDITURES,SUPPLIES AND MATERIALS,DETAIL,2022-02-03,AP,1521428,HOCHSCHILD KEENAN N.,2022-01-25,2022-01-25,OFFICE SUPPLIES (OUTSIDE),405.73,2022
,2022 OFFICE OF THE MINORITY LEADER,1,GENERAL EXPENDITURES,SUPPLIES AND MATERIALS,DETAIL,2022-02-03,AP,1521428,HOCHSCHILD KEENAN N.,2022-01-11,2022-02-11,SOFTWARE  LESS THAN  $500,25,2022
,2022 OFFICE OF THE MINORITY LEADER,1,GENERAL EXPENDITURES,SUPPLIES AND MATERIALS,DETAIL,2022-02-03,AP,1521449,MIN JAMES B.,2022-01-28,2022-01-28,FOOD & BEVERAGE,419.87,2022
,2022 OFFICE OF THE MINORITY LEADER,1,GENERAL EXPENDITURES,SUPPLIES AND MATERIALS,DETAIL,2022-02-17,AP,1523963,CITI PCARD-ADORAMA INC.,2022-01-25,2022-01-25,OFFICE SUPPLIES (OUTSIDE),847.99,2022
,2022 OFFICE OF THE MINORITY LEADER,1,GENERAL EXPENDITURES,SUPPLIES AND MATERIALS,DETAIL,2022-02-17,AP,1523963,CITI PCARD-AMAZON.COM 276DH6C63 AMZN,2022-01-05,2022-01-05,WATER,27.96,2022
,2022 OFFICE OF THE MINORITY LEADER,1,GENERAL EXPENDITURES,SUPPLIES AND MATERIALS,DETAIL,2022-02-17,AP,1523963,CITI PCARD-AMZN MKTP US 4O9943SZ3 AM,2022-01-24,2022-01-24,OFFICE SUPPLIES (OUTSIDE),14.99,2022
,2022 OFFICE OF THE MINORITY LEADER,1,GENERAL EXPENDITURES,SUPPLIES AND MATERIALS,DETAIL,2022-02-17,AP,1523963,CITI PCARD-Amazon.com V301U58H3,2022-01-12,2022-01-13,OFFICE SUPPLIES (OUTSIDE),15.24,2022
,2022 OFFICE OF THE MINORITY LEADER,1,GENERAL EXPENDITURES,SUPPLIES AND MATERIALS,DETAIL,2022-02-17,AP,1523963,CITI PCARD-CAFE RIO CATERING,2022-01-11,2022-01-11,FOOD & BEVERAGE,566.18,2022
,2022 OFFICE OF THE MINORITY LEADER,1,GENERAL EXPENDITURES,SUPPLIES AND MATERIALS,DETAIL,2022-02-17,AP,1523963,CITI PCARD-CHICK-FIL-A #04346,2022-01-11,2022-01-11,FOOD & BEVERAGE,707.58,2022
,2022 OFFICE OF THE MINORITY LEADER,1,GENERAL EXPENDITURES,SUPPLIES AND MATERIALS,DETAIL,2022-02-17,AP,1523963,CITI PCARD-CHICK-FIL-A #04346,2022-01-14,2022-01-18,FOOD & BEVERAGE,615.14,2022
,2022 OFFICE OF THE MINORITY LEADER,1,GENERAL EXPENDITURES,SUPPLIES AND MATERIALS,DETAIL,2022-02-17,AP,1523963,CITI PCARD-LA TIMES SUBSCRIPTION,2022-01-25,2022-02-22,PUBLICATIONS/REFERENCE MAT'L,27.72,2022
,2022 OFFICE OF THE MINORITY LEADER,1,GENERAL EXPENDITURES,SUPPLIES AND MATERIALS,DETAIL,2022-02-17,AP,1523963,CITI PCARD-REMARKABLE,2022-01-27,2022-01-27,OFFICE SUPPLIES (OUTSIDE),155.74,2022
,2022 OFFICE OF THE MINORITY LEADER,1,GENERAL EXPENDITURES,SUPPLIES AND MATERIALS,DETAIL,2022-02-17,AP,1523963,CITI PCARD-USHR CATERING,2022-01-13,2022-01-13,FOOD & BEVERAGE,502.51,2022
,2022 OFFICE OF THE MINORITY LEADER,1,GENERAL EXPENDITURES,SUPPLIES AND MATERIALS,DETAIL,2022-02-17,AP,1523963,CITI PCARD-ZOES KITCHEN,2022-01-20,2022-01-20,FOOD & BEVERAGE,497.04,2022
,2022 OFFICE OF THE MINORITY LEADER,1,GENERAL EXPENDITURES,SUPPLIES AND MATERIALS,DETAIL,2022-02-17,AP,1525528,MIN JAMES B.,2022-02-14,2022-02-14,FOOD & BEVERAGE,346.82,2022
,2022 OFFICE OF THE MINORITY LEADER,1,GENERAL EXPENDITURES,SUPPLIES AND MATERIALS,DETAIL,2022-02-24,AP,1526389,HAGUE QUALITY WATER OF MD INC,2022-01-01,2022-12-31,WATER,3780,2022
,2022 OFFICE OF THE MINORITY LEADER,1,GENERAL EXPENDITURES,SUPPLIES AND MATERIALS,DETAIL,2022-02-28,AP,1529951,SMITH CALEB,2022-01-12,2022-02-11,SOFTWARE  LESS THAN  $500,1.99,2022
,2022 OFFICE OF THE MINORITY LEADER,1,GENERAL EXPENDITURES,SUPPLIES AND MATERIALS,DETAIL,2022-02-28,AP,1529951,SMITH CALEB,2022-02-09,2022-02-09,SOFTWARE  LESS THAN  $500,99.7,2022
,2022 OFFICE OF THE MINORITY LEADER,1,GENERAL EXPENDITURES,SUPPLIES AND MATERIALS,DETAIL,2022-02-28,AP,1529951,SMITH CALEB,2022-02-12,2022-03-11,SOFTWARE  LESS THAN  $500,1.99,2022
,2022 OFFICE OF THE MINORITY LEADER,1,GENERAL EXPENDITURES,SUPPLIES AND MATERIALS,DETAIL,2022-02-28,GL,RMS0113391, ,2022-02-01,2022-02-28,OFFICE SUPPLY (TRANSFER),140.25,2022
,2022 OFFICE OF THE MINORITY LEADER,1,GENERAL EXPENDITURES,SUPPLIES AND MATERIALS,DETAIL,2022-03-03,AP,1531960,SMITH CALEB,2022-02-10,2022-02-10,OFFICE SUPPLIES (OUTSIDE),23.54,2022
,2022 OFFICE OF THE MINORITY LEADER,1,GENERAL EXPENDITURES,SUPPLIES AND MATERIALS,DETAIL,2022-03-03,AP,1531960,SMITH CALEB,2022-02-17,2022-02-17,OFFICE SUPPLIES (OUTSIDE),21.19,2022
,2022 OFFICE OF THE MINORITY LEADER,1,GENERAL EXPENDITURES,SUPPLIES AND MATERIALS,DETAIL,2022-03-03,AP,1531960,SMITH CALEB,2022-02-24,2023-02-24,SOFTWARE  LESS THAN  $500,323.88,2022
,2022 OFFICE OF THE MINORITY LEADER,1,GENERAL EXPENDITURES,SUPPLIES AND MATERIALS,DETAIL,2022-03-07,AP,1532749,CITI PCARD-FIRSTCHOICEAMERICANCOFF,2022-01-27,2022-01-27,FOOD & BEVERAGE,436.45,2022
,2022 OFFICE OF THE MINORITY LEADER,1,GENERAL EXPENDITURES,SUPPLIES AND MATERIALS,DETAIL,2022-03-07,AP,1532749,CITI PCARD-FIRSTCHOICEAMERICANCOFF,2022-02-24,2022-02-24,FOOD & BEVERAGE,681.4,2022
,2022 OFFICE OF THE MINORITY LEADER,1,GENERAL EXPENDITURES,SUPPLIES AND MATERIALS,DETAIL,2022-03-07,AP,1532839,HOCHSCHILD KEENAN N.,2022-02-27,2022-03-26,SOFTWARE  LESS THAN  $500,39.2,2022
,2022 OFFICE OF THE MINORITY LEADER,1,GENERAL EXPENDITURES,SUPPLIES AND MATERIALS,DETAIL,2022-03-11,AP,1533001,CITI PCARD-ADORAMA INC.,2022-01-25,2022-01-25,OFFICE SUPPLIES (OUTSIDE),-847.99,2022
,2022 OFFICE OF THE MINORITY LEADER,1,GENERAL EXPENDITURES,SUPPLIES AND MATERIALS,DETAIL,2022-03-11,AP,1533001,CITI PCARD-AMAZON.COM C46T74YG3 AMZN,2022-01-31,2022-01-31,WATER,27.96,2022
,2022 OFFICE OF THE MINORITY LEADER,1,GENERAL EXPENDITURES,SUPPLIES AND MATERIALS,DETAIL,2022-03-11,AP,1533001,CITI PCARD-AMZN Mktp US 0U2087H13,2022-02-03,2022-02-03,OFFICE SUPPLIES (OUTSIDE),34.88,2022
,2022 OFFICE OF THE MINORITY LEADER,1,GENERAL EXPENDITURES,SUPPLIES AND MATERIALS,DETAIL,2022-03-11,AP,1533001,CITI PCARD-Amazon.com 1I68T32R1,2022-02-24,2022-02-24,WATER,27.96,2022
,2022 OFFICE OF THE MINORITY LEADER,1,GENERAL EXPENDITURES,SUPPLIES AND MATERIALS,DETAIL,2022-03-11,AP,1533001,CITI PCARD-B&H PHOTO 800-606-6969,2022-02-03,2022-02-03,OFFICE SUPPLIES (OUTSIDE),238.25,2022
,2022 OFFICE OF THE MINORITY LEADER,1,GENERAL EXPENDITURES,SUPPLIES AND MATERIALS,DETAIL,2022-03-11,AP,1533001,CITI PCARD-CHICK-FIL-A #04346,2022-02-01,2022-02-01,FOOD & BEVERAGE,707.58,2022
,2022 OFFICE OF THE MINORITY LEADER,1,GENERAL EXPENDITURES,SUPPLIES AND MATERIALS,DETAIL,2022-03-11,AP,1533001,CITI PCARD-CREAMERY DD,2022-02-08,2022-02-08,FOOD & BEVERAGE,52.5,2022
,2022 OFFICE OF THE MINORITY LEADER,1,GENERAL EXPENDITURES,SUPPLIES AND MATERIALS,DETAIL,2022-03-11,AP,1533001,CITI PCARD-DISTRICT TACO 1003 ONLINE,2022-02-08,2022-02-08,FOOD & BEVERAGE,501.53,2022
,2022 OFFICE OF THE MINORITY LEADER,1,GENERAL EXPENDITURES,SUPPLIES AND MATERIALS,DETAIL,2022-03-11,AP,1533001,CITI PCARD-FTP FINANCIAL TIMES,2022-01-29,2022-02-28,PUBLICATIONS/REFERENCE MAT'L,59.5,2022
,2022 OFFICE OF THE MINORITY LEADER,1,GENERAL EXPENDITURES,SUPPLIES AND MATERIALS,DETAIL,2022-03-11,AP,1533001,CITI PCARD-IWP NEWSLETTERS,2022-02-01,2023-01-31,PUBLICATIONS/REFERENCE MAT'L,978.75,2022
,2022 OFFICE OF THE MINORITY LEADER,1,GENERAL EXPENDITURES,SUPPLIES AND MATERIALS,DETAIL,2022-03-11,AP,1533001,CITI PCARD-LA TIMES SUBSCRIPTION,2022-02-22,2022-03-22,PUBLICATIONS/REFERENCE MAT'L,27.72,2022
,2022 OFFICE OF THE MINORITY LEADER,1,GENERAL EXPENDITURES,SUPPLIES AND MATERIALS,DETAIL,2022-03-11,AP,1533001,CITI PCARD-MISSION BBQ CATERING NORT,2022-02-03,2022-02-03,FOOD & BEVERAGE,465,2022
,2022 OFFICE OF THE MINORITY LEADER,1,GENERAL EXPENDITURES,SUPPLIES AND MATERIALS,DETAIL,2022-03-11,AP,1533001,CITI PCARD-PANERA BREAD #607014 O,2022-02-04,2022-02-04,FOOD & BEVERAGE,365.94,2022
,2022 OFFICE OF THE MINORITY LEADER,1,GENERAL EXPENDITURES,SUPPLIES AND MATERIALS,DETAIL,2022-03-11,AP,1533001,CITI PCARD-READYREFRESH BY NESTLE,2021-12-27,2022-01-26,WATER,4.23,2022
,2022 OFFICE OF THE MINORITY LEADER,1,GENERAL EXPENDITURES,SUPPLIES AND MATERIALS,DETAIL,2022-03-16,AP,1536482,HOCHSCHILD KEENAN N.,2022-02-11,2022-03-11,SOFTWARE  LESS THAN  $500,25,2022
,2022 OFFICE OF THE MINORITY LEADER,1,GENERAL EXPENDITURES,SUPPLIES AND MATERIALS,DETAIL,2022-03-16,AP,1536482,HOCHSCHILD KEENAN N.,2022-03-15,2022-04-15,SOFTWARE  LESS THAN  $500,10,2022
,2022 OFFICE OF THE MINORITY LEADER,1,GENERAL EXPENDITURES,SUPPLIES AND MATERIALS,DETAIL,2022-03-24,AP,1541255,MIN JAMES B.,2022-03-22,2022-03-22,FOOD & BEVERAGE,601.45,2022
,2022 OFFICE OF THE MINORITY LEADER,1,GENERAL EXPENDITURES,SUPPLIES AND MATERIALS,DETAIL,2022-03-30,AP,1542581,LEGANSKI JOHN G.,2022-03-14,2022-03-14,HABITATION EXPENSE,42.56,2022
,2022 OFFICE OF THE MINORITY LEADER,1,GENERAL EXPENDITURES,SUPPLIES AND MATERIALS,DETAIL,2022-03-30,AP,1542669,HOCHSCHILD KEENAN N.,2022-03-17,2022-03-17,OFFICE SUPPLIES (OUTSIDE),15,2022
,2022 OFFICE OF THE MINORITY LEADER,1,GENERAL EXPENDITURES,SUPPLIES AND MATERIALS,DETAIL,2022-03-31,GL,RMS0114229, ,2022-03-01,2022-03-31,OFFICE SUPPLIES (OUTSIDE),264,2022
,2022 OFFICE OF THE MINORITY LEADER,1,GENERAL EXPENDITURES,SUPPLIES AND MATERIALS,DETAIL,2022-03-31,GL,RMS0114229, ,2022-03-01,2022-03-31,OFFICE SUPPLY (TRANSFER),554.8,2022
,2022 OFFICE OF THE MINORITY LEADER,1,GENERAL EXPENDITURES,SUPPLIES AND MATERIALS,SUBTOTAL,   ,   ,   ,   ,   ,   ,SUPPLIES AND MATERIALS TOTALS:,15085.88,2022
,2022 OFFICE OF THE MINORITY LEADER,1,GENERAL EXPENDITURES,EQUIPMENT,DETAIL,2022-01-31,GL,MNT0112655, ,2022-01-01,2022-01-31,MAINTENANCE / REPAIRS,124,2022
,2022 OFFICE OF THE MINORITY LEADER,1,GENERAL EXPENDITURES,EQUIPMENT,DETAIL,2022-01-31,GL,RMS0112721, ,2022-01-01,2022-01-31,COMPUTER HARDW PURCH  LESS THAN $25 000,4188,2022
,2022 OFFICE OF THE MINORITY LEADER,1,GENERAL EXPENDITURES,EQUIPMENT,DETAIL,2022-02-07,AP,1522560,GULF PARTYLINE CORPORATION,2022-01-01,2022-01-31,COMPUTER SOFTW PURCH  LESS THAN $10 000,6000,2022
,2022 OFFICE OF THE MINORITY LEADER,1,GENERAL EXPENDITURES,EQUIPMENT,DETAIL,2022-02-17,AP,1523963,CITI PCARD-REMARKABLE,2022-01-13,2022-01-13,COMPUTER HARDW PURCH  LESS THAN $25 000,421.88,2022
,2022 OFFICE OF THE MINORITY LEADER,1,GENERAL EXPENDITURES,EQUIPMENT,DETAIL,2022-02-28,GL,MNT0113336, ,2022-02-01,2022-02-28,MAINTENANCE / REPAIRS,124,2022
,2022 OFFICE OF THE MINORITY LEADER,1,GENERAL EXPENDITURES,EQUIPMENT,DETAIL,2022-02-28,GL,RMS0113391, ,2022-02-01,2022-02-28,COMPUTER HARDW PURCH  LESS THAN $25 000,2190,2022
,2022 OFFICE OF THE MINORITY LEADER,1,GENERAL EXPENDITURES,EQUIPMENT,DETAIL,2022-03-08,AP,1532742,GULF PARTYLINE CORPORATION,2022-02-01,2022-02-28,COMPUTER SOFTW PURCH  LESS THAN $10 000,6000,2022
,2022 OFFICE OF THE MINORITY LEADER,1,GENERAL EXPENDITURES,EQUIPMENT,DETAIL,2022-03-31,GL,MNT0114177, ,2022-03-01,2022-03-31,MAINTENANCE / REPAIRS,124,2022
,2022 OFFICE OF THE MINORITY LEADER,1,GENERAL EXPENDITURES,EQUIPMENT,DETAIL,2022-03-31,GL,RMS0114229, ,2022-03-01,2022-03-31,COMPUTER HARDW PURCH  LESS THAN $25 000,6489.54,2022
,2022 OFFICE OF THE MINORITY LEADER,1,GENERAL EXPENDITURES,EQUIPMENT,SUBTOTAL,   ,   ,   ,   ,   ,   ,EQUIPMENT TOTALS:,25661.42,2022
,2022 OFFICE OF THE MINORITY LEADER,1,GENERAL EXPENDITURES,EQUIPMENT,SUBTOTAL,   ,   ,   ,   ,   ,   ,GENERAL EXPENDITURES TOTALS:,1339887.99,2022
,2022 OFFICE OF THE MINORITY LEADER,1,REPUBLICAN POLICY COMMITTEE,PERSONNEL COMPENSATION,DETAIL,   ,   ,   ,WALL KELSEY V,2022-01-01,2022-01-31,SHARED EMPLOYEE,-416.67,2022
,2022 OFFICE OF THE MINORITY LEADER,1,REPUBLICAN POLICY COMMITTEE,PERSONNEL COMPENSATION,DETAIL,   ,   ,   ,WALL KELSEY V,2022-01-01,2022-03-31,SHARED EMPLOYEE,18750,2022
,2022 OFFICE OF THE MINORITY LEADER,1,REPUBLICAN POLICY COMMITTEE,PERSONNEL COMPENSATION,SUBTOTAL,   ,   ,   ,   ,   ,   ,PERSONNEL COMPENSATION TOTALS:,18333.33,2022
,2022 OFFICE OF THE MINORITY LEADER,1,REPUBLICAN POLICY COMMITTEE,PERSONNEL COMPENSATION,SUBTOTAL,   ,   ,   ,   ,   ,   ,REPUBLICAN POLICY COMMITTEE TOTALS:,18333.33,2022
,2022 OFFICE OF THE MINORITY LEADER,1,REPUBLICAN POLICY COMMITTEE,PERSONNEL COMPENSATION,GRAND TOTAL FOR ORGANIZATION,   ,   ,   ,   ,   ,   ,OFFICE TOTALS: ,1358221.32,2022
,2021 OFFICE OF THE MINORITY LEADER,1,GENERAL EXPENDITURES,PERSONNEL COMPENSATION,DETAIL,   ,   ,   ,BEDNAR MARK M,2022-01-01,2022-01-02,DIR OF STRATEGIC COMMUNICATION,833.33,2022
,2021 OFFICE OF THE MINORITY LEADER,1,GENERAL EXPENDITURES,PERSONNEL COMPENSATION,DETAIL,   ,   ,   ,BERTOLINI STEVEN R.,2022-01-01,2022-01-02,STAFF ASSISTANT,266.67,2022
,2021 OFFICE OF THE MINORITY LEADER,1,GENERAL EXPENDITURES,PERSONNEL COMPENSATION,DETAIL,   ,   ,   ,BIEN CHRISTOPHER A,2022-01-01,2022-01-02,DEPUTY DIR OF FLOOR OPERATIONS,750,2022
,2021 OFFICE OF THE MINORITY LEADER,1,GENERAL EXPENDITURES,PERSONNEL COMPENSATION,DETAIL,   ,   ,   ,BOGOROWSKI HANNA C,2022-01-01,2022-01-02,COMMUNICATIONS ADVISOR,433.33,2022
,2021 OFFICE OF THE MINORITY LEADER,1,GENERAL EXPENDITURES,PERSONNEL COMPENSATION,DETAIL,   ,   ,   ,BONNER JENNIFER L,2022-01-01,2022-01-02,SCHEDULER,466.67,2022
,2021 OFFICE OF THE MINORITY LEADER,1,GENERAL EXPENDITURES,PERSONNEL COMPENSATION,DETAIL,   ,   ,   ,BUCHANAN NATALIE L,2022-01-01,2022-01-02,DEPUTY CHIEF OF STAFF FOR MEMB,1000,2022
,2021 OFFICE OF THE MINORITY LEADER,1,GENERAL EXPENDITURES,PERSONNEL COMPENSATION,DETAIL,   ,   ,   ,BURKE ROBERT J,2022-01-01,2022-01-02,COMMUNICATIONS AIDE,316.67,2022
,2021 OFFICE OF THE MINORITY LEADER,1,GENERAL EXPENDITURES,PERSONNEL COMPENSATION,DETAIL,   ,   ,   ,CAMERON CHRISTINA E,2022-01-01,2022-01-02,MEDIA AFFAIRS & OPERATIONS ADV,633.33,2022
,2021 OFFICE OF THE MINORITY LEADER,1,GENERAL EXPENDITURES,PERSONNEL COMPENSATION,DETAIL,   ,   ,   ,CARR MACHALAGH,2022-01-01,2022-01-02,GENERAL COUNSEL,1000,2022
,2021 OFFICE OF THE MINORITY LEADER,1,GENERAL EXPENDITURES,PERSONNEL COMPENSATION,DETAIL,   ,   ,   ,CONSTANGY III HERBERT W,2022-01-01,2022-01-02,SHARED EMPLOYEE,666.67,2022
,2021 OFFICE OF THE MINORITY LEADER,1,GENERAL EXPENDITURES,PERSONNEL COMPENSATION,DETAIL,   ,   ,   ,COOK KRISTOPHER D.,2022-01-01,2022-01-02,SHARED EMPLOYEE,400,2022
,2021 OFFICE OF THE MINORITY LEADER,1,GENERAL EXPENDITURES,PERSONNEL COMPENSATION,DETAIL,   ,   ,   ,CORRELL CHARLES C,2022-01-01,2022-01-02,SPEECHWRITER,500,2022
,2021 OFFICE OF THE MINORITY LEADER,1,GENERAL EXPENDITURES,PERSONNEL COMPENSATION,DETAIL,   ,   ,   ,COYLE SARAH M,2022-01-01,2022-01-02,CLOAKROOM FLOOR DIRECTOR,533.33,2022
,2021 OFFICE OF THE MINORITY LEADER,1,GENERAL EXPENDITURES,PERSONNEL COMPENSATION,DETAIL,   ,   ,   ,DAYER KATHERINE J,2022-01-01,2022-01-02,CLOAKROOM FLOOR ASSISTANT,316.67,2022
,2021 OFFICE OF THE MINORITY LEADER,1,GENERAL EXPENDITURES,PERSONNEL COMPENSATION,DETAIL,   ,   ,   ,DOMENECH EMILY H,2022-01-01,2022-01-02,SENIOR POLICY ADVISOR,933.33,2022
,2021 OFFICE OF THE MINORITY LEADER,1,GENERAL EXPENDITURES,PERSONNEL COMPENSATION,DETAIL,   ,   ,   ,DUNHAM WILL,2022-01-01,2022-01-02,DEP CHIEF OF STAFF FOR POLICY,1100,2022
,2021 OFFICE OF THE MINORITY LEADER,1,GENERAL EXPENDITURES,PERSONNEL COMPENSATION,DETAIL,   ,   ,   ,EARWOOD ELIZABETH K.,2022-01-01,2022-01-02,SHARED EMPLOYEE,333.33,2022
,2021 OFFICE OF THE MINORITY LEADER,1,GENERAL EXPENDITURES,PERSONNEL COMPENSATION,DETAIL,   ,   ,   ,ENGLING MAXIMILIAN T,2022-01-01,2022-01-02,DEP DIR OF MEMBER SERVICES,833.33,2022
,2021 OFFICE OF THE MINORITY LEADER,1,GENERAL EXPENDITURES,PERSONNEL COMPENSATION,DETAIL,   ,   ,   ,EXNER MICHELE P,2022-01-01,2022-01-02,COMMUNICATIONS DIRECTOR,833.33,2022
,2021 OFFICE OF THE MINORITY LEADER,1,GENERAL EXPENDITURES,PERSONNEL COMPENSATION,DETAIL,   ,   ,   ,GIAIER STEVEN S,2022-01-01,2022-01-02,SENIOR POLICY ADVISOR & COUNSE,933.33,2022
,2021 OFFICE OF THE MINORITY LEADER,1,GENERAL EXPENDITURES,PERSONNEL COMPENSATION,DETAIL,   ,   ,   ,GILLESPIE JAMES M.,2022-01-01,2022-01-02,SPECIAL ASSISTANT TO THE REPUL,416.67,2022
,2021 OFFICE OF THE MINORITY LEADER,1,GENERAL EXPENDITURES,PERSONNEL COMPENSATION,DETAIL,   ,   ,   ,GILMARTIN CHARLES P.,2022-01-01,2022-01-02,DEPUTY SPOKESMAN,433.33,2022
,2021 OFFICE OF THE MINORITY LEADER,1,GENERAL EXPENDITURES,PERSONNEL COMPENSATION,DETAIL,   ,   ,   ,GOURDIKIAN ALEXANDRA G.,2022-01-01,2022-01-02,DIRECTOR OF OPERATIONS & SCHED,900,2022
,2021 OFFICE OF THE MINORITY LEADER,1,GENERAL EXPENDITURES,PERSONNEL COMPENSATION,DETAIL,   ,   ,   ,HAULSEE TAYLOR S.,2022-01-01,2022-01-02,SHARED EMPLOYEE,666.67,2022
,2021 OFFICE OF THE MINORITY LEADER,1,GENERAL EXPENDITURES,PERSONNEL COMPENSATION,DETAIL,   ,   ,   ,HILL PRESTON W,2022-01-01,2022-01-02,POLICY ADVISOR,750,2022
,2021 OFFICE OF THE MINORITY LEADER,1,GENERAL EXPENDITURES,PERSONNEL COMPENSATION,DETAIL,   ,   ,   ,HOCHSCHILD KEENAN N.,2022-01-01,2022-01-02,DIGITAL COMMUNICATIONS ADVISOR,433.33,2022
,2021 OFFICE OF THE MINORITY LEADER,1,GENERAL EXPENDITURES,PERSONNEL COMPENSATION,DETAIL,   ,   ,   ,HOWELL MARGARET E.,2022-01-01,2022-01-02,GRAPHIC DESIGNER,350,2022
,2021 OFFICE OF THE MINORITY LEADER,1,GENERAL EXPENDITURES,PERSONNEL COMPENSATION,DETAIL,   ,   ,   ,HUMES ALEXANDRA W.,2022-01-01,2022-01-02,MEMBER SERVICES COORDINATOR,450,2022
,2021 OFFICE OF THE MINORITY LEADER,1,GENERAL EXPENDITURES,PERSONNEL COMPENSATION,DETAIL,   ,   ,   ,KELLY CARI R,2022-01-01,2022-01-02,SHARED EMPLOYEE,516.67,2022
,2021 OFFICE OF THE MINORITY LEADER,1,GENERAL EXPENDITURES,PERSONNEL COMPENSATION,DETAIL,   ,   ,   ,LEGANSKI JOHN G,2022-01-01,2022-01-02,DEP CHIEF OF STAFF FOR FLOOR O,1000,2022
,2021 OFFICE OF THE MINORITY LEADER,1,GENERAL EXPENDITURES,PERSONNEL COMPENSATION,DETAIL,   ,   ,   ,LOMBARDI KYLE,2022-01-01,2022-01-02,SHARED EMPLOYEE,700,2022
,2021 OFFICE OF THE MINORITY LEADER,1,GENERAL EXPENDITURES,PERSONNEL COMPENSATION,DETAIL,   ,   ,   ,LONG RYAN C,2022-01-01,2022-01-02,SR POLICY ADVISOR & COUNSEL,933.33,2022
,2021 OFFICE OF THE MINORITY LEADER,1,GENERAL EXPENDITURES,PERSONNEL COMPENSATION,DETAIL,   ,   ,   ,LUNDQUIST MICHAEL J.,2021-12-01,2021-12-31,TEMPORARY EMPLOYEE,-366.67,2022
,2021 OFFICE OF THE MINORITY LEADER,1,GENERAL EXPENDITURES,PERSONNEL COMPENSATION,DETAIL,   ,   ,   ,MARTINEZ BRITTANY N,2022-01-01,2022-01-02,CALIFORNIA PRESS SECRETARY,450,2022
,2021 OFFICE OF THE MINORITY LEADER,1,GENERAL EXPENDITURES,PERSONNEL COMPENSATION,DETAIL,   ,   ,   ,MEYER DANIEL P,2022-01-01,2022-01-02,CHIEF OF STAFF,1107.22,2022
,2021 OFFICE OF THE MINORITY LEADER,1,GENERAL EXPENDITURES,PERSONNEL COMPENSATION,DETAIL,   ,   ,   ,MIN JAMES B.,2022-01-01,2022-01-02,DEPUTY CHIEF OF STAFF/COUNSEL,1066.67,2022
,2021 OFFICE OF THE MINORITY LEADER,1,GENERAL EXPENDITURES,PERSONNEL COMPENSATION,DETAIL,   ,   ,   ,MURPHY CULLEN D,2022-01-01,2022-01-02,FLOOR ASSISTANT,350,2022
,2021 OFFICE OF THE MINORITY LEADER,1,GENERAL EXPENDITURES,PERSONNEL COMPENSATION,DETAIL,   ,   ,   ,SMITH CALEB J,2022-01-01,2022-01-02,DIGITAL COMMUNICATIONS DIRECTO,1000,2022
,2021 OFFICE OF THE MINORITY LEADER,1,GENERAL EXPENDITURES,PERSONNEL COMPENSATION,DETAIL,   ,   ,   ,SMITH TREVOR H,2022-01-01,2022-01-02,SHARED EMPLOYEE,566.67,2022
,2021 OFFICE OF THE MINORITY LEADER,1,GENERAL EXPENDITURES,PERSONNEL COMPENSATION,DETAIL,   ,   ,   ,SMITHWICK KYLE B,2022-01-01,2022-01-02,SHARED EMPLOYEE,666.67,2022
,2021 OFFICE OF THE MINORITY LEADER,1,GENERAL EXPENDITURES,PERSONNEL COMPENSATION,DETAIL,   ,   ,   ,SOUZA ALLEN R,2022-01-01,2022-01-02,NATIONAL SECURITY ADVISOR,933.33,2022
,2021 OFFICE OF THE MINORITY LEADER,1,GENERAL EXPENDITURES,PERSONNEL COMPENSATION,DETAIL,   ,   ,   ,SPARKS MATTHEW E,2022-01-01,2022-01-02,HEAD OF COMMUNICATIONS,1000,2022
,2021 OFFICE OF THE MINORITY LEADER,1,GENERAL EXPENDITURES,PERSONNEL COMPENSATION,DETAIL,   ,   ,   ,SPECHT BRITTAN G,2022-01-01,2022-01-02,DEPUTY POLICY DIRECTOR,950,2022
,2021 OFFICE OF THE MINORITY LEADER,1,GENERAL EXPENDITURES,PERSONNEL COMPENSATION,SUBTOTAL,   ,   ,   ,   ,   ,   ,PERSONNEL COMPENSATION TOTALS:,28357.21,2022
,2021 OFFICE OF THE MINORITY LEADER,1,GENERAL EXPENDITURES,RENT  COMMUNICATION  UTILITIES,DETAIL,2022-01-19,AP,1513508,CITI PCARD-USPS PO 1050091422,2021-12-03,2021-12-05,POSTAGE / COURIER / BOX RENTAL,9.3,2022
,2021 OFFICE OF THE MINORITY LEADER,1,GENERAL EXPENDITURES,RENT  COMMUNICATION  UTILITIES,DETAIL,2022-01-19,AP,1513529,CITI PCARD-GOOGLE  YouTube TV,2021-11-29,2021-12-28,UTILITIES,68.89,2022
,2021 OFFICE OF THE MINORITY LEADER,1,GENERAL EXPENDITURES,RENT  COMMUNICATION  UTILITIES,DETAIL,2022-01-26,GL,EMS0112513, ,2021-12-01,2021-12-31,DC TELECOM EQUIP (TRANSFER),40,2022
,2021 OFFICE OF THE MINORITY LEADER,1,GENERAL EXPENDITURES,RENT  COMMUNICATION  UTILITIES,DETAIL,2022-01-26,GL,EMS0112513, ,2021-12-01,2021-12-31,DC TELECOM SERV (TRANSFER),570.75,2022
,2021 OFFICE OF THE MINORITY LEADER,1,GENERAL EXPENDITURES,RENT  COMMUNICATION  UTILITIES,DETAIL,2022-01-26,GL,EMS0112513, ,2021-12-01,2021-12-31,DC TELECOM TOLLS (TRANSFER),2192.14,2022
,2021 OFFICE OF THE MINORITY LEADER,1,GENERAL EXPENDITURES,RENT  COMMUNICATION  UTILITIES,DETAIL,2022-02-16,AP,1523974,CITI PCARD-SXM SIRIUSXM.COM/ACCT,2021-12-09,2022-12-08,UTILITIES,368.41,2022
,2021 OFFICE OF THE MINORITY LEADER,1,GENERAL EXPENDITURES,RENT  COMMUNICATION  UTILITIES,DETAIL,2022-02-18,AP,1523193,CITI PCARD-GOOGLE  YouTube TV,2021-12-29,2022-01-28,UTILITIES,52.99,2022
,2021 OFFICE OF THE MINORITY LEADER,1,GENERAL EXPENDITURES,RENT  COMMUNICATION  UTILITIES,SUBTOTAL,   ,   ,   ,   ,   ,   ,RENT  COMMUNICATION  UTILITIES TOTALS:,3302.48,2022
,2021 OFFICE OF THE MINORITY LEADER,1,GENERAL EXPENDITURES,OTHER SERVICES,DETAIL,2022-01-12,AP,1511329,ENGAGE LLC,2022-01-01,2022-12-31,WEB DEV HST EMAIL & RLTD SERV,9600,2022
,2021 OFFICE OF THE MINORITY LEADER,1,GENERAL EXPENDITURES,OTHER SERVICES,DETAIL,2022-01-18,AP,1513818,DIVERSIFIED REPORTING SERVICES INC,2021-11-03,2021-11-09,STENOGRAPHIC REPORTING,841.2,2022
,2021 OFFICE OF THE MINORITY LEADER,1,GENERAL EXPENDITURES,OTHER SERVICES,DETAIL,2022-01-31,AP,1516467,DIVERSIFIED REPORTING SERVICES INC,2021-12-02,2021-12-02,STENOGRAPHIC REPORTING,504.4,2022
,2021 OFFICE OF THE MINORITY LEADER,1,GENERAL EXPENDITURES,OTHER SERVICES,DETAIL,2022-01-31,AP,1520195,DIVERSIFIED REPORTING SERVICES INC,2021-12-16,2021-12-16,STENOGRAPHIC REPORTING,898.9,2022
,2021 OFFICE OF THE MINORITY LEADER,1,GENERAL EXPENDITURES,OTHER SERVICES,DETAIL,2022-02-03,AP,1522094,DIVERSIFIED REPORTING SERVICES INC,2021-12-06,2021-12-06,STENOGRAPHIC REPORTING,225,2022
,2021 OFFICE OF THE MINORITY LEADER,1,GENERAL EXPENDITURES,OTHER SERVICES,SUBTOTAL,   ,   ,   ,   ,   ,   ,OTHER SERVICES TOTALS:,12069.5,2022
,2021 OFFICE OF THE MINORITY LEADER,1,GENERAL EXPENDITURES,SUPPLIES AND MATERIALS,DETAIL,2022-01-11,AP,1511232,PUNCHBOWL NEWS,2022-01-01,2023-01-01,PUBLICATIONS/REFERENCE MAT'L,5600,2022
,2021 OFFICE OF THE MINORITY LEADER,1,GENERAL EXPENDITURES,SUPPLIES AND MATERIALS,DETAIL,2022-01-19,AP,1513508,CITI PCARD-BUFFALO WILD WINGS 0646,2021-12-10,2021-12-10,FOOD & BEVERAGE,290.29,2022
,2021 OFFICE OF THE MINORITY LEADER,1,GENERAL EXPENDITURES,SUPPLIES AND MATERIALS,DETAIL,2022-01-19,AP,1513508,CITI PCARD-CAFE RIO CATERING,2021-12-02,2021-12-02,FOOD & BEVERAGE,566.18,2022
,2021 OFFICE OF THE MINORITY LEADER,1,GENERAL EXPENDITURES,SUPPLIES AND MATERIALS,DETAIL,2022-01-19,AP,1513508,CITI PCARD-CHICK-FIL-A #04346,2021-12-07,2021-12-07,FOOD & BEVERAGE,782.9,2022
,2021 OFFICE OF THE MINORITY LEADER,1,GENERAL EXPENDITURES,SUPPLIES AND MATERIALS,DETAIL,2022-01-19,AP,1513508,CITI PCARD-GOOD STUFF EATERY #2,2021-12-07,2021-12-07,FOOD & BEVERAGE,383.96,2022
,2021 OFFICE OF THE MINORITY LEADER,1,GENERAL EXPENDITURES,SUPPLIES AND MATERIALS,DETAIL,2022-01-19,AP,1513508,CITI PCARD-IN  BMORE SPORTS,2021-12-13,2021-12-13,HABITATION EXPENSE,1127.59,2022
,2021 OFFICE OF THE MINORITY LEADER,1,GENERAL EXPENDITURES,SUPPLIES AND MATERIALS,DETAIL,2022-01-19,AP,1513508,CITI PCARD-MISSION BBQ CATERING NORT,2021-12-09,2021-12-09,FOOD & BEVERAGE,465,2022
,2021 OFFICE OF THE MINORITY LEADER,1,GENERAL EXPENDITURES,SUPPLIES AND MATERIALS,DETAIL,2022-01-19,AP,1513508,CITI PCARD-READYREFRESH BY NESTLE,2021-11-27,2021-12-26,WATER,51.5,2022
,2021 OFFICE OF THE MINORITY LEADER,1,GENERAL EXPENDITURES,SUPPLIES AND MATERIALS,DETAIL,2022-01-19,AP,1513508,CITI PCARD-SP   XEBEC,2021-12-06,2021-12-06,OFFICE SUPPLIES (OUTSIDE),958,2022
,2021 OFFICE OF THE MINORITY LEADER,1,GENERAL EXPENDITURES,SUPPLIES AND MATERIALS,DETAIL,2022-01-19,AP,1513508,CITI PCARD-SQ  BULLFROG BAGELS,2021-12-03,2021-12-03,FOOD & BEVERAGE,252.55,2022
,2021 OFFICE OF THE MINORITY LEADER,1,GENERAL EXPENDITURES,SUPPLIES AND MATERIALS,DETAIL,2022-01-19,AP,1513508,CITI PCARD-USHR CATERING,2021-12-14,2021-12-14,FOOD & BEVERAGE,90,2022
,2021 OFFICE OF THE MINORITY LEADER,1,GENERAL EXPENDITURES,SUPPLIES AND MATERIALS,DETAIL,2022-01-19,AP,1513508,CITI PCARD-USHR LONGWORTH FOOD CT,2021-08-30,2021-08-30,FOOD & BEVERAGE,181.88,2022
,2021 OFFICE OF THE MINORITY LEADER,1,GENERAL EXPENDITURES,SUPPLIES AND MATERIALS,DETAIL,2022-01-19,AP,1513508,CITI PCARD-WHOLEFOODS.COM,2021-12-14,2021-12-14,FOOD & BEVERAGE,497.87,2022
,2021 OFFICE OF THE MINORITY LEADER,1,GENERAL EXPENDITURES,SUPPLIES AND MATERIALS,DETAIL,2022-01-19,AP,1513529,CITI PCARD-D J WALL-ST-JOURNAL,2021-12-20,2022-01-19,PUBLICATIONS/REFERENCE MAT'L,52.99,2022
,2021 OFFICE OF THE MINORITY LEADER,1,GENERAL EXPENDITURES,SUPPLIES AND MATERIALS,DETAIL,2022-01-19,AP,1513529,CITI PCARD-FIRSTCHOICEAMERICANCOFF,2021-11-30,2021-11-30,FOOD & BEVERAGE,727.89,2022
,2021 OFFICE OF THE MINORITY LEADER,1,GENERAL EXPENDITURES,SUPPLIES AND MATERIALS,DETAIL,2022-01-19,AP,1513529,CITI PCARD-FTP FINANCIAL TIMES,2021-11-29,2021-12-28,PUBLICATIONS/REFERENCE MAT'L,59.5,2022
,2021 OFFICE OF THE MINORITY LEADER,1,GENERAL EXPENDITURES,SUPPLIES AND MATERIALS,DETAIL,2022-01-19,AP,1513529,CITI PCARD-LA TIMES SUBSCRIPTION,2021-11-30,2021-12-28,PUBLICATIONS/REFERENCE MAT'L,27.72,2022
,2021 OFFICE OF THE MINORITY LEADER,1,GENERAL EXPENDITURES,SUPPLIES AND MATERIALS,DETAIL,2022-01-19,AP,1513529,CITI PCARD-NYTimes NYTimes,2021-12-03,2021-12-31,PUBLICATIONS/REFERENCE MAT'L,18.02,2022
,2021 OFFICE OF THE MINORITY LEADER,1,GENERAL EXPENDITURES,SUPPLIES AND MATERIALS,DETAIL,2022-01-31,GL,RMS0112721, ,2021-12-01,2021-12-31,OFFICE SUPPLY (TRANSFER),63,2022
,2021 OFFICE OF THE MINORITY LEADER,1,GENERAL EXPENDITURES,SUPPLIES AND MATERIALS,DETAIL,2022-02-03,AP,1521428,HOCHSCHILD KEENAN N.,2022-01-01,2022-01-31,SOFTWARE  LESS THAN  $500,49,2022
,2021 OFFICE OF THE MINORITY LEADER,1,GENERAL EXPENDITURES,SUPPLIES AND MATERIALS,DETAIL,2022-02-16,AP,1523974,CITI PCARD-READYREFRESH BY NESTLE,2021-02-25,2021-03-26,WATER,3.1,2022
,2021 OFFICE OF THE MINORITY LEADER,1,GENERAL EXPENDITURES,SUPPLIES AND MATERIALS,DETAIL,2022-02-16,AP,1523974,CITI PCARD-SACBEE DIGITAL SUBSCRIPT,2021-12-17,2022-12-16,PUBLICATIONS/REFERENCE MAT'L,219.99,2022
,2021 OFFICE OF THE MINORITY LEADER,1,GENERAL EXPENDITURES,SUPPLIES AND MATERIALS,DETAIL,2022-02-16,AP,1523974,CITI PCARD-TLF THE VIRGINIA FLORIST,2021-05-11,2021-05-11,HABITATION EXPENSE,444,2022
,2021 OFFICE OF THE MINORITY LEADER,1,GENERAL EXPENDITURES,SUPPLIES AND MATERIALS,DETAIL,2022-02-16,AP,1523974,CITI PCARD-WE THE PIZZA,2021-10-01,2021-10-01,FOOD & BEVERAGE,288.15,2022
,2021 OFFICE OF THE MINORITY LEADER,1,GENERAL EXPENDITURES,SUPPLIES AND MATERIALS,DETAIL,2022-02-17,AP,1523963,CITI PCARD-AUDIO IMPLEMENTS LLC,2021-12-15,2021-12-15,OFFICE SUPPLIES (OUTSIDE),199.67,2022
,2021 OFFICE OF THE MINORITY LEADER,1,GENERAL EXPENDITURES,SUPPLIES AND MATERIALS,DETAIL,2022-02-17,AP,1523963,CITI PCARD-READYREFRESH BY NESTLE,2021-11-27,2021-12-26,WATER,91.4,2022
,2021 OFFICE OF THE MINORITY LEADER,1,GENERAL EXPENDITURES,SUPPLIES AND MATERIALS,DETAIL,2022-02-17,AP,1523985,CITI PCARD-WE THE PIZZA,2021-06-16,2021-06-16,FOOD & BEVERAGE,194.35,2022
,2021 OFFICE OF THE MINORITY LEADER,1,GENERAL EXPENDITURES,SUPPLIES AND MATERIALS,DETAIL,2022-02-18,AP,1523193,CITI PCARD-FIRSTCHOICEAMERICANCOFF,2021-06-08,2021-06-21,FOOD & BEVERAGE,884.61,2022
,2021 OFFICE OF THE MINORITY LEADER,1,GENERAL EXPENDITURES,SUPPLIES AND MATERIALS,DETAIL,2022-02-18,AP,1523193,CITI PCARD-FIRSTCHOICEAMERICANCOFF,2021-09-01,2021-09-30,FOOD & BEVERAGE,977.21,2022
,2021 OFFICE OF THE MINORITY LEADER,1,GENERAL EXPENDITURES,SUPPLIES AND MATERIALS,DETAIL,2022-02-18,AP,1523193,CITI PCARD-FTP FINANCIAL TIMES,2021-12-29,2022-01-28,PUBLICATIONS/REFERENCE MAT'L,59.5,2022
,2021 OFFICE OF THE MINORITY LEADER,1,GENERAL EXPENDITURES,SUPPLIES AND MATERIALS,DETAIL,2022-02-18,AP,1523193,CITI PCARD-LA TIMES SUBSCRIPTION,2021-12-28,2022-01-25,PUBLICATIONS/REFERENCE MAT'L,27.72,2022
,2021 OFFICE OF THE MINORITY LEADER,1,GENERAL EXPENDITURES,SUPPLIES AND MATERIALS,DETAIL,2022-02-18,AP,1523193,CITI PCARD-NYTimes NYTimes,2021-12-31,2022-01-28,PUBLICATIONS/REFERENCE MAT'L,18.02,2022
,2021 OFFICE OF THE MINORITY LEADER,1,GENERAL EXPENDITURES,SUPPLIES AND MATERIALS,DETAIL,2022-03-11,AP,1533001,CITI PCARD-CHICK-FIL-A #04346,2021-09-30,2021-09-30,FOOD & BEVERAGE,531.69,2022
,2021 OFFICE OF THE MINORITY LEADER,1,GENERAL EXPENDITURES,SUPPLIES AND MATERIALS,DETAIL,2022-03-17,AP,1536520,TAX ANALYSTS,2022-01-01,2022-12-31,PUBLICATIONS/REFERENCE MAT'L,2530.94,2022
,2021 OFFICE OF THE MINORITY LEADER,1,GENERAL EXPENDITURES,SUPPLIES AND MATERIALS,SUBTOTAL,   ,   ,   ,   ,   ,   ,SUPPLIES AND MATERIALS TOTALS:,18716.19,2022
,2021 OFFICE OF THE MINORITY LEADER,1,GENERAL EXPENDITURES,EQUIPMENT,DETAIL,2022-01-11,AP,1511254,GULF PARTYLINE CORPORATION,2021-12-01,2021-12-31,COMPUTER SOFTW PURCH  LESS THAN $10 000,6000,2022
,2021 OFFICE OF THE MINORITY LEADER,1,GENERAL EXPENDITURES,EQUIPMENT,DETAIL,2022-02-24,AP,1531360,CDW GOVERNMENT LLC,2022-02-18,2022-02-18,COMPUTER HARDW PURCH  LESS THAN $25 000,3412.05,2022
,2021 OFFICE OF THE MINORITY LEADER,1,GENERAL EXPENDITURES,EQUIPMENT,DETAIL,2022-02-24,AP,1531360,CDW GOVERNMENT LLC,2022-02-18,2022-02-18,WARRANTIES,348.03,2022
,2021 OFFICE OF THE MINORITY LEADER,1,GENERAL EXPENDITURES,EQUIPMENT,DETAIL,2022-03-14,AP,1536218,CDW GOVERNMENT LLC,2022-02-07,2022-02-07,COMPUTER HARDW PURCH  LESS THAN $25 000,1974.41,2022
,2021 OFFICE OF THE MINORITY LEADER,1,GENERAL EXPENDITURES,EQUIPMENT,DETAIL,2022-03-14,AP,1536218,CDW GOVERNMENT LLC,2022-02-07,2022-02-07,WARRANTIES,243.26,2022
,2021 OFFICE OF THE MINORITY LEADER,1,GENERAL EXPENDITURES,EQUIPMENT,SUBTOTAL,   ,   ,   ,   ,   ,   ,EQUIPMENT TOTALS:,11977.75,2022
,2021 OFFICE OF THE MINORITY LEADER,1,GENERAL EXPENDITURES,EQUIPMENT,SUBTOTAL,   ,   ,   ,   ,   ,   ,GENERAL EXPENDITURES TOTALS:,74423.13,2022
,2021 OFFICE OF THE MINORITY LEADER,1,REPUBLICAN POLICY COMMITTEE,PERSONNEL COMPENSATION,DETAIL,   ,   ,   ,WALL KELSEY V,2022-01-01,2022-01-02,SHARED EMPLOYEE,416.67,2022
,2021 OFFICE OF THE MINORITY LEADER,1,REPUBLICAN POLICY COMMITTEE,PERSONNEL COMPENSATION,SUBTOTAL,   ,   ,   ,   ,   ,   ,PERSONNEL COMPENSATION TOTALS:,416.67,2022
,2021 OFFICE OF THE MINORITY LEADER,1,REPUBLICAN POLICY COMMITTEE,PERSONNEL COMPENSATION,SUBTOTAL,   ,   ,   ,   ,   ,   ,REPUBLICAN POLICY COMMITTEE TOTALS:,416.67,2022
,2021 OFFICE OF THE MINORITY LEADER,1,REPUBLICAN POLICY COMMITTEE,PERSONNEL COMPENSATION,GRAND TOTAL FOR ORGANIZATION,   ,   ,   ,   ,   ,   ,OFFICE TOTALS: ,74839.8,2022
,2022 OFFICE OF THE MINORITY LEADER,1,INTERN ALLOWANCES,PERSONNEL COMPENSATION,DETAIL,   ,   ,   ,HOUSTON CAIRO E.,2022-01-11,2022-03-31,MIN LEADER PAID INTERN - HOUSE,2666.67,2022
,2022 OFFICE OF THE MINORITY LEADER,1,INTERN ALLOWANCES,PERSONNEL COMPENSATION,DETAIL,   ,   ,   ,ST JOHN MIKELA C.,2022-01-18,2022-03-31,MIN LEADER PAID INTERN - HOUSE,2433.33,2022
,2022 OFFICE OF THE MINORITY LEADER,1,INTERN ALLOWANCES,PERSONNEL COMPENSATION,SUBTOTAL,   ,   ,   ,   ,   ,   ,PERSONNEL COMPENSATION TOTALS:,5100,2022
,2022 OFFICE OF THE MINORITY LEADER,1,INTERN ALLOWANCES,PERSONNEL COMPENSATION,SUBTOTAL,   ,   ,   ,   ,   ,   ,INTERN ALLOWANCES TOTALS:,5100,2022
,2022 OFFICE OF THE MINORITY LEADER,1,INTERN ALLOWANCES,PERSONNEL COMPENSATION,GRAND TOTAL FOR ORGANIZATION,   ,   ,   ,   ,   ,   ,OFFICE TOTALS: ,5100,2022
,2022 OFFICE OF THE MAJORITY WHIP,1,GENERAL EXPENDITURES,PERSONNEL COMPENSATION,DETAIL,   ,   ,   ,CAPPS HALEY K.,2022-01-20,2022-03-31,PAID INTERN,2268.05,2022
,2022 OFFICE OF THE MAJORITY WHIP,1,GENERAL EXPENDITURES,PERSONNEL COMPENSATION,DETAIL,   ,   ,   ,DERRICK HOPE E,2022-01-01,2022-01-31,COMMUNICATIONS DIRECTOR,-877.78,2022
,2022 OFFICE OF THE MAJORITY WHIP,1,GENERAL EXPENDITURES,PERSONNEL COMPENSATION,DETAIL,   ,   ,   ,DERRICK HOPE E,2022-01-01,2022-03-31,COMMUNICATIONS DIRECTOR,39500.01,2022
,2022 OFFICE OF THE MAJORITY WHIP,1,GENERAL EXPENDITURES,PERSONNEL COMPENSATION,DETAIL,   ,   ,   ,ELLISON MATTHEW B.,2022-01-01,2022-01-31,POLICY DIRECTOR,-666.67,2022
,2022 OFFICE OF THE MAJORITY WHIP,1,GENERAL EXPENDITURES,PERSONNEL COMPENSATION,DETAIL,   ,   ,   ,ELLISON MATTHEW B.,2022-01-01,2022-03-31,POLICY DIRECTOR,30000,2022
,2022 OFFICE OF THE MAJORITY WHIP,1,GENERAL EXPENDITURES,PERSONNEL COMPENSATION,DETAIL,   ,   ,   ,FRIAS BRIANNA A.,2022-01-01,2022-01-31,DIGITAL DIRECTOR,-405.56,2022
,2022 OFFICE OF THE MAJORITY WHIP,1,GENERAL EXPENDITURES,PERSONNEL COMPENSATION,DETAIL,   ,   ,   ,FRIAS BRIANNA A.,2022-01-01,2022-03-31,DIGITAL DIRECTOR,18249.99,2022
,2022 OFFICE OF THE MAJORITY WHIP,1,GENERAL EXPENDITURES,PERSONNEL COMPENSATION,DETAIL,   ,   ,   ,GARRETT EMERALD P.,2022-01-01,2022-01-31,FLOOR ASSISTANT,-344.44,2022
,2022 OFFICE OF THE MAJORITY WHIP,1,GENERAL EXPENDITURES,PERSONNEL COMPENSATION,DETAIL,   ,   ,   ,GARRETT EMERALD P.,2022-01-01,2022-03-31,FLOOR ASSISTANT,15500.01,2022
,2022 OFFICE OF THE MAJORITY WHIP,1,GENERAL EXPENDITURES,PERSONNEL COMPENSATION,DETAIL,   ,   ,   ,KELLY SARAH,2022-01-01,2022-01-31,SENIOR ADVISOR,-761.11,2022
,2022 OFFICE OF THE MAJORITY WHIP,1,GENERAL EXPENDITURES,PERSONNEL COMPENSATION,DETAIL,   ,   ,   ,KELLY SARAH,2022-01-01,2022-03-31,SENIOR ADVISOR,34250.01,2022
,2022 OFFICE OF THE MAJORITY WHIP,1,GENERAL EXPENDITURES,PERSONNEL COMPENSATION,DETAIL,   ,   ,   ,LINK CRAIG C,2022-01-01,2022-01-31,FLOOR DIRECTOR AND GENERAL COU,-938.89,2022
,2022 OFFICE OF THE MAJORITY WHIP,1,GENERAL EXPENDITURES,PERSONNEL COMPENSATION,DETAIL,   ,   ,   ,LINK CRAIG C,2022-01-01,2022-03-31,FLOOR DIRECTOR AND GENERAL COU,42249.99,2022
,2022 OFFICE OF THE MAJORITY WHIP,1,GENERAL EXPENDITURES,PERSONNEL COMPENSATION,DETAIL,   ,   ,   ,LYLES III WILLIE,2022-01-01,2022-01-31,SENIOR ADVISOR & COUNSEL,-933.33,2022
,2022 OFFICE OF THE MAJORITY WHIP,1,GENERAL EXPENDITURES,PERSONNEL COMPENSATION,DETAIL,   ,   ,   ,LYLES III WILLIE,2022-01-01,2022-03-31,SENIOR ADVISOR & COUNSEL,42000,2022
,2022 OFFICE OF THE MAJORITY WHIP,1,GENERAL EXPENDITURES,PERSONNEL COMPENSATION,DETAIL,   ,   ,   ,MASON TAMIKA K,2022-01-01,2022-01-31,DIRECTOR OF TECHNOLOGY FOR FLO,-527.78,2022
,2022 OFFICE OF THE MAJORITY WHIP,1,GENERAL EXPENDITURES,PERSONNEL COMPENSATION,DETAIL,   ,   ,   ,MASON TAMIKA K,2022-01-01,2022-03-31,DIRECTOR OF TECHNOLOGY FOR FLO,23750.01,2022
,2022 OFFICE OF THE MAJORITY WHIP,1,GENERAL EXPENDITURES,PERSONNEL COMPENSATION,DETAIL,   ,   ,   ,MICHALAK TIMOTHY J,2022-01-01,2022-01-31,LEGISLATIVE ASSISTANT,-277.78,2022
,2022 OFFICE OF THE MAJORITY WHIP,1,GENERAL EXPENDITURES,PERSONNEL COMPENSATION,DETAIL,   ,   ,   ,MICHALAK TIMOTHY J,2022-01-01,2022-02-11,LEGISLATIVE ASSISTANT,5694.45,2022
,2022 OFFICE OF THE MAJORITY WHIP,1,GENERAL EXPENDITURES,PERSONNEL COMPENSATION,DETAIL,   ,   ,   ,MOORE DYLAN B.,2022-01-01,2022-01-31,LEGISLATIVE ASSISTANT,-266.67,2022
,2022 OFFICE OF THE MAJORITY WHIP,1,GENERAL EXPENDITURES,PERSONNEL COMPENSATION,DETAIL,   ,   ,   ,MOORE DYLAN B.,2022-01-01,2022-03-31,LEGISLATIVE ASSISTANT,12000,2022
,2022 OFFICE OF THE MAJORITY WHIP,1,GENERAL EXPENDITURES,PERSONNEL COMPENSATION,DETAIL,   ,   ,   ,O'DONNELL FREDERICK J.,2022-01-01,2022-01-31,STAFF ASSISTANT,-194.44,2022
,2022 OFFICE OF THE MAJORITY WHIP,1,GENERAL EXPENDITURES,PERSONNEL COMPENSATION,DETAIL,   ,   ,   ,O'DONNELL FREDERICK J.,2022-01-01,2022-03-31,STAFF ASSISTANT,10083.33,2022
,2022 OFFICE OF THE MAJORITY WHIP,1,GENERAL EXPENDITURES,PERSONNEL COMPENSATION,DETAIL,   ,   ,   ,QUINTERO OSORIO MARIA A.,2022-01-01,2022-01-31,STAFF ASSISTANT,-194.44,2022
,2022 OFFICE OF THE MAJORITY WHIP,1,GENERAL EXPENDITURES,PERSONNEL COMPENSATION,DETAIL,   ,   ,   ,QUINTERO OSORIO MARIA A.,2022-01-01,2022-03-31,STAFF ASSISTANT,10083.33,2022
,2022 OFFICE OF THE MAJORITY WHIP,1,GENERAL EXPENDITURES,PERSONNEL COMPENSATION,DETAIL,   ,   ,   ,SAUNDERS NIA G.,2022-01-01,2022-01-31,PRESS ASSISTANT,-194.44,2022
,2022 OFFICE OF THE MAJORITY WHIP,1,GENERAL EXPENDITURES,PERSONNEL COMPENSATION,DETAIL,   ,   ,   ,SAUNDERS NIA G.,2022-01-01,2022-03-31,PRESS ASSISTANT,10083.33,2022
,2022 OFFICE OF THE MAJORITY WHIP,1,GENERAL EXPENDITURES,PERSONNEL COMPENSATION,DETAIL,   ,   ,   ,SINGLETARY BARVETTA,2022-01-01,2022-01-31,SENIOR ADVISOR,-916.67,2022
,2022 OFFICE OF THE MAJORITY WHIP,1,GENERAL EXPENDITURES,PERSONNEL COMPENSATION,DETAIL,   ,   ,   ,SINGLETARY BARVETTA,2022-01-01,2022-03-31,SENIOR ADVISOR,41250,2022
,2022 OFFICE OF THE MAJORITY WHIP,1,GENERAL EXPENDITURES,PERSONNEL COMPENSATION,DETAIL,   ,   ,   ,STALLINGS BERNADINE A,2022-01-01,2022-01-31,DEPUTY COMM DIRECTOR,-638.89,2022
,2022 OFFICE OF THE MAJORITY WHIP,1,GENERAL EXPENDITURES,PERSONNEL COMPENSATION,DETAIL,   ,   ,   ,STALLINGS BERNADINE A,2022-01-01,2022-03-31,DEPUTY COMM DIRECTOR,28749.99,2022
,2022 OFFICE OF THE MAJORITY WHIP,1,GENERAL EXPENDITURES,PERSONNEL COMPENSATION,DETAIL,   ,   ,   ,UBEZONU NNEMDILIM I,2022-01-01,2022-01-31,DEPUTY FLOOR DIRECTOR,-455.56,2022
,2022 OFFICE OF THE MAJORITY WHIP,1,GENERAL EXPENDITURES,PERSONNEL COMPENSATION,DETAIL,   ,   ,   ,UBEZONU NNEMDILIM I,2022-01-01,2022-03-31,DEPUTY FLOOR DIRECTOR,20499.99,2022
,2022 OFFICE OF THE MAJORITY WHIP,1,GENERAL EXPENDITURES,PERSONNEL COMPENSATION,DETAIL,   ,   ,   ,WATKINS YELBERTON R.,2022-01-01,2022-01-31,CHIEF OF STAFF,-933.33,2022
,2022 OFFICE OF THE MAJORITY WHIP,1,GENERAL EXPENDITURES,PERSONNEL COMPENSATION,DETAIL,   ,   ,   ,WATKINS YELBERTON R.,2022-01-01,2022-03-31,CHIEF OF STAFF,42000,2022
,2022 OFFICE OF THE MAJORITY WHIP,1,GENERAL EXPENDITURES,PERSONNEL COMPENSATION,DETAIL,   ,   ,   ,WILSON ASHLEIGH R.,2022-01-01,2022-01-31,LEGISLATIVE DIRECTOR,-138.89,2022
,2022 OFFICE OF THE MAJORITY WHIP,1,GENERAL EXPENDITURES,PERSONNEL COMPENSATION,DETAIL,   ,   ,   ,WILSON ASHLEIGH R.,2022-01-01,2022-03-31,LEGISLATIVE DIRECTOR,6249.99,2022
,2022 OFFICE OF THE MAJORITY WHIP,1,GENERAL EXPENDITURES,PERSONNEL COMPENSATION,SUBTOTAL,   ,   ,   ,   ,   ,   ,PERSONNEL COMPENSATION TOTALS:,424795.81,2022
,2022 OFFICE OF THE MAJORITY WHIP,1,GENERAL EXPENDITURES,TRAVEL,DETAIL,2022-03-24,AP,1537897,CITI PCARD-THE DEWBERRY,2022-02-16,2022-02-17,LODGING,375.06,2022
,2022 OFFICE OF THE MAJORITY WHIP,1,GENERAL EXPENDITURES,TRAVEL,SUBTOTAL,   ,   ,   ,   ,   ,   ,TRAVEL TOTALS:,375.06,2022
,2022 OFFICE OF THE MAJORITY WHIP,1,GENERAL EXPENDITURES,RENT  COMMUNICATION  UTILITIES,DETAIL,2022-02-24,GL,EMS0113247, ,2022-01-01,2022-01-31,DC TELECOM EQUIP (TRANSFER),76,2022
,2022 OFFICE OF THE MAJORITY WHIP,1,GENERAL EXPENDITURES,RENT  COMMUNICATION  UTILITIES,DETAIL,2022-02-24,GL,EMS0113247, ,2022-01-01,2022-01-31,DC TELECOM SERV (TRANSFER),295.75,2022
,2022 OFFICE OF THE MAJORITY WHIP,1,GENERAL EXPENDITURES,RENT  COMMUNICATION  UTILITIES,DETAIL,2022-02-24,GL,EMS0113247, ,2022-01-01,2022-01-31,DC TELECOM TOLLS (TRANSFER),1345.54,2022
,2022 OFFICE OF THE MAJORITY WHIP,1,GENERAL EXPENDITURES,RENT  COMMUNICATION  UTILITIES,DETAIL,2022-02-25,GL,MED0113284, ,2022-02-02,2022-02-07,HIR GRAPHICS (TRANSFER),150,2022
,2022 OFFICE OF THE MAJORITY WHIP,1,GENERAL EXPENDITURES,RENT  COMMUNICATION  UTILITIES,DETAIL,2022-03-23,GL,EMS0113952, ,2022-02-01,2022-02-28,DC TELECOM EQUIP (TRANSFER),172,2022
,2022 OFFICE OF THE MAJORITY WHIP,1,GENERAL EXPENDITURES,RENT  COMMUNICATION  UTILITIES,DETAIL,2022-03-23,GL,EMS0113952, ,2022-02-01,2022-02-28,DC TELECOM SERV (TRANSFER),295.75,2022
,2022 OFFICE OF THE MAJORITY WHIP,1,GENERAL EXPENDITURES,RENT  COMMUNICATION  UTILITIES,DETAIL,2022-03-23,GL,EMS0113952, ,2022-02-01,2022-02-28,DC TELECOM TOLLS (TRANSFER),1352.92,2022
,2022 OFFICE OF THE MAJORITY WHIP,1,GENERAL EXPENDITURES,RENT  COMMUNICATION  UTILITIES,SUBTOTAL,   ,   ,   ,   ,   ,   ,RENT  COMMUNICATION  UTILITIES TOTALS:,3687.96,2022
,2022 OFFICE OF THE MAJORITY WHIP,1,GENERAL EXPENDITURES,PRINTING AND REPRODUCTION,DETAIL,2022-03-24,AP,1537956,CITI PCARD-CANVA  I03332-30547856,2022-02-01,2022-02-28,FRANKABLE PRINTING & REPROD,31.8,2022
,2022 OFFICE OF THE MAJORITY WHIP,1,GENERAL EXPENDITURES,PRINTING AND REPRODUCTION,DETAIL,2022-03-29,GL,MED0114088, ,2022-03-11,2022-03-11,PHOTOGRAPHIC (TRANSFER),7.8,2022
,2022 OFFICE OF THE MAJORITY WHIP,1,GENERAL EXPENDITURES,PRINTING AND REPRODUCTION,SUBTOTAL,   ,   ,   ,   ,   ,   ,PRINTING AND REPRODUCTION TOTALS:,39.6,2022
,2022 OFFICE OF THE MAJORITY WHIP,1,GENERAL EXPENDITURES,OTHER SERVICES,DETAIL,2022-01-31,AP,1519353,1BRIGHTSTAR MEDIA,2022-01-02,2022-01-31,WEB DEV HST EMAIL & RLTD SERV,499,2022
,2022 OFFICE OF THE MAJORITY WHIP,1,GENERAL EXPENDITURES,OTHER SERVICES,DETAIL,2022-02-16,AP,1527130,FIRESIDE 21 LLC,2022-01-01,2022-01-31,TECHNOLOGY SERVICE CONTRACTS,1895,2022
,2022 OFFICE OF THE MAJORITY WHIP,1,GENERAL EXPENDITURES,OTHER SERVICES,DETAIL,2022-02-16,AP,1527131,FIRESIDE 21 LLC,2022-02-01,2022-02-28,TECHNOLOGY SERVICE CONTRACTS,1895,2022
,2022 OFFICE OF THE MAJORITY WHIP,1,GENERAL EXPENDITURES,OTHER SERVICES,DETAIL,2022-02-18,AP,1525294,1BRIGHTSTAR MEDIA,2022-02-01,2022-02-28,WEB DEV HST EMAIL & RLTD SERV,499,2022
,2022 OFFICE OF THE MAJORITY WHIP,1,GENERAL EXPENDITURES,OTHER SERVICES,DETAIL,2022-03-09,AP,1532919,1BRIGHTSTAR MEDIA,2022-03-01,2022-03-31,WEB DEV HST EMAIL & RLTD SERV,499,2022
,2022 OFFICE OF THE MAJORITY WHIP,1,GENERAL EXPENDITURES,OTHER SERVICES,DETAIL,2022-03-16,AP,1537263,FIRESIDE 21 LLC,2022-03-01,2022-03-31,TECHNOLOGY SERVICE CONTRACTS,1895,2022
,2022 OFFICE OF THE MAJORITY WHIP,1,GENERAL EXPENDITURES,OTHER SERVICES,SUBTOTAL,   ,   ,   ,   ,   ,   ,OTHER SERVICES TOTALS:,7182,2022
,2022 OFFICE OF THE MAJORITY WHIP,1,GENERAL EXPENDITURES,SUPPLIES AND MATERIALS,DETAIL,2022-01-31,GL,RMS0112721, ,2022-01-01,2022-01-31,OFFICE SUPPLIES (OUTSIDE),518,2022
,2022 OFFICE OF THE MAJORITY WHIP,1,GENERAL EXPENDITURES,SUPPLIES AND MATERIALS,DETAIL,2022-01-31,GL,RMS0112721, ,2022-01-01,2022-01-31,OFFICE SUPPLY (TRANSFER),80.58,2022
,2022 OFFICE OF THE MAJORITY WHIP,1,GENERAL EXPENDITURES,SUPPLIES AND MATERIALS,DETAIL,2022-02-17,AP,1525295,REVIVE EVENTS AND CATERING,2022-01-12,2022-01-12,FOOD & BEVERAGE,3563,2022
,2022 OFFICE OF THE MAJORITY WHIP,1,GENERAL EXPENDITURES,SUPPLIES AND MATERIALS,DETAIL,2022-02-17,AP,1525299,REVIVE EVENTS AND CATERING,2022-02-03,2022-02-03,FOOD & BEVERAGE,3563,2022
,2022 OFFICE OF THE MAJORITY WHIP,1,GENERAL EXPENDITURES,SUPPLIES AND MATERIALS,DETAIL,2022-02-17,AP,1525302,REVIVE EVENTS AND CATERING,2022-02-03,2022-02-03,FOOD & BEVERAGE,2431,2022
,2022 OFFICE OF THE MAJORITY WHIP,1,GENERAL EXPENDITURES,SUPPLIES AND MATERIALS,DETAIL,2022-02-28,GL,RMS0113391, ,2022-02-01,2022-02-28,OFFICE SUPPLY (TRANSFER),140.72,2022
,2022 OFFICE OF THE MAJORITY WHIP,1,GENERAL EXPENDITURES,SUPPLIES AND MATERIALS,DETAIL,2022-03-03,AP,1532852,ACCURATE WORD,2022-02-18,2022-02-18,PUBLICATIONS/REFERENCE MAT'L,151,2022
,2022 OFFICE OF THE MAJORITY WHIP,1,GENERAL EXPENDITURES,SUPPLIES AND MATERIALS,DETAIL,2022-03-09,AP,1532936,CITI PCARD-MEI WAH RESTAURAURT,2022-02-09,2022-02-09,FOOD & BEVERAGE,5389.45,2022
,2022 OFFICE OF THE MAJORITY WHIP,1,GENERAL EXPENDITURES,SUPPLIES AND MATERIALS,DETAIL,2022-03-23,AP,1537939,CITI PCARD-THE HOME DEPOT #2583,2022-01-10,2022-01-10,OFFICE SUPPLIES (OUTSIDE),23.98,2022
,2022 OFFICE OF THE MAJORITY WHIP,1,GENERAL EXPENDITURES,SUPPLIES AND MATERIALS,DETAIL,2022-03-23,AP,1540650,CITI PCARD-COSTCO BY INSTACART,2022-01-07,2022-01-07,FOOD & BEVERAGE,258.47,2022
,2022 OFFICE OF THE MAJORITY WHIP,1,GENERAL EXPENDITURES,SUPPLIES AND MATERIALS,DETAIL,2022-03-23,AP,1540650,CITI PCARD-COSTCO BY INSTACART,2022-01-11,2022-01-11,FOOD & BEVERAGE,71.43,2022
,2022 OFFICE OF THE MAJORITY WHIP,1,GENERAL EXPENDITURES,SUPPLIES AND MATERIALS,DETAIL,2022-03-23,AP,1540650,CITI PCARD-COSTCO BY INSTACART,2022-01-24,2022-01-24,FOOD & BEVERAGE,159.45,2022
,2022 OFFICE OF THE MAJORITY WHIP,1,GENERAL EXPENDITURES,SUPPLIES AND MATERIALS,DETAIL,2022-03-23,AP,1540650,CITI PCARD-COSTCO BY INSTACART,2022-01-27,2022-01-27,FOOD & BEVERAGE,127.7,2022
,2022 OFFICE OF THE MAJORITY WHIP,1,GENERAL EXPENDITURES,SUPPLIES AND MATERIALS,DETAIL,2022-03-23,AP,1540650,CITI PCARD-GRUBHUBBAKEDWIRED,2022-02-10,2022-02-10,FOOD & BEVERAGE,151.01,2022
,2022 OFFICE OF THE MAJORITY WHIP,1,GENERAL EXPENDITURES,SUPPLIES AND MATERIALS,DETAIL,2022-03-23,AP,1540650,CITI PCARD-INSTACART,2022-01-07,2022-01-07,FOOD & BEVERAGE,179.57,2022
,2022 OFFICE OF THE MAJORITY WHIP,1,GENERAL EXPENDITURES,SUPPLIES AND MATERIALS,DETAIL,2022-03-23,AP,1540650,CITI PCARD-INSTACART,2022-01-11,2022-01-11,FOOD & BEVERAGE,218.75,2022
,2022 OFFICE OF THE MAJORITY WHIP,1,GENERAL EXPENDITURES,SUPPLIES AND MATERIALS,DETAIL,2022-03-23,AP,1540650,CITI PCARD-INSTACART,2022-01-18,2022-01-18,FOOD & BEVERAGE,43.18,2022
,2022 OFFICE OF THE MAJORITY WHIP,1,GENERAL EXPENDITURES,SUPPLIES AND MATERIALS,DETAIL,2022-03-23,AP,1540650,CITI PCARD-INSTACART,2022-01-19,2022-01-19,FOOD & BEVERAGE,23.19,2022
,2022 OFFICE OF THE MAJORITY WHIP,1,GENERAL EXPENDITURES,SUPPLIES AND MATERIALS,DETAIL,2022-03-23,AP,1540650,CITI PCARD-INSTACART,2022-01-24,2022-01-24,FOOD & BEVERAGE,135.97,2022
,2022 OFFICE OF THE MAJORITY WHIP,1,GENERAL EXPENDITURES,SUPPLIES AND MATERIALS,DETAIL,2022-03-23,AP,1540650,CITI PCARD-INSTACART,2022-01-27,2022-01-27,FOOD & BEVERAGE,117.26,2022
,2022 OFFICE OF THE MAJORITY WHIP,1,GENERAL EXPENDITURES,SUPPLIES AND MATERIALS,DETAIL,2022-03-23,AP,1540650,CITI PCARD-INSTACART,2022-01-31,2022-01-31,FOOD & BEVERAGE,62.2,2022
,2022 OFFICE OF THE MAJORITY WHIP,1,GENERAL EXPENDITURES,SUPPLIES AND MATERIALS,DETAIL,2022-03-23,AP,1540970,CITI PCARD-COSTCO BY INSTACART,2022-02-10,2022-02-10,FOOD & BEVERAGE,469.23,2022
,2022 OFFICE OF THE MAJORITY WHIP,1,GENERAL EXPENDITURES,SUPPLIES AND MATERIALS,DETAIL,2022-03-23,AP,1540970,CITI PCARD-COSTCO BY INSTACART,2022-02-25,2022-02-25,FOOD & BEVERAGE,376.68,2022
,2022 OFFICE OF THE MAJORITY WHIP,1,GENERAL EXPENDITURES,SUPPLIES AND MATERIALS,DETAIL,2022-03-23,AP,1540970,CITI PCARD-INSTACART,2022-02-01,2022-02-01,FOOD & BEVERAGE,277.37,2022
,2022 OFFICE OF THE MAJORITY WHIP,1,GENERAL EXPENDITURES,SUPPLIES AND MATERIALS,DETAIL,2022-03-23,AP,1540970,CITI PCARD-INSTACART,2022-02-10,2022-02-10,FOOD & BEVERAGE,68.48,2022
,2022 OFFICE OF THE MAJORITY WHIP,1,GENERAL EXPENDITURES,SUPPLIES AND MATERIALS,DETAIL,2022-03-23,AP,1540970,CITI PCARD-INSTACART,2022-02-25,2022-02-25,FOOD & BEVERAGE,193.45,2022
,2022 OFFICE OF THE MAJORITY WHIP,1,GENERAL EXPENDITURES,SUPPLIES AND MATERIALS,DETAIL,2022-03-24,AP,1537872,CITI PCARD-AMAZON.COM T04CN4IF3 AMZN,2022-02-14,2022-02-14,OFFICE SUPPLIES (OUTSIDE),81.78,2022
,2022 OFFICE OF THE MAJORITY WHIP,1,GENERAL EXPENDITURES,SUPPLIES AND MATERIALS,DETAIL,2022-03-24,AP,1537872,CITI PCARD-AMZN Mktp US 8L1IF5GH3,2022-01-31,2022-01-31,FOOD & BEVERAGE,20.98,2022
,2022 OFFICE OF THE MAJORITY WHIP,1,GENERAL EXPENDITURES,SUPPLIES AND MATERIALS,DETAIL,2022-03-24,AP,1537872,CITI PCARD-AMZN Mktp US DP08Y72S3,2022-01-10,2022-01-10,OFFICE SUPPLIES (OUTSIDE),45.99,2022
,2022 OFFICE OF THE MAJORITY WHIP,1,GENERAL EXPENDITURES,SUPPLIES AND MATERIALS,DETAIL,2022-03-24,AP,1537872,CITI PCARD-AMZN Mktp US HD3QK9OB3,2022-01-10,2022-01-10,OFFICE SUPPLIES (OUTSIDE),89.99,2022
,2022 OFFICE OF THE MAJORITY WHIP,1,GENERAL EXPENDITURES,SUPPLIES AND MATERIALS,DETAIL,2022-03-24,AP,1537872,CITI PCARD-AMZN Mktp US I088W3S73,2022-01-20,2022-01-20,OFFICE SUPPLIES (OUTSIDE),135.88,2022
,2022 OFFICE OF THE MAJORITY WHIP,1,GENERAL EXPENDITURES,SUPPLIES AND MATERIALS,DETAIL,2022-03-24,AP,1537872,CITI PCARD-AMZN Mktp US RW8AO4H93,2022-01-20,2022-01-20,OFFICE SUPPLIES (OUTSIDE),31.49,2022
,2022 OFFICE OF THE MAJORITY WHIP,1,GENERAL EXPENDITURES,SUPPLIES AND MATERIALS,DETAIL,2022-03-24,AP,1537872,CITI PCARD-AMZN Mktp US ZU5MG6U53,2022-01-11,2022-01-11,OFFICE SUPPLIES (OUTSIDE),36.99,2022
,2022 OFFICE OF THE MAJORITY WHIP,1,GENERAL EXPENDITURES,SUPPLIES AND MATERIALS,DETAIL,2022-03-24,AP,1537878,TYSONS CREATIONS LLC,2022-03-07,2022-03-07,FOOD & BEVERAGE,2268.75,2022
,2022 OFFICE OF THE MAJORITY WHIP,1,GENERAL EXPENDITURES,SUPPLIES AND MATERIALS,DETAIL,2022-03-24,AP,1537897,CITI PCARD-TALAY THAI RESTAURANT-,2022-01-12,2022-01-12,FOOD & BEVERAGE,350.4,2022
,2022 OFFICE OF THE MAJORITY WHIP,1,GENERAL EXPENDITURES,SUPPLIES AND MATERIALS,DETAIL,2022-03-24,AP,1537897,CITI PCARD-ZULILY,2022-02-07,2022-02-07,OFFICE SUPPLIES (OUTSIDE),113.39,2022
,2022 OFFICE OF THE MAJORITY WHIP,1,GENERAL EXPENDITURES,SUPPLIES AND MATERIALS,DETAIL,2022-03-24,AP,1537956,CITI PCARD-THE NEW YORK TIMES,2022-01-26,2022-02-23,PUBLICATIONS/REFERENCE MAT'L,51.94,2022
,2022 OFFICE OF THE MAJORITY WHIP,1,GENERAL EXPENDITURES,SUPPLIES AND MATERIALS,DETAIL,2022-03-24,AP,1537956,CITI PCARD-THE NEW YORK TIMES,2022-02-23,2022-03-23,PUBLICATIONS/REFERENCE MAT'L,51.94,2022
,2022 OFFICE OF THE MAJORITY WHIP,1,GENERAL EXPENDITURES,SUPPLIES AND MATERIALS,DETAIL,2022-03-24,AP,1540266,CITI PCARD-ISLANDPACKET DIGITAL SUB,2022-02-18,2022-02-18,PUBLICATIONS/REFERENCE MAT'L,27.99,2022
,2022 OFFICE OF THE MAJORITY WHIP,1,GENERAL EXPENDITURES,SUPPLIES AND MATERIALS,DETAIL,2022-03-24,AP,1540266,CITI PCARD-PAYPAL  GGO,2022-02-15,2022-02-15,FOOD & BEVERAGE,582.4,2022
,2022 OFFICE OF THE MAJORITY WHIP,1,GENERAL EXPENDITURES,SUPPLIES AND MATERIALS,DETAIL,2022-03-25,AP,1541272,CITI PCARD-BLOOMBERG.COM,2022-02-15,2023-02-14,PUBLICATIONS/REFERENCE MAT'L,290,2022
,2022 OFFICE OF THE MAJORITY WHIP,1,GENERAL EXPENDITURES,SUPPLIES AND MATERIALS,DETAIL,2022-03-31,GL,RMS0114229, ,2022-03-01,2022-03-31,OFFICE SUPPLY (TRANSFER),138.45,2022
,2022 OFFICE OF THE MAJORITY WHIP,1,GENERAL EXPENDITURES,SUPPLIES AND MATERIALS,SUBTOTAL,   ,   ,   ,   ,   ,   ,SUPPLIES AND MATERIALS TOTALS:,23112.48,2022
,2022 OFFICE OF THE MAJORITY WHIP,1,GENERAL EXPENDITURES,EQUIPMENT,DETAIL,2022-01-31,GL,MNT0112655, ,2022-01-01,2022-01-31,MAINTENANCE / REPAIRS,355,2022
,2022 OFFICE OF THE MAJORITY WHIP,1,GENERAL EXPENDITURES,EQUIPMENT,DETAIL,2022-01-31,GL,RMS0112721, ,2022-01-01,2022-01-31,COMPUTER HARDW PURCH  LESS THAN $25 000,8947.84,2022
,2022 OFFICE OF THE MAJORITY WHIP,1,GENERAL EXPENDITURES,EQUIPMENT,DETAIL,2022-02-28,GL,MNT0113336, ,2022-02-01,2022-02-28,MAINTENANCE / REPAIRS,355,2022
,2022 OFFICE OF THE MAJORITY WHIP,1,GENERAL EXPENDITURES,EQUIPMENT,DETAIL,2022-03-31,GL,MNT0114177, ,2022-03-01,2022-03-31,MAINTENANCE / REPAIRS,355,2022
,2022 OFFICE OF THE MAJORITY WHIP,1,GENERAL EXPENDITURES,EQUIPMENT,SUBTOTAL,   ,   ,   ,   ,   ,   ,EQUIPMENT TOTALS:,10012.84,2022
,2022 OFFICE OF THE MAJORITY WHIP,1,GENERAL EXPENDITURES,EQUIPMENT,SUBTOTAL,   ,   ,   ,   ,   ,   ,GENERAL EXPENDITURES TOTALS:,469205.75,2022
,2022 OFFICE OF THE MAJORITY WHIP,1,GENERAL EXPENDITURES,EQUIPMENT,GRAND TOTAL FOR ORGANIZATION,   ,   ,   ,   ,   ,   ,OFFICE TOTALS: ,469205.75,2022
,2021 OFFICE OF THE MAJORITY WHIP,1,GENERAL EXPENDITURES,PERSONNEL COMPENSATION,DETAIL,   ,   ,   ,DERRICK HOPE E,2022-01-01,2022-01-02,COMMUNICATIONS DIRECTOR,877.78,2022
,2021 OFFICE OF THE MAJORITY WHIP,1,GENERAL EXPENDITURES,PERSONNEL COMPENSATION,DETAIL,   ,   ,   ,DERRICK HOPE E,2021-11-01,2021-11-30,COMMUNICATIONS DIRECTOR (OTHER COMPENSATION),5000,2022
,2021 OFFICE OF THE MAJORITY WHIP,1,GENERAL EXPENDITURES,PERSONNEL COMPENSATION,DETAIL,   ,   ,   ,ELLISON MATTHEW B.,2022-01-01,2022-01-02,POLICY DIRECTOR,666.67,2022
,2021 OFFICE OF THE MAJORITY WHIP,1,GENERAL EXPENDITURES,PERSONNEL COMPENSATION,DETAIL,   ,   ,   ,ELLISON MATTHEW B.,2021-10-01,2021-10-31,POLICY DIRECTOR (OTHER COMPENSATION),5000,2022
,2021 OFFICE OF THE MAJORITY WHIP,1,GENERAL EXPENDITURES,PERSONNEL COMPENSATION,DETAIL,   ,   ,   ,FRIAS BRIANNA A.,2021-12-01,2021-12-01,DIGITAL DIRECTOR,5000,2022
,2021 OFFICE OF THE MAJORITY WHIP,1,GENERAL EXPENDITURES,PERSONNEL COMPENSATION,DETAIL,   ,   ,   ,FRIAS BRIANNA A.,2022-01-01,2022-01-02,DIGITAL DIRECTOR,405.56,2022
,2021 OFFICE OF THE MAJORITY WHIP,1,GENERAL EXPENDITURES,PERSONNEL COMPENSATION,DETAIL,   ,   ,   ,GARRETT EMERALD P.,2021-12-01,2021-12-01,FLOOR ASSISTANT,5000,2022
,2021 OFFICE OF THE MAJORITY WHIP,1,GENERAL EXPENDITURES,PERSONNEL COMPENSATION,DETAIL,   ,   ,   ,GARRETT EMERALD P.,2022-01-01,2022-01-02,FLOOR ASSISTANT,344.44,2022
,2021 OFFICE OF THE MAJORITY WHIP,1,GENERAL EXPENDITURES,PERSONNEL COMPENSATION,DETAIL,   ,   ,   ,KELLY SARAH,2021-12-01,2021-12-01,SENIOR ADVISOR,4941.66,2022
,2021 OFFICE OF THE MAJORITY WHIP,1,GENERAL EXPENDITURES,PERSONNEL COMPENSATION,DETAIL,   ,   ,   ,KELLY SARAH,2022-01-01,2022-01-02,SENIOR ADVISOR,761.11,2022
,2021 OFFICE OF THE MAJORITY WHIP,1,GENERAL EXPENDITURES,PERSONNEL COMPENSATION,DETAIL,   ,   ,   ,LINK CRAIG C,2022-01-01,2022-01-02,FLOOR DIRECTOR AND GENERAL COU,938.89,2022
,2021 OFFICE OF THE MAJORITY WHIP,1,GENERAL EXPENDITURES,PERSONNEL COMPENSATION,DETAIL,   ,   ,   ,LINK CRAIG C,2021-10-01,2021-10-31,FLOOR DIRECTOR AND GENERAL COU (OTHER COMPENSATION),5000,2022
,2021 OFFICE OF THE MAJORITY WHIP,1,GENERAL EXPENDITURES,PERSONNEL COMPENSATION,DETAIL,   ,   ,   ,LYLES III WILLIE,2022-01-01,2022-01-02,SENIOR ADVISOR & COUNSEL,933.33,2022
,2021 OFFICE OF THE MAJORITY WHIP,1,GENERAL EXPENDITURES,PERSONNEL COMPENSATION,DETAIL,   ,   ,   ,LYLES III WILLIE,2021-11-01,2021-11-30,SENIOR ADVISOR & COUNSEL (OTHER COMPENSATION),5000,2022
,2021 OFFICE OF THE MAJORITY WHIP,1,GENERAL EXPENDITURES,PERSONNEL COMPENSATION,DETAIL,   ,   ,   ,MASON TAMIKA K,2021-12-01,2021-12-01,DIRECTOR OF TECHNOLOGY FOR FLO,5000,2022
,2021 OFFICE OF THE MAJORITY WHIP,1,GENERAL EXPENDITURES,PERSONNEL COMPENSATION,DETAIL,   ,   ,   ,MASON TAMIKA K,2022-01-01,2022-01-02,DIRECTOR OF TECHNOLOGY FOR FLO,527.78,2022
,2021 OFFICE OF THE MAJORITY WHIP,1,GENERAL EXPENDITURES,PERSONNEL COMPENSATION,DETAIL,   ,   ,   ,MICHALAK TIMOTHY J,2021-12-01,2021-12-01,LEGISLATIVE ASSISTANT,5000,2022
,2021 OFFICE OF THE MAJORITY WHIP,1,GENERAL EXPENDITURES,PERSONNEL COMPENSATION,DETAIL,   ,   ,   ,MICHALAK TIMOTHY J,2022-01-01,2022-01-02,LEGISLATIVE ASSISTANT,277.78,2022
,2021 OFFICE OF THE MAJORITY WHIP,1,GENERAL EXPENDITURES,PERSONNEL COMPENSATION,DETAIL,   ,   ,   ,MOORE DYLAN B.,2021-12-01,2021-12-01,LEGISLATIVE ASSISTANT,5000,2022
,2021 OFFICE OF THE MAJORITY WHIP,1,GENERAL EXPENDITURES,PERSONNEL COMPENSATION,DETAIL,   ,   ,   ,MOORE DYLAN B.,2022-01-01,2022-01-02,LEGISLATIVE ASSISTANT,266.67,2022
,2021 OFFICE OF THE MAJORITY WHIP,1,GENERAL EXPENDITURES,PERSONNEL COMPENSATION,DETAIL,   ,   ,   ,O'DONNELL FREDERICK J.,2021-12-01,2021-12-01,STAFF ASSISTANT,5000,2022
,2021 OFFICE OF THE MAJORITY WHIP,1,GENERAL EXPENDITURES,PERSONNEL COMPENSATION,DETAIL,   ,   ,   ,O'DONNELL FREDERICK J.,2022-01-01,2022-01-02,STAFF ASSISTANT,194.44,2022
,2021 OFFICE OF THE MAJORITY WHIP,1,GENERAL EXPENDITURES,PERSONNEL COMPENSATION,DETAIL,   ,   ,   ,QUINTERO OSORIO MARIA A.,2021-12-01,2021-12-01,STAFF ASSISTANT,5000,2022
,2021 OFFICE OF THE MAJORITY WHIP,1,GENERAL EXPENDITURES,PERSONNEL COMPENSATION,DETAIL,   ,   ,   ,QUINTERO OSORIO MARIA A.,2022-01-01,2022-01-02,STAFF ASSISTANT,194.44,2022
,2021 OFFICE OF THE MAJORITY WHIP,1,GENERAL EXPENDITURES,PERSONNEL COMPENSATION,DETAIL,   ,   ,   ,SAUNDERS NIA G.,2021-12-01,2021-12-01,PRESS ASSISTANT,5000,2022
,2021 OFFICE OF THE MAJORITY WHIP,1,GENERAL EXPENDITURES,PERSONNEL COMPENSATION,DETAIL,   ,   ,   ,SAUNDERS NIA G.,2022-01-01,2022-01-02,PRESS ASSISTANT,194.44,2022
,2021 OFFICE OF THE MAJORITY WHIP,1,GENERAL EXPENDITURES,PERSONNEL COMPENSATION,DETAIL,   ,   ,   ,SINGLETARY BARVETTA,2022-01-01,2022-01-02,SENIOR ADVISOR,916.67,2022
,2021 OFFICE OF THE MAJORITY WHIP,1,GENERAL EXPENDITURES,PERSONNEL COMPENSATION,DETAIL,   ,   ,   ,STALLINGS BERNADINE A,2021-12-01,2021-12-01,DEPUTY COMM DIRECTOR,5000,2022
,2021 OFFICE OF THE MAJORITY WHIP,1,GENERAL EXPENDITURES,PERSONNEL COMPENSATION,DETAIL,   ,   ,   ,STALLINGS BERNADINE A,2022-01-01,2022-01-02,DEPUTY COMM DIRECTOR,638.89,2022
,2021 OFFICE OF THE MAJORITY WHIP,1,GENERAL EXPENDITURES,PERSONNEL COMPENSATION,DETAIL,   ,   ,   ,UBEZONU NNEMDILIM I,2021-12-01,2021-12-01,DEPUTY FLOOR DIRECTOR,5000,2022
,2021 OFFICE OF THE MAJORITY WHIP,1,GENERAL EXPENDITURES,PERSONNEL COMPENSATION,DETAIL,   ,   ,   ,UBEZONU NNEMDILIM I,2022-01-01,2022-01-02,DEPUTY FLOOR DIRECTOR,455.56,2022
,2021 OFFICE OF THE MAJORITY WHIP,1,GENERAL EXPENDITURES,PERSONNEL COMPENSATION,DETAIL,   ,   ,   ,WATKINS YELBERTON R.,2022-01-01,2022-01-02,CHIEF OF STAFF,933.33,2022
,2021 OFFICE OF THE MAJORITY WHIP,1,GENERAL EXPENDITURES,PERSONNEL COMPENSATION,DETAIL,   ,   ,   ,WATKINS YELBERTON R.,2021-10-01,2021-10-31,CHIEF OF STAFF (OTHER COMPENSATION),5000,2022
,2021 OFFICE OF THE MAJORITY WHIP,1,GENERAL EXPENDITURES,PERSONNEL COMPENSATION,DETAIL,   ,   ,   ,WILSON ASHLEIGH R.,2022-01-01,2022-01-02,LEGISLATIVE DIRECTOR,138.89,2022
,2021 OFFICE OF THE MAJORITY WHIP,1,GENERAL EXPENDITURES,PERSONNEL COMPENSATION,SUBTOTAL,   ,   ,   ,   ,   ,   ,PERSONNEL COMPENSATION TOTALS:,89608.33,2022
,2021 OFFICE OF THE MAJORITY WHIP,1,GENERAL EXPENDITURES,RENT  COMMUNICATION  UTILITIES,DETAIL,2022-01-26,GL,EMS0112513, ,2021-12-01,2021-12-31,DC TELECOM EQUIP (TRANSFER),76,2022
,2021 OFFICE OF THE MAJORITY WHIP,1,GENERAL EXPENDITURES,RENT  COMMUNICATION  UTILITIES,DETAIL,2022-01-26,GL,EMS0112513, ,2021-12-01,2021-12-31,DC TELECOM SERV (TRANSFER),295.75,2022
,2021 OFFICE OF THE MAJORITY WHIP,1,GENERAL EXPENDITURES,RENT  COMMUNICATION  UTILITIES,DETAIL,2022-01-26,GL,EMS0112513, ,2021-12-01,2021-12-31,DC TELECOM TOLLS (TRANSFER),1225.02,2022
,2021 OFFICE OF THE MAJORITY WHIP,1,GENERAL EXPENDITURES,RENT  COMMUNICATION  UTILITIES,SUBTOTAL,   ,   ,   ,   ,   ,   ,RENT  COMMUNICATION  UTILITIES TOTALS:,1596.77,2022
,2021 OFFICE OF THE MAJORITY WHIP,1,GENERAL EXPENDITURES,PRINTING AND REPRODUCTION,DETAIL,2022-01-31,AP,1519342,CITI PCARD-FACEBK  2TCXQ838V2,2021-11-25,2021-11-26,ADVERTISEMENTS,15,2022
,2021 OFFICE OF THE MAJORITY WHIP,1,GENERAL EXPENDITURES,PRINTING AND REPRODUCTION,DETAIL,2022-01-31,AP,1519342,CITI PCARD-FACEBK  4DE8HAX7V2,2021-11-29,2021-11-30,ADVERTISEMENTS,50,2022
,2021 OFFICE OF THE MAJORITY WHIP,1,GENERAL EXPENDITURES,PRINTING AND REPRODUCTION,DETAIL,2022-01-31,AP,1519342,CITI PCARD-FACEBK  7MSJQAX7V2,2021-12-04,2021-12-08,ADVERTISEMENTS,400,2022
,2021 OFFICE OF THE MAJORITY WHIP,1,GENERAL EXPENDITURES,PRINTING AND REPRODUCTION,DETAIL,2022-01-31,AP,1519342,CITI PCARD-FACEBK  DTD9B9P7V2,2021-11-29,2021-11-29,ADVERTISEMENTS,35,2022
,2021 OFFICE OF THE MAJORITY WHIP,1,GENERAL EXPENDITURES,PRINTING AND REPRODUCTION,DETAIL,2022-01-31,AP,1519342,CITI PCARD-FACEBK  M24TJ9B7V2,2021-12-02,2021-12-04,ADVERTISEMENTS,175,2022
,2021 OFFICE OF THE MAJORITY WHIP,1,GENERAL EXPENDITURES,PRINTING AND REPRODUCTION,DETAIL,2022-01-31,AP,1519342,CITI PCARD-FACEBK  NF26H9K7V2,2021-12-04,2021-12-05,ADVERTISEMENTS,250,2022
,2021 OFFICE OF THE MAJORITY WHIP,1,GENERAL EXPENDITURES,PRINTING AND REPRODUCTION,DETAIL,2022-01-31,AP,1519342,CITI PCARD-FACEBK  PQW5R9P7V2,2021-12-10,2021-12-14,ADVERTISEMENTS,500,2022
,2021 OFFICE OF THE MAJORITY WHIP,1,GENERAL EXPENDITURES,PRINTING AND REPRODUCTION,DETAIL,2022-01-31,AP,1519342,CITI PCARD-FACEBK  U45849X6V2,2021-11-26,2021-11-26,ADVERTISEMENTS,26.33,2022
,2021 OFFICE OF THE MAJORITY WHIP,1,GENERAL EXPENDITURES,PRINTING AND REPRODUCTION,DETAIL,2022-01-31,AP,1519342,CITI PCARD-FACEBK  V5VAN8F7V2,2021-11-30,2021-12-02,ADVERTISEMENTS,75,2022
,2021 OFFICE OF THE MAJORITY WHIP,1,GENERAL EXPENDITURES,PRINTING AND REPRODUCTION,DETAIL,2022-01-31,AP,1519342,CITI PCARD-FACEBK  VJMCV9P7V2,2021-12-13,2021-12-17,ADVERTISEMENTS,500,2022
,2021 OFFICE OF THE MAJORITY WHIP,1,GENERAL EXPENDITURES,PRINTING AND REPRODUCTION,DETAIL,2022-01-31,AP,1519342,CITI PCARD-FACEBK  VRXCF9X6V2,2021-12-07,2021-12-11,ADVERTISEMENTS,500,2022
,2021 OFFICE OF THE MAJORITY WHIP,1,GENERAL EXPENDITURES,PRINTING AND REPRODUCTION,DETAIL,2022-01-31,AP,1519342,CITI PCARD-FACEBK  YRH2FB77V2,2021-12-02,2021-12-02,ADVERTISEMENTS,125,2022
,2021 OFFICE OF THE MAJORITY WHIP,1,GENERAL EXPENDITURES,PRINTING AND REPRODUCTION,DETAIL,2022-01-31,AP,1519342,CITI PCARD-FACEBK RWA7U9X6V2,2021-12-17,2021-12-21,ADVERTISEMENTS,501.31,2022
,2021 OFFICE OF THE MAJORITY WHIP,1,GENERAL EXPENDITURES,PRINTING AND REPRODUCTION,DETAIL,2022-01-31,AP,1519342,CITI PCARD-FACEBK SHM7BAB7V2,2021-12-22,2021-12-25,ADVERTISEMENTS,500,2022
,2021 OFFICE OF THE MAJORITY WHIP,1,GENERAL EXPENDITURES,PRINTING AND REPRODUCTION,DETAIL,2022-01-31,AP,1519342,CITI PCARD-FACEBK ZF8F5AP7V2,2021-12-22,2021-12-22,ADVERTISEMENTS,147.67,2022
,2021 OFFICE OF THE MAJORITY WHIP,1,GENERAL EXPENDITURES,PRINTING AND REPRODUCTION,DETAIL,2022-03-24,AP,1537956,CITI PCARD-FACEBK NWSB9BB7V2,2021-12-24,2021-12-25,ADVERTISEMENTS,20.4,2022
,2021 OFFICE OF THE MAJORITY WHIP,1,GENERAL EXPENDITURES,PRINTING AND REPRODUCTION,SUBTOTAL,   ,   ,   ,   ,   ,   ,PRINTING AND REPRODUCTION TOTALS:,3820.71,2022
,2021 OFFICE OF THE MAJORITY WHIP,1,GENERAL EXPENDITURES,SUPPLIES AND MATERIALS,DETAIL,2022-01-31,AP,1519342,CITI PCARD-AMZN Mktp US 2F8V21U52,2021-12-06,2021-12-06,OFFICE SUPPLIES (OUTSIDE),125.29,2022
,2021 OFFICE OF THE MAJORITY WHIP,1,GENERAL EXPENDITURES,SUPPLIES AND MATERIALS,DETAIL,2022-01-31,AP,1519342,CITI PCARD-AMZN Mktp US HI92E5773,2021-12-10,2021-12-10,OFFICE SUPPLIES (OUTSIDE),7.9,2022
,2021 OFFICE OF THE MAJORITY WHIP,1,GENERAL EXPENDITURES,SUPPLIES AND MATERIALS,DETAIL,2022-01-31,AP,1519342,CITI PCARD-APPLE.COM/BILL,2021-12-01,2021-12-31,SOFTWARE  LESS THAN  $500,10.59,2022
,2021 OFFICE OF THE MAJORITY WHIP,1,GENERAL EXPENDITURES,SUPPLIES AND MATERIALS,DETAIL,2022-01-31,AP,1519342,CITI PCARD-CANVA  I03270-31604847,2021-12-01,2021-12-31,SOFTWARE  LESS THAN  $500,31.8,2022
,2021 OFFICE OF THE MAJORITY WHIP,1,GENERAL EXPENDITURES,SUPPLIES AND MATERIALS,DETAIL,2022-01-31,AP,1519342,CITI PCARD-ISLANDPACKET DIGITAL SUB,2021-10-18,2021-11-17,PUBLICATIONS/REFERENCE MAT'L,15.99,2022
,2021 OFFICE OF THE MAJORITY WHIP,1,GENERAL EXPENDITURES,SUPPLIES AND MATERIALS,DETAIL,2022-01-31,AP,1519342,CITI PCARD-ISLANDPACKET DIGITAL SUB,2021-11-18,2021-12-17,PUBLICATIONS/REFERENCE MAT'L,15.99,2022
,2021 OFFICE OF THE MAJORITY WHIP,1,GENERAL EXPENDITURES,SUPPLIES AND MATERIALS,DETAIL,2022-01-31,AP,1519342,CITI PCARD-ISLANDPACKET DIGITAL SUB,2021-12-18,2022-01-17,PUBLICATIONS/REFERENCE MAT'L,27.99,2022
,2021 OFFICE OF THE MAJORITY WHIP,1,GENERAL EXPENDITURES,SUPPLIES AND MATERIALS,DETAIL,2022-01-31,GL,RMS0112721, ,2021-12-01,2021-12-31,OFFICE SUPPLY (TRANSFER),93.94,2022
,2021 OFFICE OF THE MAJORITY WHIP,1,GENERAL EXPENDITURES,SUPPLIES AND MATERIALS,DETAIL,2022-02-15,AP,1526221,CITIBANK,2021-11-04,2021-11-04,FOOD & BEVERAGE,-104.94,2022
,2021 OFFICE OF THE MAJORITY WHIP,1,GENERAL EXPENDITURES,SUPPLIES AND MATERIALS,DETAIL,2022-02-15,AP,1526221,CITIBANK,2021-11-04,2022-11-04,PUBLICATIONS/REFERENCE MAT'L,104.94,2022
,2021 OFFICE OF THE MAJORITY WHIP,1,GENERAL EXPENDITURES,SUPPLIES AND MATERIALS,DETAIL,2022-02-17,AP,1525666,CITI PCARD-COSTCO BY INSTACART,2021-11-30,2021-11-30,FOOD & BEVERAGE,259.91,2022
,2021 OFFICE OF THE MAJORITY WHIP,1,GENERAL EXPENDITURES,SUPPLIES AND MATERIALS,DETAIL,2022-02-17,AP,1525666,CITI PCARD-DISTRICT TACO 1003 ONLINE,2021-12-08,2021-12-08,FOOD & BEVERAGE,198.45,2022
,2021 OFFICE OF THE MAJORITY WHIP,1,GENERAL EXPENDITURES,SUPPLIES AND MATERIALS,DETAIL,2022-02-17,AP,1525666,CITI PCARD-HILL COUNTRY LLC,2021-12-14,2021-12-14,FOOD & BEVERAGE,5507.95,2022
,2021 OFFICE OF THE MAJORITY WHIP,1,GENERAL EXPENDITURES,SUPPLIES AND MATERIALS,DETAIL,2022-02-17,AP,1525666,CITI PCARD-INSTACART,2021-11-30,2021-11-30,FOOD & BEVERAGE,240.77,2022
,2021 OFFICE OF THE MAJORITY WHIP,1,GENERAL EXPENDITURES,SUPPLIES AND MATERIALS,DETAIL,2022-02-17,AP,1525666,CITI PCARD-INSTACART,2021-12-01,2021-12-01,FOOD & BEVERAGE,98.21,2022
,2021 OFFICE OF THE MAJORITY WHIP,1,GENERAL EXPENDITURES,SUPPLIES AND MATERIALS,DETAIL,2022-02-17,AP,1525666,CITI PCARD-INSTACART,2021-12-06,2021-12-06,FOOD & BEVERAGE,299.52,2022
,2021 OFFICE OF THE MAJORITY WHIP,1,GENERAL EXPENDITURES,SUPPLIES AND MATERIALS,DETAIL,2022-02-17,AP,1525666,CITI PCARD-INSTACART,2021-12-07,2021-12-07,FOOD & BEVERAGE,47.63,2022
,2021 OFFICE OF THE MAJORITY WHIP,1,GENERAL EXPENDITURES,SUPPLIES AND MATERIALS,DETAIL,2022-03-08,AP,1535058,CITIBANK,2021-12-07,2021-12-07,FOOD & BEVERAGE,-47.63,2022
,2021 OFFICE OF THE MAJORITY WHIP,1,GENERAL EXPENDITURES,SUPPLIES AND MATERIALS,DETAIL,2022-03-08,AP,1535058,CITIBANK,2021-12-07,2021-12-07,OFFICE SUPPLIES (OUTSIDE),47.63,2022
,2021 OFFICE OF THE MAJORITY WHIP,1,GENERAL EXPENDITURES,SUPPLIES AND MATERIALS,DETAIL,2022-03-23,AP,1537939,CITI PCARD-APPLE.COM/BILL,2021-12-31,2022-01-30,SOFTWARE  LESS THAN  $500,10.59,2022
,2021 OFFICE OF THE MAJORITY WHIP,1,GENERAL EXPENDITURES,SUPPLIES AND MATERIALS,DETAIL,2022-03-23,AP,1537939,CITI PCARD-THE NEW YORK TIMES,2021-12-01,2021-12-29,PUBLICATIONS/REFERENCE MAT'L,51.94,2022
,2021 OFFICE OF THE MAJORITY WHIP,1,GENERAL EXPENDITURES,SUPPLIES AND MATERIALS,DETAIL,2022-03-23,AP,1537939,CITI PCARD-THE NEW YORK TIMES,2021-12-29,2022-01-26,PUBLICATIONS/REFERENCE MAT'L,51.94,2022
,2021 OFFICE OF THE MAJORITY WHIP,1,GENERAL EXPENDITURES,SUPPLIES AND MATERIALS,DETAIL,2022-03-24,AP,1537897,CITI PCARD-CHICK-FIL-A #01293,2021-10-26,2021-10-26,FOOD & BEVERAGE,8.52,2022
,2021 OFFICE OF THE MAJORITY WHIP,1,GENERAL EXPENDITURES,SUPPLIES AND MATERIALS,DETAIL,2022-03-24,AP,1537956,CITI PCARD-CANVA  I03301-20137771,2022-01-02,2022-01-31,SOFTWARE  LESS THAN  $500,31.8,2022
,2021 OFFICE OF THE MAJORITY WHIP,1,GENERAL EXPENDITURES,SUPPLIES AND MATERIALS,DETAIL,2022-03-24,AP,1537956,CITI PCARD-PODBEAN.COM,2022-01-01,2022-12-31,SOFTWARE  LESS THAN  $500,108,2022
,2021 OFFICE OF THE MAJORITY WHIP,1,GENERAL EXPENDITURES,SUPPLIES AND MATERIALS,DETAIL,2022-03-24,AP,1540266,CITI PCARD-COSTCO BY INSTACART,2021-12-13,2021-12-13,FOOD & BEVERAGE,207.15,2022
,2021 OFFICE OF THE MAJORITY WHIP,1,GENERAL EXPENDITURES,SUPPLIES AND MATERIALS,DETAIL,2022-03-24,AP,1540266,CITI PCARD-COSTCO WHSE #1120,2021-12-13,2021-12-13,FOOD & BEVERAGE,49.95,2022
,2021 OFFICE OF THE MAJORITY WHIP,1,GENERAL EXPENDITURES,SUPPLIES AND MATERIALS,DETAIL,2022-03-24,AP,1540266,CITI PCARD-ISLANDPACKET DIGITAL SUB,2022-01-01,2022-12-31,PUBLICATIONS/REFERENCE MAT'L,27.99,2022
,2021 OFFICE OF THE MAJORITY WHIP,1,GENERAL EXPENDITURES,SUPPLIES AND MATERIALS,DETAIL,2022-03-24,AP,1540266,CITI PCARD-PAYPAL  GGO,2021-11-02,2021-11-02,FOOD & BEVERAGE,243.2,2022
,2021 OFFICE OF THE MAJORITY WHIP,1,GENERAL EXPENDITURES,SUPPLIES AND MATERIALS,DETAIL,2022-03-24,AP,1540266,CITI PCARD-PAYPAL  GGO,2021-11-04,2021-11-04,FOOD & BEVERAGE,73,2022
,2021 OFFICE OF THE MAJORITY WHIP,1,GENERAL EXPENDITURES,SUPPLIES AND MATERIALS,DETAIL,2022-03-24,AP,1540266,CITI PCARD-THEPOSTANDCO ONLINE,2022-01-01,2022-12-31,PUBLICATIONS/REFERENCE MAT'L,310,2022
,2021 OFFICE OF THE MAJORITY WHIP,1,GENERAL EXPENDITURES,SUPPLIES AND MATERIALS,DETAIL,2022-03-31,GL,RMS0114229, ,2021-12-01,2021-12-31,OFFICE SUPPLY (TRANSFER),36.25,2022
,2021 OFFICE OF THE MAJORITY WHIP,1,GENERAL EXPENDITURES,SUPPLIES AND MATERIALS,SUBTOTAL,   ,   ,   ,   ,   ,   ,SUPPLIES AND MATERIALS TOTALS:,8192.26,2022
,2021 OFFICE OF THE MAJORITY WHIP,1,GENERAL EXPENDITURES,SUPPLIES AND MATERIALS,SUBTOTAL,   ,   ,   ,   ,   ,   ,GENERAL EXPENDITURES TOTALS:,103218.07,2022
,2021 OFFICE OF THE MAJORITY WHIP,1,GENERAL EXPENDITURES,SUPPLIES AND MATERIALS,GRAND TOTAL FOR ORGANIZATION,   ,   ,   ,   ,   ,   ,OFFICE TOTALS: ,103218.07,2022
,2022 OFFICE OF THE MINORITY WHIP,1,GENERAL EXPENDITURES,PERSONNEL COMPENSATION,DETAIL,   ,   ,   ,ACORNLEY MARK A.,2022-01-01,2022-01-31,FINANCIAL ADMINISTRATOR,-111.11,2022
,2022 OFFICE OF THE MINORITY WHIP,1,GENERAL EXPENDITURES,PERSONNEL COMPENSATION,DETAIL,   ,   ,   ,ACORNLEY MARK A.,2022-01-01,2022-03-31,FINANCIAL ADMINISTRATOR,5000.01,2022
,2022 OFFICE OF THE MINORITY WHIP,1,GENERAL EXPENDITURES,PERSONNEL COMPENSATION,DETAIL,   ,   ,   ,ADCOCK AUSTEN L,2022-01-01,2022-01-31,STAFF ASSISTANT,-229.63,2022
,2022 OFFICE OF THE MINORITY WHIP,1,GENERAL EXPENDITURES,PERSONNEL COMPENSATION,DETAIL,   ,   ,   ,ADCOCK AUSTEN L,2022-01-01,2022-03-31,STAFF ASSISTANT,10333.32,2022
,2022 OFFICE OF THE MINORITY WHIP,1,GENERAL EXPENDITURES,PERSONNEL COMPENSATION,DETAIL,   ,   ,   ,BATTAGLIA JACQUELINE P,2022-01-01,2022-01-31,SCHEDULE COORDINATOR,-187.5,2022
,2022 OFFICE OF THE MINORITY WHIP,1,GENERAL EXPENDITURES,PERSONNEL COMPENSATION,DETAIL,   ,   ,   ,BATTAGLIA JACQUELINE P,2022-01-01,2022-03-31,SCHEDULE COORDINATOR,8937.5,2022
,2022 OFFICE OF THE MINORITY WHIP,1,GENERAL EXPENDITURES,PERSONNEL COMPENSATION,DETAIL,   ,   ,   ,BROOKE JR FRANCIS J.,2022-01-01,2022-01-31,LEGISLATIVE COUNSEL,-472.22,2022
,2022 OFFICE OF THE MINORITY WHIP,1,GENERAL EXPENDITURES,PERSONNEL COMPENSATION,DETAIL,   ,   ,   ,BROOKE JR FRANCIS J.,2022-01-01,2022-03-31,LEGISLATIVE COUNSEL,21249.99,2022
,2022 OFFICE OF THE MINORITY WHIP,1,GENERAL EXPENDITURES,PERSONNEL COMPENSATION,DETAIL,   ,   ,   ,COMER II MICHAEL D,2022-01-01,2022-01-31,DEPUTY COMMUNICATIONS DIRECTOR,-666.67,2022
,2022 OFFICE OF THE MINORITY WHIP,1,GENERAL EXPENDITURES,PERSONNEL COMPENSATION,DETAIL,   ,   ,   ,COMER II MICHAEL D,2022-01-01,2022-03-31,DEPUTY COMMUNICATIONS DIRECTOR,30000,2022
,2022 OFFICE OF THE MINORITY WHIP,1,GENERAL EXPENDITURES,PERSONNEL COMPENSATION,DETAIL,   ,   ,   ,FINE LAUREN R,2022-01-01,2022-01-31,COMMUNICATIONS DIRECTOR,-584.17,2022
,2022 OFFICE OF THE MINORITY WHIP,1,GENERAL EXPENDITURES,PERSONNEL COMPENSATION,DETAIL,   ,   ,   ,FINE LAUREN R,2022-01-01,2022-03-31,COMMUNICATIONS DIRECTOR,26287.5,2022
,2022 OFFICE OF THE MINORITY WHIP,1,GENERAL EXPENDITURES,PERSONNEL COMPENSATION,DETAIL,   ,   ,   ,HORTON BRETT H.,2022-01-01,2022-01-31,CHIEF OF STAFF,-1100.56,2022
,2022 OFFICE OF THE MINORITY WHIP,1,GENERAL EXPENDITURES,PERSONNEL COMPENSATION,DETAIL,   ,   ,   ,HORTON BRETT H.,2022-01-01,2022-03-31,CHIEF OF STAFF,49524.99,2022
,2022 OFFICE OF THE MINORITY WHIP,1,GENERAL EXPENDITURES,PERSONNEL COMPENSATION,DETAIL,   ,   ,   ,KRIEGER ROBYN W,2022-01-01,2022-01-31,STAFF ASSISTANT,-238.89,2022
,2022 OFFICE OF THE MINORITY WHIP,1,GENERAL EXPENDITURES,PERSONNEL COMPENSATION,DETAIL,   ,   ,   ,KRIEGER ROBYN W,2022-01-01,2022-03-31,STAFF ASSISTANT,10749.99,2022
,2022 OFFICE OF THE MINORITY WHIP,1,GENERAL EXPENDITURES,PERSONNEL COMPENSATION,DETAIL,   ,   ,   ,LOVELL HUNTER J.,2022-01-01,2022-01-31,DEPUTY PRESS SECRETARY,-111.11,2022
,2022 OFFICE OF THE MINORITY WHIP,1,GENERAL EXPENDITURES,PERSONNEL COMPENSATION,DETAIL,   ,   ,   ,LOVELL HUNTER J.,2022-01-01,2022-03-31,DEPUTY PRESS SECRETARY,5000.01,2022
,2022 OFFICE OF THE MINORITY WHIP,1,GENERAL EXPENDITURES,PERSONNEL COMPENSATION,DETAIL,   ,   ,   ,MCINTOSH ARTHUR R.,2022-01-01,2022-01-31,SPECIAL ASSISTANT,-250,2022
,2022 OFFICE OF THE MINORITY WHIP,1,GENERAL EXPENDITURES,PERSONNEL COMPENSATION,DETAIL,   ,   ,   ,MCINTOSH ARTHUR R.,2022-01-01,2022-03-31,SPECIAL ASSISTANT,11250,2022
,2022 OFFICE OF THE MINORITY WHIP,1,GENERAL EXPENDITURES,PERSONNEL COMPENSATION,DETAIL,   ,   ,   ,MINKLER ANN W,2022-01-01,2022-01-31,DEPUTY FLOOR DIRECTOR,-611.11,2022
,2022 OFFICE OF THE MINORITY WHIP,1,GENERAL EXPENDITURES,PERSONNEL COMPENSATION,DETAIL,   ,   ,   ,MINKLER ANN W,2022-01-01,2022-03-31,DEPUTY FLOOR DIRECTOR,27500.01,2022
,2022 OFFICE OF THE MINORITY WHIP,1,GENERAL EXPENDITURES,PERSONNEL COMPENSATION,DETAIL,   ,   ,   ,MLINAR ALYENE S,2022-01-01,2022-01-31,POLICY ADVISOR,-325,2022
,2022 OFFICE OF THE MINORITY WHIP,1,GENERAL EXPENDITURES,PERSONNEL COMPENSATION,DETAIL,   ,   ,   ,MLINAR ALYENE S,2022-01-01,2022-03-31,POLICY ADVISOR,14625,2022
,2022 OFFICE OF THE MINORITY WHIP,1,GENERAL EXPENDITURES,PERSONNEL COMPENSATION,DETAIL,   ,   ,   ,NAFT JEFFREY C,2022-01-01,2022-01-31,COMMUNICATIONS ADVISOR,-472.22,2022
,2022 OFFICE OF THE MINORITY WHIP,1,GENERAL EXPENDITURES,PERSONNEL COMPENSATION,DETAIL,   ,   ,   ,NAFT JEFFREY C,2022-01-01,2022-03-31,COMMUNICATIONS ADVISOR,21249.99,2022
,2022 OFFICE OF THE MINORITY WHIP,1,GENERAL EXPENDITURES,PERSONNEL COMPENSATION,DETAIL,   ,   ,   ,NALLS DENNIS A,2022-01-01,2022-01-31,FLOOR ASSISTANT,-416.67,2022
,2022 OFFICE OF THE MINORITY WHIP,1,GENERAL EXPENDITURES,PERSONNEL COMPENSATION,DETAIL,   ,   ,   ,NALLS DENNIS A,2022-01-01,2022-03-31,FLOOR ASSISTANT,18750,2022
,2022 OFFICE OF THE MINORITY WHIP,1,GENERAL EXPENDITURES,PERSONNEL COMPENSATION,DETAIL,   ,   ,   ,NAPIER BENJAMIN W,2022-01-01,2022-01-31,FLOOR DIRECTOR,-805.56,2022
,2022 OFFICE OF THE MINORITY WHIP,1,GENERAL EXPENDITURES,PERSONNEL COMPENSATION,DETAIL,   ,   ,   ,NAPIER BENJAMIN W,2022-01-01,2022-03-31,FLOOR DIRECTOR,36249.99,2022
,2022 OFFICE OF THE MINORITY WHIP,1,GENERAL EXPENDITURES,PERSONNEL COMPENSATION,DETAIL,   ,   ,   ,REISING JOHN B,2022-02-01,2022-03-31,MEMBER SERVICES DIRECTOR,28333.34,2022
,2022 OFFICE OF THE MINORITY WHIP,1,GENERAL EXPENDITURES,PERSONNEL COMPENSATION,DETAIL,   ,   ,   ,ROBBINS KATHERINE W.,2022-01-01,2022-01-31,PRESS ASSISTANT,-222.22,2022
,2022 OFFICE OF THE MINORITY WHIP,1,GENERAL EXPENDITURES,PERSONNEL COMPENSATION,DETAIL,   ,   ,   ,ROBBINS KATHERINE W.,2022-01-01,2022-03-31,PRESS ASSISTANT,9999.99,2022
,2022 OFFICE OF THE MINORITY WHIP,1,GENERAL EXPENDITURES,PERSONNEL COMPENSATION,DETAIL,   ,   ,   ,SCHMITZ ERIC T,2022-01-01,2022-01-31,COALITIONS COORDINATOR,-500,2022
,2022 OFFICE OF THE MINORITY WHIP,1,GENERAL EXPENDITURES,PERSONNEL COMPENSATION,DETAIL,   ,   ,   ,SCHMITZ ERIC T,2022-01-01,2022-03-31,COALITIONS COORDINATOR,22500,2022
,2022 OFFICE OF THE MINORITY WHIP,1,GENERAL EXPENDITURES,PERSONNEL COMPENSATION,DETAIL,   ,   ,   ,SEHER ELLEN G.,2022-01-01,2022-03-31,DIRECTOR OF OPERATIONS,34972.65,2022
,2022 OFFICE OF THE MINORITY WHIP,1,GENERAL EXPENDITURES,PERSONNEL COMPENSATION,DETAIL,   ,   ,   ,SUGARMAN ALEC J.,2022-02-01,2022-03-31,POLICY ADVISOR,25000,2022
,2022 OFFICE OF THE MINORITY WHIP,1,GENERAL EXPENDITURES,PERSONNEL COMPENSATION,DETAIL,   ,   ,   ,WIEAND JR JEFFREY L,2022-01-01,2022-01-31,COUNSEL,-583.33,2022
,2022 OFFICE OF THE MINORITY WHIP,1,GENERAL EXPENDITURES,PERSONNEL COMPENSATION,DETAIL,   ,   ,   ,WIEAND JR JEFFREY L,2022-01-01,2022-03-31,COUNSEL,26250,2022
,2022 OFFICE OF THE MINORITY WHIP,1,GENERAL EXPENDITURES,PERSONNEL COMPENSATION,SUBTOTAL,   ,   ,   ,   ,   ,   ,PERSONNEL COMPENSATION TOTALS:,435876.31,2022
,2022 OFFICE OF THE MINORITY WHIP,1,GENERAL EXPENDITURES,RENT  COMMUNICATION  UTILITIES,DETAIL,2022-02-24,GL,EMS0113247, ,2022-01-01,2022-01-31,DC TELECOM EQUIP (TRANSFER),76,2022
,2022 OFFICE OF THE MINORITY WHIP,1,GENERAL EXPENDITURES,RENT  COMMUNICATION  UTILITIES,DETAIL,2022-02-24,GL,EMS0113247, ,2022-01-01,2022-01-31,DC TELECOM SERV (TRANSFER),248,2022
,2022 OFFICE OF THE MINORITY WHIP,1,GENERAL EXPENDITURES,RENT  COMMUNICATION  UTILITIES,DETAIL,2022-02-24,GL,EMS0113247, ,2022-01-01,2022-01-31,DC TELECOM TOLLS (TRANSFER),5074.14,2022
,2022 OFFICE OF THE MINORITY WHIP,1,GENERAL EXPENDITURES,RENT  COMMUNICATION  UTILITIES,DETAIL,2022-03-03,AP,1529653,CITI PCARD-GOOGLE  YouTube TV,2022-01-25,2022-02-24,UTILITIES,68.89,2022
,2022 OFFICE OF THE MINORITY WHIP,1,GENERAL EXPENDITURES,RENT  COMMUNICATION  UTILITIES,DETAIL,2022-03-23,GL,EMS0113952, ,2022-02-01,2022-02-28,DC TELECOM EQUIP (TRANSFER),76,2022
,2022 OFFICE OF THE MINORITY WHIP,1,GENERAL EXPENDITURES,RENT  COMMUNICATION  UTILITIES,DETAIL,2022-03-23,GL,EMS0113952, ,2022-02-01,2022-02-28,DC TELECOM SERV (TRANSFER),248,2022
,2022 OFFICE OF THE MINORITY WHIP,1,GENERAL EXPENDITURES,RENT  COMMUNICATION  UTILITIES,DETAIL,2022-03-23,GL,EMS0113952, ,2022-02-01,2022-02-28,DC TELECOM TOLLS (TRANSFER),5279.26,2022
,2022 OFFICE OF THE MINORITY WHIP,1,GENERAL EXPENDITURES,RENT  COMMUNICATION  UTILITIES,DETAIL,2022-03-31,AP,1536305,CITI PCARD-GOOGLE  YouTube,2022-02-08,2022-03-07,UTILITIES,15.89,2022
,2022 OFFICE OF THE MINORITY WHIP,1,GENERAL EXPENDITURES,RENT  COMMUNICATION  UTILITIES,DETAIL,2022-03-31,AP,1536305,CITI PCARD-GOOGLE  YouTube TV,2022-02-25,2022-03-24,UTILITIES,68.89,2022
,2022 OFFICE OF THE MINORITY WHIP,1,GENERAL EXPENDITURES,RENT  COMMUNICATION  UTILITIES,SUBTOTAL,   ,   ,   ,   ,   ,   ,RENT  COMMUNICATION  UTILITIES TOTALS:,11155.07,2022
,2022 OFFICE OF THE MINORITY WHIP,1,GENERAL EXPENDITURES,PRINTING AND REPRODUCTION,DETAIL,2022-01-25,GL,MED0112472, ,2022-01-06,2022-01-18,PHOTOGRAPHIC (TRANSFER),5.1,2022
,2022 OFFICE OF THE MINORITY WHIP,1,GENERAL EXPENDITURES,PRINTING AND REPRODUCTION,DETAIL,2022-03-29,GL,MED0114088, ,2022-03-18,2022-03-18,PHOTOGRAPHIC (TRANSFER),3.4,2022
,2022 OFFICE OF THE MINORITY WHIP,1,GENERAL EXPENDITURES,PRINTING AND REPRODUCTION,SUBTOTAL,   ,   ,   ,   ,   ,   ,PRINTING AND REPRODUCTION TOTALS:,8.5,2022
,2022 OFFICE OF THE MINORITY WHIP,1,GENERAL EXPENDITURES,OTHER SERVICES,DETAIL,2022-01-25,AP,1509604,ENGAGE LLC,2022-01-01,2022-12-31,WEB DEV HST EMAIL & RLTD SERV,6000,2022
,2022 OFFICE OF THE MINORITY WHIP,1,GENERAL EXPENDITURES,OTHER SERVICES,DETAIL,2022-01-25,AP,1516552,CITI PCARD-APPLE.COM/BILL,2021-12-09,2022-01-08,TECHNOLOGY SERVICE CONTRACTS,1.05,2022
,2022 OFFICE OF THE MINORITY WHIP,1,GENERAL EXPENDITURES,OTHER SERVICES,DETAIL,2022-01-25,AP,1516552,CITI PCARD-APPLE.COM/BILL,2021-12-23,2022-01-22,TECHNOLOGY SERVICE CONTRACTS,3.17,2022
,2022 OFFICE OF THE MINORITY WHIP,1,GENERAL EXPENDITURES,OTHER SERVICES,DETAIL,2022-01-25,AP,1516552,CITI PCARD-GOOGLE  Google Storage,2021-12-14,2022-01-13,TECHNOLOGY SERVICE CONTRACTS,10.59,2022
,2022 OFFICE OF THE MINORITY WHIP,1,GENERAL EXPENDITURES,OTHER SERVICES,DETAIL,2022-01-25,AP,1516552,CITI PCARD-MAILCHIMP    MISC,2021-12-07,2022-01-06,WEB DEV HST EMAIL & RLTD SERV,304.21,2022
,2022 OFFICE OF THE MINORITY WHIP,1,GENERAL EXPENDITURES,OTHER SERVICES,DETAIL,2022-03-03,AP,1529653,CITI PCARD-APPLE.COM/BILL,2021-12-29,2022-01-28,TECHNOLOGY SERVICE CONTRACTS,5.29,2022
